Payment Date,Transaction Number,Net Amount,Supplier (Beneficiary) Name,Local Supplier Internal Reference,Directorate / Service Where Expenditure Incurred,Service Category Label,Service Category URI,SeRCOP Expenditure Category,SeRCOP Expenditure Code,Purpose of Spend,SeRCOP Detailed Expenditure Code,Capital/Revenue,Procurement Classification
22-DEC-2022,7020540,4.3,ARRIVA (NORTHUMBRIA) LTD,317268,Commissioning & Asset Management,Children's & Education Services,103,Transport,503,Direct Transport Costs,5016,Revenue,NON INFLUENCIBLE.GRANTS
22-DEC-2022,7020541,17.46,MICROSOFT,273906,Resources,Central Services,102,Supplies and Services,504,"Printing, Stationery and General Office Expenses",5026,Revenue,DEFAULT
22-DEC-2022,7020542,-446.25,JURYS INNS & LEONARDO HOTELS UK & IRELAND,402349,General Fund Housing,Housing Services,108,Third Party Payments,505,Private Contractors,5042,Revenue,HUMAN RESOURCES.TRAINING & CONFERENCES
22-DEC-2022,7020542,152.5,JURYS INNS & LEONARDO HOTELS UK & IRELAND,402349,General Fund Housing,Housing Services,108,Third Party Payments,505,Private Contractors,5042,Revenue,HUMAN RESOURCES.TRAINING & CONFERENCES
22-DEC-2022,7020542,544.58,JURYS INNS & LEONARDO HOTELS UK & IRELAND,402349,General Fund Housing,Housing Services,108,Third Party Payments,505,Private Contractors,5042,Revenue,HUMAN RESOURCES.TRAINING & CONFERENCES
22-DEC-2022,7020542,598.75,JURYS INNS & LEONARDO HOTELS UK & IRELAND,402349,General Fund Housing,Housing Services,108,Third Party Payments,505,Private Contractors,5042,Revenue,HUMAN RESOURCES.TRAINING & CONFERENCES
22-DEC-2022,7020542,655.42,JURYS INNS & LEONARDO HOTELS UK & IRELAND,402349,General Fund Housing,Housing Services,108,Third Party Payments,505,Private Contractors,5042,Revenue,HUMAN RESOURCES.TRAINING & CONFERENCES
22-DEC-2022,7020543,115.83,FUTURE FIT TRAINING LTD,387744,"Sport, Leisure & Community",Cultural & Related Services,104,Employees,501,Indirect Employee Expenses,5002,Revenue,HUMAN RESOURCES.TRAINING & CONFERENCES
22-DEC-2022,7020544,100,SCOTTISH POWER PLC,306396,"Health, Education, Care and Safeguarding",Children's & Education Services,103,Third Party Payments,505,Other Establishments,5041,Revenue,
22-DEC-2022,7020545,34.16,STUDIO,339523,Local Environmental Services,Cultural & Related Services,104,Supplies and Services,504,Equipment,5023,Revenue,
22-DEC-2022,7020546,24.08,HOOK,403984,"Health, Education, Care and Safeguarding",Children's & Education Services,103,Supplies and Services,504,Miscellaneous Expenses,5034,Revenue,NON INFLUENCIBLE.NON INFLUENCIBLE
22-DEC-2022,7020547,12.5,F HOGG & SON,403983,Local Environmental Services,Cultural & Related Services,104,Supplies and Services,504,Miscellaneous Expenses,5034,Revenue,NON INFLUENCIBLE.NON INFLUENCIBLE
22-DEC-2022,7020548,416.66,KEEN GARDENER,403982,"Health, Education, Care and Safeguarding",Children's & Education Services,103,Supplies and Services,504,Equipment,5023,Revenue,NON INFLUENCIBLE.NON INFLUENCIBLE
22-DEC-2022,7020549,35.96,EVAQ8,403981,"Health, Education, Care and Safeguarding",Children's & Education Services,103,Supplies and Services,504,Equipment,5023,Revenue,NON INFLUENCIBLE.NON INFLUENCIBLE
22-DEC-2022,7020550,9.99,GROUNDSMAN,403980,Local Environmental Services,Environmental & Regulatory Services,105,Supplies and Services,504,Equipment,5023,Revenue,NON INFLUENCIBLE.NON INFLUENCIBLE
22-DEC-2022,7020551,23.66,BELLEWHOLESALE,403979,"Health, Education, Care and Safeguarding",Children's & Education Services,103,Supplies and Services,504,Miscellaneous Expenses,5034,Revenue,NON INFLUENCIBLE.NON INFLUENCIBLE
22-DEC-2022,7020552,85.82,THE FACE MASK STORE,403978,"Sport, Leisure & Community",Cultural & Related Services,104,Supplies and Services,504,Equipment,5023,Revenue,NON INFLUENCIBLE.NON INFLUENCIBLE
22-DEC-2022,7020553,40.19,FREEPIK & FLATICON,403977,Resources,Central Services,102,Supplies and Services,504,Equipment,5023,Revenue,NON INFLUENCIBLE.NON INFLUENCIBLE
22-DEC-2022,7020554,64.35,ALSHAM MARKET,403976,General Fund Housing,Housing Services,108,Supplies and Services,504,Expenses,5030,Revenue,NON INFLUENCIBLE.NON INFLUENCIBLE
22-DEC-2022,7020555,120,VARSITY LIVING LIMITED,403975,"Health, Education, Care and Safeguarding",Children's & Education Services,103,Third Party Payments,505,Other Establishments,5041,Revenue,NON INFLUENCIBLE.NON INFLUENCIBLE
22-DEC-2022,7020556,162,OPTIMUM SPORTS,403974,"Sport, Leisure & Community",Cultural & Related Services,104,Supplies and Services,504,Equipment,5023,Revenue,NON INFLUENCIBLE.NON INFLUENCIBLE
22-DEC-2022,7020557,51.96,THE CRACKER COMPANY,403973,Corporate Strategy,Children's & Education Services,103,Supplies and Services,504,Expenses,5030,Revenue,NON INFLUENCIBLE.NON INFLUENCIBLE
22-DEC-2022,7020558,700,WATCHES OF SWITZERLAND,403972,Resources,Central Services,102,Supplies and Services,504,Expenses,5030,Revenue,NON INFLUENCIBLE.NON INFLUENCIBLE
22-DEC-2022,7020558,700,WATCHES OF SWITZERLAND,403972,Resources,Central Services,102,Supplies and Services,504,Expenses,5030,Revenue,NON INFLUENCIBLE.NON INFLUENCIBLE
22-DEC-2022,7020558,700,WATCHES OF SWITZERLAND,403972,Resources,Central Services,102,Supplies and Services,504,Expenses,5030,Revenue,NON INFLUENCIBLE.NON INFLUENCIBLE
22-DEC-2022,7020559,11,AFFILIATED AUTO RENTAL,403971,"Health, Education, Care and Safeguarding",Children's & Education Services,103,Transport,503,Contract Hire and Operating Leases,5018,Revenue,NON INFLUENCIBLE.NON INFLUENCIBLE
22-DEC-2022,7020560,83.51,TEX CANAL GARAGE,403970,"Health, Education, Care and Safeguarding",Children's & Education Services,103,Transport,503,Direct Transport Costs,5016,Revenue,NON INFLUENCIBLE.NON INFLUENCIBLE
22-DEC-2022,7020561,304.17,MARSHALLS SELF DRIVE,403969,"Health, Education, Care and Safeguarding",Children's & Education Services,103,Transport,503,Contract Hire and Operating Leases,5018,Revenue,NON INFLUENCIBLE.NON INFLUENCIBLE
22-DEC-2022,7020562,24.17,LAFAYETTE PHOTOGRAPHY,403968,"Health, Education, Care and Safeguarding",Children's & Education Services,103,Supplies and Services,504,Miscellaneous Expenses,5034,Revenue,NON INFLUENCIBLE.NON INFLUENCIBLE
22-DEC-2022,7020563,85.62,DISCORD,403967,"Health, Education, Care and Safeguarding",Children's & Education Services,103,Supplies and Services,504,"Clothing, Uniforms and Laundry",5025,Revenue,NON INFLUENCIBLE.NON INFLUENCIBLE
22-DEC-2022,7020564,22.65,SWEETSANDTREATS,403966,Local Environmental Services,Cultural & Related Services,104,Supplies and Services,504,Miscellaneous Expenses,5034,Revenue,NON INFLUENCIBLE.NON INFLUENCIBLE
22-DEC-2022,7020565,72,THE DAILY MAIL,403965,Regeneration & Economic Development,Cultural & Related Services,104,Third Party Payments,505,Private Contractors,5042,Revenue,NON INFLUENCIBLE.NON INFLUENCIBLE
22-DEC-2022,7020565,72,THE DAILY MAIL,403965,Regeneration & Economic Development,Cultural & Related Services,104,Third Party Payments,505,Private Contractors,5042,Revenue,NON INFLUENCIBLE.NON INFLUENCIBLE
22-DEC-2022,7020566,11.24,DAIRY FREE CHOCS,403964,Local Environmental Services,Cultural & Related Services,104,Supplies and Services,504,Miscellaneous Expenses,5034,Revenue,NON INFLUENCIBLE.NON INFLUENCIBLE
22-DEC-2022,7020567,83.33,NALDIC,403963,"Health, Education, Care and Safeguarding",Children's & Education Services,103,Supplies and Services,504,Grants and Subscriptions,5031,Revenue,NON INFLUENCIBLE.NON INFLUENCIBLE
22-DEC-2022,7020568,16.67,CIBSE,403962,Public Health,Capital,Capital,Third Party Payments,505,Private Contractors,5042,Revenue,NON INFLUENCIBLE.NON INFLUENCIBLE
22-DEC-2022,7020569,9.3,ADS,403961,Regeneration & Economic Development,Cultural & Related Services,104,Third Party Payments,505,Private Contractors,5042,Revenue,NON INFLUENCIBLE.NON INFLUENCIBLE
22-DEC-2022,7020570,22.35,BUILD- A -BEAR WORKSHOP,403776,"Health, Education, Care and Safeguarding",Children's & Education Services,103,Supplies and Services,504,Miscellaneous Expenses,5034,Revenue,NON INFLUENCIBLE.INDIVIDUAL
22-DEC-2022,7020571,165,PAYPAL  DISCOUNT FI,403623,Resources,Children's & Education Services,103,Employees,501,Indirect Employee Expenses,5002,Revenue,NON INFLUENCIBLE.INDIVIDUAL
22-DEC-2022,7020571,165,PAYPAL  DISCOUNT FI,403623,Resources,Children's & Education Services,103,Employees,501,Indirect Employee Expenses,5002,Revenue,NON INFLUENCIBLE.INDIVIDUAL
22-DEC-2022,7020571,165,PAYPAL  DISCOUNT FI,403623,Resources,Children's & Education Services,103,Employees,501,Indirect Employee Expenses,5002,Revenue,NON INFLUENCIBLE.INDIVIDUAL
22-DEC-2022,7020571,165,PAYPAL  DISCOUNT FI,403623,Resources,Children's & Education Services,103,Employees,501,Indirect Employee Expenses,5002,Revenue,NON INFLUENCIBLE.INDIVIDUAL
22-DEC-2022,7020571,165,PAYPAL  DISCOUNT FI,403623,Resources,Children's & Education Services,103,Employees,501,Indirect Employee Expenses,5002,Revenue,NON INFLUENCIBLE.INDIVIDUAL
22-DEC-2022,7020571,79.96,PAYPAL  DISCOUNT FI,403623,"Health, Education, Care and Safeguarding",Children's & Education Services,103,Supplies and Services,504,Miscellaneous Expenses,5034,Revenue,NON INFLUENCIBLE.INDIVIDUAL
22-DEC-2022,7020572,157.65,BITEPRO LIMITED,403622,"Health, Education, Care and Safeguarding",Children's & Education Services,103,Supplies and Services,504,Equipment,5023,Revenue,NON INFLUENCIBLE.INDIVIDUAL
22-DEC-2022,7020573,1.5,FIND A WILL,403503,"Health, Education, Care and Safeguarding",Adult Social Care,101,Third Party Payments,505,Government Departments,5039,Revenue,NON INFLUENCIBLE.INDIVIDUAL
22-DEC-2022,7020573,1.5,FIND A WILL,403503,"Health, Education, Care and Safeguarding",Adult Social Care,101,Third Party Payments,505,Government Departments,5039,Revenue,NON INFLUENCIBLE.INDIVIDUAL
22-DEC-2022,7020574,344.3,CLOUD,403500,Resources,Central Services,102,Supplies and Services,504,"Printing, Stationery and General Office Expenses",5026,Revenue,NON INFLUENCIBLE.INDIVIDUAL
22-DEC-2022,7020575,15,O BRIEN ARCHITECTURAL,403499,Housing Property and Construction,Housing Services,108,Supplies and Services,504,Miscellaneous Expenses,5034,Revenue,NON INFLUENCIBLE.INDIVIDUAL
22-DEC-2022,7020576,311.68,EB PURCHASE CARD,403478,Regeneration & Economic Development,Planning Services ,110,Third Party Payments,505,Private Contractors,5042,Revenue,ADVERTISING & MARKETING.EVENTS & PROMOTIONS
22-DEC-2022,7020576,175,EB PURCHASE CARD,403478,"Health, Education, Care and Safeguarding",Children's & Education Services,103,Supplies and Services,504,Miscellaneous Expenses,5034,Revenue,ADVERTISING & MARKETING.EVENTS & PROMOTIONS
22-DEC-2022,7020576,150,EB PURCHASE CARD,403478,"Health, Education, Care and Safeguarding",Children's & Education Services,103,Supplies and Services,504,Equipment,5023,Revenue,ADVERTISING & MARKETING.EVENTS & PROMOTIONS
22-DEC-2022,7020577,31.29,TAKEAWAY,403381,Corporate Strategy,Children's & Education Services,103,Supplies and Services,504,Expenses,5030,Revenue,NON INFLUENCIBLE.NON INFLUENCIBLE
22-DEC-2022,7020577,13.67,TAKEAWAY,403381,Corporate Strategy,Children's & Education Services,103,Supplies and Services,504,Catering,5024,Revenue,NON INFLUENCIBLE.NON INFLUENCIBLE
22-DEC-2022,7020577,13.67,TAKEAWAY,403381,Corporate Strategy,Children's & Education Services,103,Supplies and Services,504,Catering,5024,Revenue,NON INFLUENCIBLE.NON INFLUENCIBLE
22-DEC-2022,7020577,29.79,TAKEAWAY,403381,Corporate Strategy,Children's & Education Services,103,Supplies and Services,504,Catering,5024,Revenue,NON INFLUENCIBLE.NON INFLUENCIBLE
22-DEC-2022,7020577,65.79,TAKEAWAY,403381,Corporate Strategy,Children's & Education Services,103,Supplies and Services,504,Catering,5024,Revenue,NON INFLUENCIBLE.NON INFLUENCIBLE
22-DEC-2022,7020578,3.17,ROYAL VICTORIA INFIRMARY,340684,"Health, Education, Care and Safeguarding",Children's & Education Services,103,Third Party Payments,505,Other Establishments,5041,Revenue,NON INFLUENCIBLE.PUBLIC SECTOR
22-DEC-2022,7020578,9.42,ROYAL VICTORIA INFIRMARY,340684,"Health, Education, Care and Safeguarding",Children's & Education Services,103,Third Party Payments,505,Other Establishments,5041,Revenue,NON INFLUENCIBLE.PUBLIC SECTOR
22-DEC-2022,7020579,45.83,NEW KENT HOTEL,312970,General Fund Housing,Housing Services,108,Third Party Payments,505,Private Contractors,5042,Revenue,
22-DEC-2022,7020579,91.67,NEW KENT HOTEL,312970,General Fund Housing,Housing Services,108,Third Party Payments,505,Private Contractors,5042,Revenue,
22-DEC-2022,7020579,487,NEW KENT HOTEL,312970,General Fund Housing,Housing Services,108,Third Party Payments,505,Private Contractors,5042,Revenue,
22-DEC-2022,7020579,522.08,NEW KENT HOTEL,312970,General Fund Housing,Housing Services,108,Third Party Payments,505,Private Contractors,5042,Revenue,
22-DEC-2022,7020579,534.58,NEW KENT HOTEL,312970,General Fund Housing,Housing Services,108,Third Party Payments,505,Private Contractors,5042,Revenue,
22-DEC-2022,7020579,550.42,NEW KENT HOTEL,312970,General Fund Housing,Housing Services,108,Third Party Payments,505,Private Contractors,5042,Revenue,
22-DEC-2022,7020579,550.42,NEW KENT HOTEL,312970,General Fund Housing,Housing Services,108,Third Party Payments,505,Private Contractors,5042,Revenue,
22-DEC-2022,7020580,37.5,FOR THE LOVE OF THE NORTH,401221,Regeneration & Economic Development,Cultural & Related Services,104,Supplies and Services,504,Equipment,5023,Revenue,NON INFLUENCIBLE.GRANTS
22-DEC-2022,7020580,108.33,FOR THE LOVE OF THE NORTH,401221,Regeneration & Economic Development,Cultural & Related Services,104,Supplies and Services,504,Equipment,5023,Revenue,NON INFLUENCIBLE.GRANTS
22-DEC-2022,7020581,67.5,HMCTS,360503,"Health, Education, Care and Safeguarding",Adult Social Care,101,Supplies and Services,504,Miscellaneous Expenses,5034,Revenue,NON INFLUENCIBLE.PUBLIC SECTOR
22-DEC-2022,7020582,67.5,HMCTS,360503,"Health, Education, Care and Safeguarding",Adult Social Care,101,Supplies and Services,504,Miscellaneous Expenses,5034,Revenue,NON INFLUENCIBLE.PUBLIC SECTOR
22-DEC-2022,7020583,67.5,HMCTS,360503,"Health, Education, Care and Safeguarding",Adult Social Care,101,Supplies and Services,504,Miscellaneous Expenses,5034,Revenue,NON INFLUENCIBLE.PUBLIC SECTOR
22-DEC-2022,7020584,35,NEWCASTLE CITY COUNCIL,014331,"Health, Education, Care and Safeguarding",Children's & Education Services,103,Supplies and Services,504,Miscellaneous Expenses,5034,Revenue,NON INFLUENCIBLE.PUBLIC SECTOR
22-DEC-2022,7020584,35,NEWCASTLE CITY COUNCIL,014331,"Health, Education, Care and Safeguarding",Children's & Education Services,103,Supplies and Services,504,Expenses,5030,Revenue,NON INFLUENCIBLE.PUBLIC SECTOR
22-DEC-2022,7020584,70,NEWCASTLE CITY COUNCIL,014331,"Health, Education, Care and Safeguarding",Children's & Education Services,103,Supplies and Services,504,Expenses,5030,Revenue,NON INFLUENCIBLE.PUBLIC SECTOR
22-DEC-2022,7020584,70,NEWCASTLE CITY COUNCIL,014331,"Health, Education, Care and Safeguarding",Children's & Education Services,103,Supplies and Services,504,Expenses,5030,Revenue,NON INFLUENCIBLE.PUBLIC SECTOR
22-DEC-2022,7020585,133.4,ADVENTURE LEARNING,372085,"Health, Education, Care and Safeguarding",Children's & Education Services,103,Supplies and Services,504,Miscellaneous Expenses,5034,Revenue,ADVERTISING & MARKETING.EVENTS & PROMOTIONS
22-DEC-2022,7020586,284.89,EDF ENERGY,367754,Housing Operations,Housing Revenue Account,N/A,Premises-Related Expenditure,502,Energy Costs,5006,Revenue,ELECTRICITY.ELECTRICITY
22-DEC-2022,7020587,15,FARMFOODS,385899,Corporate Strategy,Children's & Education Services,103,Supplies and Services,504,Expenses,5030,Revenue,CATERING.FOOD & BEVERAGES
22-DEC-2022,7020588,135,FRANKS THE FLOORING STORE,367234,"Health, Education, Care and Safeguarding",Children's & Education Services,103,Third Party Payments,505,Other Establishments,5041,Revenue,FURNITURE.SOFT FURNISHINGS
22-DEC-2022,7020588,500,FRANKS THE FLOORING STORE,367234,"Health, Education, Care and Safeguarding",Children's & Education Services,103,Third Party Payments,505,Other Establishments,5041,Revenue,FURNITURE.SOFT FURNISHINGS
22-DEC-2022,7020589,41.74,TRESPASS,385747,"Health, Education, Care and Safeguarding",Children's & Education Services,103,Supplies and Services,504,"Clothing, Uniforms and Laundry",5025,Revenue,SPORTS & PLAYGROUND EQUIPMENT.SPORTS EQUIPMENT
22-DEC-2022,7020590,77.47,GEAR4MUSIC,385737,"Sport, Leisure & Community",Cultural & Related Services,104,Supplies and Services,504,Equipment,5023,Revenue,EDUCATIONAL SUPPLIES.MUSICAL INSTRUMENTS
22-DEC-2022,7020591,22.92,WYNSORS WORLD OF SHOES,385641,Local Environmental Services,Police Services,111,Supplies and Services,504,"Clothing, Uniforms and Laundry",5025,Revenue,SOCIAL CARE.CHILDCARE SERVICES
22-DEC-2022,7020592,191.92,C/GAS,385638,"Health, Education, Care and Safeguarding",Children's & Education Services,103,Premises-Related Expenditure,502,Energy Costs,5006,Revenue,GAS.GAS
22-DEC-2022,7020593,163.62,TTF TYNE TEES FASTENERS,376227,"Sport, Leisure & Community",Cultural & Related Services,104,Supplies and Services,504,Equipment,5023,Revenue,BUILDING MATERIALS.GENERAL MATERIALS
22-DEC-2022,7020594,5.8,CHICKEN JOES LTD T/A LOVE JOES,375810,Commissioning & Asset Management,Children's & Education Services,103,Supplies and Services,504,Equipment,5023,Revenue,CATERING.FOOD & BEVERAGES
22-DEC-2022,7020594,5.8,CHICKEN JOES LTD T/A LOVE JOES,375810,Commissioning & Asset Management,Children's & Education Services,103,Supplies and Services,504,Equipment,5023,Revenue,CATERING.FOOD & BEVERAGES
22-DEC-2022,7020594,5.8,CHICKEN JOES LTD T/A LOVE JOES,375810,Commissioning & Asset Management,Children's & Education Services,103,Supplies and Services,504,Equipment,5023,Revenue,CATERING.FOOD & BEVERAGES
22-DEC-2022,7020594,9,CHICKEN JOES LTD T/A LOVE JOES,375810,Commissioning & Asset Management,Children's & Education Services,103,Supplies and Services,504,Equipment,5023,Revenue,CATERING.FOOD & BEVERAGES
22-DEC-2022,7020594,11.6,CHICKEN JOES LTD T/A LOVE JOES,375810,Commissioning & Asset Management,Children's & Education Services,103,Supplies and Services,504,Equipment,5023,Revenue,CATERING.FOOD & BEVERAGES
22-DEC-2022,7020594,12,CHICKEN JOES LTD T/A LOVE JOES,375810,Commissioning & Asset Management,Children's & Education Services,103,Supplies and Services,504,Equipment,5023,Revenue,CATERING.FOOD & BEVERAGES
22-DEC-2022,7020594,12,CHICKEN JOES LTD T/A LOVE JOES,375810,Commissioning & Asset Management,Children's & Education Services,103,Supplies and Services,504,Equipment,5023,Revenue,CATERING.FOOD & BEVERAGES
22-DEC-2022,7020594,12.8,CHICKEN JOES LTD T/A LOVE JOES,375810,Commissioning & Asset Management,Children's & Education Services,103,Supplies and Services,504,Equipment,5023,Revenue,CATERING.FOOD & BEVERAGES
22-DEC-2022,7020594,21,CHICKEN JOES LTD T/A LOVE JOES,375810,Commissioning & Asset Management,Children's & Education Services,103,Supplies and Services,504,Equipment,5023,Revenue,CATERING.FOOD & BEVERAGES
22-DEC-2022,7020594,23.6,CHICKEN JOES LTD T/A LOVE JOES,375810,Commissioning & Asset Management,Children's & Education Services,103,Supplies and Services,504,Equipment,5023,Revenue,CATERING.FOOD & BEVERAGES
22-DEC-2022,7020594,25,CHICKEN JOES LTD T/A LOVE JOES,375810,Commissioning & Asset Management,Children's & Education Services,103,Supplies and Services,504,Equipment,5023,Revenue,CATERING.FOOD & BEVERAGES
22-DEC-2022,7020594,25,CHICKEN JOES LTD T/A LOVE JOES,375810,Commissioning & Asset Management,Children's & Education Services,103,Supplies and Services,504,Equipment,5023,Revenue,CATERING.FOOD & BEVERAGES
22-DEC-2022,7020594,50,CHICKEN JOES LTD T/A LOVE JOES,375810,Commissioning & Asset Management,Children's & Education Services,103,Supplies and Services,504,Equipment,5023,Revenue,CATERING.FOOD & BEVERAGES
22-DEC-2022,7020594,80,CHICKEN JOES LTD T/A LOVE JOES,375810,Commissioning & Asset Management,Children's & Education Services,103,Supplies and Services,504,Equipment,5023,Revenue,CATERING.FOOD & BEVERAGES
22-DEC-2022,7020594,96,CHICKEN JOES LTD T/A LOVE JOES,375810,Commissioning & Asset Management,Children's & Education Services,103,Supplies and Services,504,Equipment,5023,Revenue,CATERING.FOOD & BEVERAGES
22-DEC-2022,7020594,101.5,CHICKEN JOES LTD T/A LOVE JOES,375810,Commissioning & Asset Management,Children's & Education Services,103,Supplies and Services,504,Equipment,5023,Revenue,CATERING.FOOD & BEVERAGES
22-DEC-2022,7020594,121.8,CHICKEN JOES LTD T/A LOVE JOES,375810,Commissioning & Asset Management,Children's & Education Services,103,Supplies and Services,504,Equipment,5023,Revenue,CATERING.FOOD & BEVERAGES
22-DEC-2022,7020594,121.8,CHICKEN JOES LTD T/A LOVE JOES,375810,Commissioning & Asset Management,Children's & Education Services,103,Supplies and Services,504,Equipment,5023,Revenue,CATERING.FOOD & BEVERAGES
22-DEC-2022,7020594,139.1,CHICKEN JOES LTD T/A LOVE JOES,375810,Commissioning & Asset Management,Children's & Education Services,103,Supplies and Services,504,Equipment,5023,Revenue,CATERING.FOOD & BEVERAGES
22-DEC-2022,7020594,160,CHICKEN JOES LTD T/A LOVE JOES,375810,Commissioning & Asset Management,Children's & Education Services,103,Supplies and Services,504,Equipment,5023,Revenue,CATERING.FOOD & BEVERAGES
22-DEC-2022,7020594,160,CHICKEN JOES LTD T/A LOVE JOES,375810,Commissioning & Asset Management,Children's & Education Services,103,Supplies and Services,504,Equipment,5023,Revenue,CATERING.FOOD & BEVERAGES
22-DEC-2022,7020594,160,CHICKEN JOES LTD T/A LOVE JOES,375810,Commissioning & Asset Management,Children's & Education Services,103,Supplies and Services,504,Equipment,5023,Revenue,CATERING.FOOD & BEVERAGES
22-DEC-2022,7020594,160,CHICKEN JOES LTD T/A LOVE JOES,375810,Commissioning & Asset Management,Children's & Education Services,103,Supplies and Services,504,Equipment,5023,Revenue,CATERING.FOOD & BEVERAGES
22-DEC-2022,7020594,166.92,CHICKEN JOES LTD T/A LOVE JOES,375810,Commissioning & Asset Management,Children's & Education Services,103,Supplies and Services,504,Equipment,5023,Revenue,CATERING.FOOD & BEVERAGES
22-DEC-2022,7020594,166.92,CHICKEN JOES LTD T/A LOVE JOES,375810,Commissioning & Asset Management,Children's & Education Services,103,Supplies and Services,504,Equipment,5023,Revenue,CATERING.FOOD & BEVERAGES
22-DEC-2022,7020594,166.92,CHICKEN JOES LTD T/A LOVE JOES,375810,Commissioning & Asset Management,Children's & Education Services,103,Supplies and Services,504,Equipment,5023,Revenue,CATERING.FOOD & BEVERAGES
22-DEC-2022,7020594,166.92,CHICKEN JOES LTD T/A LOVE JOES,375810,Commissioning & Asset Management,Children's & Education Services,103,Supplies and Services,504,Equipment,5023,Revenue,CATERING.FOOD & BEVERAGES
22-DEC-2022,7020594,166.92,CHICKEN JOES LTD T/A LOVE JOES,375810,Commissioning & Asset Management,Children's & Education Services,103,Supplies and Services,504,Equipment,5023,Revenue,CATERING.FOOD & BEVERAGES
22-DEC-2022,7020594,2.95,CHICKEN JOES LTD T/A LOVE JOES,375810,Commissioning & Asset Management,Children's & Education Services,103,Supplies and Services,504,Equipment,5023,Revenue,CATERING.FOOD & BEVERAGES
22-DEC-2022,7020594,5.8,CHICKEN JOES LTD T/A LOVE JOES,375810,Commissioning & Asset Management,Children's & Education Services,103,Supplies and Services,504,Equipment,5023,Revenue,CATERING.FOOD & BEVERAGES
22-DEC-2022,7020594,8.7,CHICKEN JOES LTD T/A LOVE JOES,375810,Commissioning & Asset Management,Children's & Education Services,103,Supplies and Services,504,Equipment,5023,Revenue,CATERING.FOOD & BEVERAGES
22-DEC-2022,7020594,8.7,CHICKEN JOES LTD T/A LOVE JOES,375810,Commissioning & Asset Management,Children's & Education Services,103,Supplies and Services,504,Equipment,5023,Revenue,CATERING.FOOD & BEVERAGES
22-DEC-2022,7020594,11.6,CHICKEN JOES LTD T/A LOVE JOES,375810,Commissioning & Asset Management,Children's & Education Services,103,Supplies and Services,504,Equipment,5023,Revenue,CATERING.FOOD & BEVERAGES
22-DEC-2022,7020594,11.6,CHICKEN JOES LTD T/A LOVE JOES,375810,Commissioning & Asset Management,Children's & Education Services,103,Supplies and Services,504,Equipment,5023,Revenue,CATERING.FOOD & BEVERAGES
22-DEC-2022,7020594,12.8,CHICKEN JOES LTD T/A LOVE JOES,375810,Commissioning & Asset Management,Children's & Education Services,103,Supplies and Services,504,Equipment,5023,Revenue,CATERING.FOOD & BEVERAGES
22-DEC-2022,7020594,13.91,CHICKEN JOES LTD T/A LOVE JOES,375810,Commissioning & Asset Management,Children's & Education Services,103,Supplies and Services,504,Equipment,5023,Revenue,CATERING.FOOD & BEVERAGES
22-DEC-2022,7020594,21,CHICKEN JOES LTD T/A LOVE JOES,375810,Commissioning & Asset Management,Children's & Education Services,103,Supplies and Services,504,Equipment,5023,Revenue,CATERING.FOOD & BEVERAGES
22-DEC-2022,7020594,21.5,CHICKEN JOES LTD T/A LOVE JOES,375810,Commissioning & Asset Management,Children's & Education Services,103,Supplies and Services,504,Equipment,5023,Revenue,CATERING.FOOD & BEVERAGES
22-DEC-2022,7020594,25,CHICKEN JOES LTD T/A LOVE JOES,375810,Commissioning & Asset Management,Children's & Education Services,103,Supplies and Services,504,Equipment,5023,Revenue,CATERING.FOOD & BEVERAGES
22-DEC-2022,7020594,41.73,CHICKEN JOES LTD T/A LOVE JOES,375810,Commissioning & Asset Management,Children's & Education Services,103,Supplies and Services,504,Equipment,5023,Revenue,CATERING.FOOD & BEVERAGES
22-DEC-2022,7020594,41.73,CHICKEN JOES LTD T/A LOVE JOES,375810,Commissioning & Asset Management,Children's & Education Services,103,Supplies and Services,504,Equipment,5023,Revenue,CATERING.FOOD & BEVERAGES
22-DEC-2022,7020594,41.73,CHICKEN JOES LTD T/A LOVE JOES,375810,Commissioning & Asset Management,Children's & Education Services,103,Supplies and Services,504,Equipment,5023,Revenue,CATERING.FOOD & BEVERAGES
22-DEC-2022,7020594,41.73,CHICKEN JOES LTD T/A LOVE JOES,375810,Commissioning & Asset Management,Children's & Education Services,103,Supplies and Services,504,Equipment,5023,Revenue,CATERING.FOOD & BEVERAGES
22-DEC-2022,7020594,64,CHICKEN JOES LTD T/A LOVE JOES,375810,Commissioning & Asset Management,Children's & Education Services,103,Supplies and Services,504,Equipment,5023,Revenue,CATERING.FOOD & BEVERAGES
22-DEC-2022,7020594,64,CHICKEN JOES LTD T/A LOVE JOES,375810,Commissioning & Asset Management,Children's & Education Services,103,Supplies and Services,504,Equipment,5023,Revenue,CATERING.FOOD & BEVERAGES
22-DEC-2022,7020594,320,CHICKEN JOES LTD T/A LOVE JOES,375810,Commissioning & Asset Management,Children's & Education Services,103,Supplies and Services,504,Equipment,5023,Revenue,CATERING.FOOD & BEVERAGES
22-DEC-2022,7020594,320,CHICKEN JOES LTD T/A LOVE JOES,375810,Commissioning & Asset Management,Children's & Education Services,103,Supplies and Services,504,Equipment,5023,Revenue,CATERING.FOOD & BEVERAGES
22-DEC-2022,7020594,400,CHICKEN JOES LTD T/A LOVE JOES,375810,Commissioning & Asset Management,Children's & Education Services,103,Supplies and Services,504,Equipment,5023,Revenue,CATERING.FOOD & BEVERAGES
22-DEC-2022,7020594,400,CHICKEN JOES LTD T/A LOVE JOES,375810,Commissioning & Asset Management,Children's & Education Services,103,Supplies and Services,504,Equipment,5023,Revenue,CATERING.FOOD & BEVERAGES
22-DEC-2022,7020594,3,CHICKEN JOES LTD T/A LOVE JOES,375810,Commissioning & Asset Management,Children's & Education Services,103,Supplies and Services,504,Equipment,5023,Revenue,CATERING.FOOD & BEVERAGES
22-DEC-2022,7020594,3,CHICKEN JOES LTD T/A LOVE JOES,375810,Commissioning & Asset Management,Children's & Education Services,103,Supplies and Services,504,Equipment,5023,Revenue,CATERING.FOOD & BEVERAGES
22-DEC-2022,7020594,5.8,CHICKEN JOES LTD T/A LOVE JOES,375810,Commissioning & Asset Management,Children's & Education Services,103,Supplies and Services,504,Equipment,5023,Revenue,CATERING.FOOD & BEVERAGES
22-DEC-2022,7020594,5.9,CHICKEN JOES LTD T/A LOVE JOES,375810,Commissioning & Asset Management,Children's & Education Services,103,Supplies and Services,504,Equipment,5023,Revenue,CATERING.FOOD & BEVERAGES
22-DEC-2022,7020594,12.8,CHICKEN JOES LTD T/A LOVE JOES,375810,Commissioning & Asset Management,Children's & Education Services,103,Supplies and Services,504,Equipment,5023,Revenue,CATERING.FOOD & BEVERAGES
22-DEC-2022,7020594,12.8,CHICKEN JOES LTD T/A LOVE JOES,375810,Commissioning & Asset Management,Children's & Education Services,103,Supplies and Services,504,Equipment,5023,Revenue,CATERING.FOOD & BEVERAGES
22-DEC-2022,7020594,50,CHICKEN JOES LTD T/A LOVE JOES,375810,Commissioning & Asset Management,Children's & Education Services,103,Supplies and Services,504,Equipment,5023,Revenue,CATERING.FOOD & BEVERAGES
22-DEC-2022,7020594,80,CHICKEN JOES LTD T/A LOVE JOES,375810,Commissioning & Asset Management,Children's & Education Services,103,Supplies and Services,504,Equipment,5023,Revenue,CATERING.FOOD & BEVERAGES
22-DEC-2022,7020594,80,CHICKEN JOES LTD T/A LOVE JOES,375810,Commissioning & Asset Management,Children's & Education Services,103,Supplies and Services,504,Equipment,5023,Revenue,CATERING.FOOD & BEVERAGES
22-DEC-2022,7020594,160,CHICKEN JOES LTD T/A LOVE JOES,375810,Commissioning & Asset Management,Children's & Education Services,103,Supplies and Services,504,Equipment,5023,Revenue,CATERING.FOOD & BEVERAGES
22-DEC-2022,7020594,160,CHICKEN JOES LTD T/A LOVE JOES,375810,Commissioning & Asset Management,Children's & Education Services,103,Supplies and Services,504,Equipment,5023,Revenue,CATERING.FOOD & BEVERAGES
22-DEC-2022,7020594,160,CHICKEN JOES LTD T/A LOVE JOES,375810,Commissioning & Asset Management,Children's & Education Services,103,Supplies and Services,504,Equipment,5023,Revenue,CATERING.FOOD & BEVERAGES
22-DEC-2022,7020594,240,CHICKEN JOES LTD T/A LOVE JOES,375810,Commissioning & Asset Management,Children's & Education Services,103,Supplies and Services,504,Equipment,5023,Revenue,CATERING.FOOD & BEVERAGES
22-DEC-2022,7020594,11.6,CHICKEN JOES LTD T/A LOVE JOES,375810,Commissioning & Asset Management,Children's & Education Services,103,Supplies and Services,504,Equipment,5023,Revenue,CATERING.FOOD & BEVERAGES
22-DEC-2022,7020594,11.6,CHICKEN JOES LTD T/A LOVE JOES,375810,Commissioning & Asset Management,Children's & Education Services,103,Supplies and Services,504,Equipment,5023,Revenue,CATERING.FOOD & BEVERAGES
22-DEC-2022,7020594,25.6,CHICKEN JOES LTD T/A LOVE JOES,375810,Commissioning & Asset Management,Children's & Education Services,103,Supplies and Services,504,Equipment,5023,Revenue,CATERING.FOOD & BEVERAGES
22-DEC-2022,7020594,160,CHICKEN JOES LTD T/A LOVE JOES,375810,Commissioning & Asset Management,Children's & Education Services,103,Supplies and Services,504,Equipment,5023,Revenue,CATERING.FOOD & BEVERAGES
22-DEC-2022,7020594,160,CHICKEN JOES LTD T/A LOVE JOES,375810,Commissioning & Asset Management,Children's & Education Services,103,Supplies and Services,504,Equipment,5023,Revenue,CATERING.FOOD & BEVERAGES
22-DEC-2022,7020594,29,CHICKEN JOES LTD T/A LOVE JOES,375810,Commissioning & Asset Management,Children's & Education Services,103,Supplies and Services,504,Equipment,5023,Revenue,CATERING.FOOD & BEVERAGES
22-DEC-2022,7020594,32,CHICKEN JOES LTD T/A LOVE JOES,375810,Commissioning & Asset Management,Children's & Education Services,103,Supplies and Services,504,Equipment,5023,Revenue,CATERING.FOOD & BEVERAGES
22-DEC-2022,7020594,160,CHICKEN JOES LTD T/A LOVE JOES,375810,Commissioning & Asset Management,Children's & Education Services,103,Supplies and Services,504,Equipment,5023,Revenue,CATERING.FOOD & BEVERAGES
22-DEC-2022,7020594,240,CHICKEN JOES LTD T/A LOVE JOES,375810,Commissioning & Asset Management,Children's & Education Services,103,Supplies and Services,504,Equipment,5023,Revenue,CATERING.FOOD & BEVERAGES
22-DEC-2022,7020594,2.9,CHICKEN JOES LTD T/A LOVE JOES,375810,Commissioning & Asset Management,Children's & Education Services,103,Supplies and Services,504,Equipment,5023,Revenue,CATERING.FOOD & BEVERAGES
22-DEC-2022,7020594,3,CHICKEN JOES LTD T/A LOVE JOES,375810,Commissioning & Asset Management,Children's & Education Services,103,Supplies and Services,504,Equipment,5023,Revenue,CATERING.FOOD & BEVERAGES
22-DEC-2022,7020594,3,CHICKEN JOES LTD T/A LOVE JOES,375810,Commissioning & Asset Management,Children's & Education Services,103,Supplies and Services,504,Equipment,5023,Revenue,CATERING.FOOD & BEVERAGES
22-DEC-2022,7020594,5.8,CHICKEN JOES LTD T/A LOVE JOES,375810,Commissioning & Asset Management,Children's & Education Services,103,Supplies and Services,504,Equipment,5023,Revenue,CATERING.FOOD & BEVERAGES
22-DEC-2022,7020594,11.8,CHICKEN JOES LTD T/A LOVE JOES,375810,Commissioning & Asset Management,Children's & Education Services,103,Supplies and Services,504,Equipment,5023,Revenue,CATERING.FOOD & BEVERAGES
22-DEC-2022,7020594,12.8,CHICKEN JOES LTD T/A LOVE JOES,375810,Commissioning & Asset Management,Children's & Education Services,103,Supplies and Services,504,Equipment,5023,Revenue,CATERING.FOOD & BEVERAGES
22-DEC-2022,7020594,12.8,CHICKEN JOES LTD T/A LOVE JOES,375810,Commissioning & Asset Management,Children's & Education Services,103,Supplies and Services,504,Equipment,5023,Revenue,CATERING.FOOD & BEVERAGES
22-DEC-2022,7020594,15.3,CHICKEN JOES LTD T/A LOVE JOES,375810,Commissioning & Asset Management,Children's & Education Services,103,Supplies and Services,504,Equipment,5023,Revenue,CATERING.FOOD & BEVERAGES
22-DEC-2022,7020594,21,CHICKEN JOES LTD T/A LOVE JOES,375810,Commissioning & Asset Management,Children's & Education Services,103,Supplies and Services,504,Equipment,5023,Revenue,CATERING.FOOD & BEVERAGES
22-DEC-2022,7020594,45.9,CHICKEN JOES LTD T/A LOVE JOES,375810,Commissioning & Asset Management,Children's & Education Services,103,Supplies and Services,504,Equipment,5023,Revenue,CATERING.FOOD & BEVERAGES
22-DEC-2022,7020594,55.64,CHICKEN JOES LTD T/A LOVE JOES,375810,Commissioning & Asset Management,Children's & Education Services,103,Supplies and Services,504,Equipment,5023,Revenue,CATERING.FOOD & BEVERAGES
22-DEC-2022,7020594,55.64,CHICKEN JOES LTD T/A LOVE JOES,375810,Commissioning & Asset Management,Children's & Education Services,103,Supplies and Services,504,Equipment,5023,Revenue,CATERING.FOOD & BEVERAGES
22-DEC-2022,7020594,55.64,CHICKEN JOES LTD T/A LOVE JOES,375810,Commissioning & Asset Management,Children's & Education Services,103,Supplies and Services,504,Equipment,5023,Revenue,CATERING.FOOD & BEVERAGES
22-DEC-2022,7020594,55.64,CHICKEN JOES LTD T/A LOVE JOES,375810,Commissioning & Asset Management,Children's & Education Services,103,Supplies and Services,504,Equipment,5023,Revenue,CATERING.FOOD & BEVERAGES
22-DEC-2022,7020594,80,CHICKEN JOES LTD T/A LOVE JOES,375810,Commissioning & Asset Management,Children's & Education Services,103,Supplies and Services,504,Equipment,5023,Revenue,CATERING.FOOD & BEVERAGES
22-DEC-2022,7020594,160,CHICKEN JOES LTD T/A LOVE JOES,375810,Commissioning & Asset Management,Children's & Education Services,103,Supplies and Services,504,Equipment,5023,Revenue,CATERING.FOOD & BEVERAGES
22-DEC-2022,7020594,7.65,CHICKEN JOES LTD T/A LOVE JOES,375810,Commissioning & Asset Management,Children's & Education Services,103,Supplies and Services,504,Equipment,5023,Revenue,CATERING.FOOD & BEVERAGES
22-DEC-2022,7020594,13.83,CHICKEN JOES LTD T/A LOVE JOES,375810,Commissioning & Asset Management,Children's & Education Services,103,Supplies and Services,504,Equipment,5023,Revenue,CATERING.FOOD & BEVERAGES
22-DEC-2022,7020594,13.83,CHICKEN JOES LTD T/A LOVE JOES,375810,Commissioning & Asset Management,Children's & Education Services,103,Supplies and Services,504,Equipment,5023,Revenue,CATERING.FOOD & BEVERAGES
22-DEC-2022,7020594,13.91,CHICKEN JOES LTD T/A LOVE JOES,375810,Commissioning & Asset Management,Children's & Education Services,103,Supplies and Services,504,Equipment,5023,Revenue,CATERING.FOOD & BEVERAGES
22-DEC-2022,7020594,13.91,CHICKEN JOES LTD T/A LOVE JOES,375810,Commissioning & Asset Management,Children's & Education Services,103,Supplies and Services,504,Equipment,5023,Revenue,CATERING.FOOD & BEVERAGES
22-DEC-2022,7020594,13.91,CHICKEN JOES LTD T/A LOVE JOES,375810,Commissioning & Asset Management,Children's & Education Services,103,Supplies and Services,504,Equipment,5023,Revenue,CATERING.FOOD & BEVERAGES
22-DEC-2022,7020594,13.91,CHICKEN JOES LTD T/A LOVE JOES,375810,Commissioning & Asset Management,Children's & Education Services,103,Supplies and Services,504,Equipment,5023,Revenue,CATERING.FOOD & BEVERAGES
22-DEC-2022,7020594,15.3,CHICKEN JOES LTD T/A LOVE JOES,375810,Commissioning & Asset Management,Children's & Education Services,103,Supplies and Services,504,Equipment,5023,Revenue,CATERING.FOOD & BEVERAGES
22-DEC-2022,7020594,15.3,CHICKEN JOES LTD T/A LOVE JOES,375810,Commissioning & Asset Management,Children's & Education Services,103,Supplies and Services,504,Equipment,5023,Revenue,CATERING.FOOD & BEVERAGES
22-DEC-2022,7020594,21.5,CHICKEN JOES LTD T/A LOVE JOES,375810,Commissioning & Asset Management,Children's & Education Services,103,Supplies and Services,504,Equipment,5023,Revenue,CATERING.FOOD & BEVERAGES
22-DEC-2022,7020594,23.2,CHICKEN JOES LTD T/A LOVE JOES,375810,Commissioning & Asset Management,Children's & Education Services,103,Supplies and Services,504,Equipment,5023,Revenue,CATERING.FOOD & BEVERAGES
22-DEC-2022,7020594,24,CHICKEN JOES LTD T/A LOVE JOES,375810,Commissioning & Asset Management,Children's & Education Services,103,Supplies and Services,504,Equipment,5023,Revenue,CATERING.FOOD & BEVERAGES
22-DEC-2022,7020594,25,CHICKEN JOES LTD T/A LOVE JOES,375810,Commissioning & Asset Management,Children's & Education Services,103,Supplies and Services,504,Equipment,5023,Revenue,CATERING.FOOD & BEVERAGES
22-DEC-2022,7020594,25,CHICKEN JOES LTD T/A LOVE JOES,375810,Commissioning & Asset Management,Children's & Education Services,103,Supplies and Services,504,Equipment,5023,Revenue,CATERING.FOOD & BEVERAGES
22-DEC-2022,7020594,27.82,CHICKEN JOES LTD T/A LOVE JOES,375810,Commissioning & Asset Management,Children's & Education Services,103,Supplies and Services,504,Equipment,5023,Revenue,CATERING.FOOD & BEVERAGES
22-DEC-2022,7020594,27.82,CHICKEN JOES LTD T/A LOVE JOES,375810,Commissioning & Asset Management,Children's & Education Services,103,Supplies and Services,504,Equipment,5023,Revenue,CATERING.FOOD & BEVERAGES
22-DEC-2022,7020594,41.73,CHICKEN JOES LTD T/A LOVE JOES,375810,Commissioning & Asset Management,Children's & Education Services,103,Supplies and Services,504,Equipment,5023,Revenue,CATERING.FOOD & BEVERAGES
22-DEC-2022,7020594,64,CHICKEN JOES LTD T/A LOVE JOES,375810,Commissioning & Asset Management,Children's & Education Services,103,Supplies and Services,504,Equipment,5023,Revenue,CATERING.FOOD & BEVERAGES
22-DEC-2022,7020594,64,CHICKEN JOES LTD T/A LOVE JOES,375810,Commissioning & Asset Management,Children's & Education Services,103,Supplies and Services,504,Equipment,5023,Revenue,CATERING.FOOD & BEVERAGES
22-DEC-2022,7020594,800,CHICKEN JOES LTD T/A LOVE JOES,375810,Commissioning & Asset Management,Children's & Education Services,103,Supplies and Services,504,Equipment,5023,Revenue,CATERING.FOOD & BEVERAGES
22-DEC-2022,7020594,800,CHICKEN JOES LTD T/A LOVE JOES,375810,Commissioning & Asset Management,Children's & Education Services,103,Supplies and Services,504,Equipment,5023,Revenue,CATERING.FOOD & BEVERAGES
22-DEC-2022,7020594,880,CHICKEN JOES LTD T/A LOVE JOES,375810,Commissioning & Asset Management,Children's & Education Services,103,Supplies and Services,504,Equipment,5023,Revenue,CATERING.FOOD & BEVERAGES
22-DEC-2022,7020594,12.8,CHICKEN JOES LTD T/A LOVE JOES,375810,Commissioning & Asset Management,Children's & Education Services,103,Supplies and Services,504,Equipment,5023,Revenue,CATERING.FOOD & BEVERAGES
22-DEC-2022,7020594,12.8,CHICKEN JOES LTD T/A LOVE JOES,375810,Commissioning & Asset Management,Children's & Education Services,103,Supplies and Services,504,Equipment,5023,Revenue,CATERING.FOOD & BEVERAGES
22-DEC-2022,7020594,13.83,CHICKEN JOES LTD T/A LOVE JOES,375810,Commissioning & Asset Management,Children's & Education Services,103,Supplies and Services,504,Equipment,5023,Revenue,CATERING.FOOD & BEVERAGES
22-DEC-2022,7020594,13.83,CHICKEN JOES LTD T/A LOVE JOES,375810,Commissioning & Asset Management,Children's & Education Services,103,Supplies and Services,504,Equipment,5023,Revenue,CATERING.FOOD & BEVERAGES
22-DEC-2022,7020594,25,CHICKEN JOES LTD T/A LOVE JOES,375810,Commissioning & Asset Management,Children's & Education Services,103,Supplies and Services,504,Equipment,5023,Revenue,CATERING.FOOD & BEVERAGES
22-DEC-2022,7020594,27.82,CHICKEN JOES LTD T/A LOVE JOES,375810,Commissioning & Asset Management,Children's & Education Services,103,Supplies and Services,504,Equipment,5023,Revenue,CATERING.FOOD & BEVERAGES
22-DEC-2022,7020594,27.82,CHICKEN JOES LTD T/A LOVE JOES,375810,Commissioning & Asset Management,Children's & Education Services,103,Supplies and Services,504,Equipment,5023,Revenue,CATERING.FOOD & BEVERAGES
22-DEC-2022,7020594,41.73,CHICKEN JOES LTD T/A LOVE JOES,375810,Commissioning & Asset Management,Children's & Education Services,103,Supplies and Services,504,Equipment,5023,Revenue,CATERING.FOOD & BEVERAGES
22-DEC-2022,7020594,50,CHICKEN JOES LTD T/A LOVE JOES,375810,Commissioning & Asset Management,Children's & Education Services,103,Supplies and Services,504,Equipment,5023,Revenue,CATERING.FOOD & BEVERAGES
22-DEC-2022,7020594,69.55,CHICKEN JOES LTD T/A LOVE JOES,375810,Commissioning & Asset Management,Children's & Education Services,103,Supplies and Services,504,Equipment,5023,Revenue,CATERING.FOOD & BEVERAGES
22-DEC-2022,7020594,69.55,CHICKEN JOES LTD T/A LOVE JOES,375810,Commissioning & Asset Management,Children's & Education Services,103,Supplies and Services,504,Equipment,5023,Revenue,CATERING.FOOD & BEVERAGES
22-DEC-2022,7020594,80,CHICKEN JOES LTD T/A LOVE JOES,375810,Commissioning & Asset Management,Children's & Education Services,103,Supplies and Services,504,Equipment,5023,Revenue,CATERING.FOOD & BEVERAGES
22-DEC-2022,7020594,110.64,CHICKEN JOES LTD T/A LOVE JOES,375810,Commissioning & Asset Management,Children's & Education Services,103,Supplies and Services,504,Equipment,5023,Revenue,CATERING.FOOD & BEVERAGES
22-DEC-2022,7020594,240,CHICKEN JOES LTD T/A LOVE JOES,375810,Commissioning & Asset Management,Children's & Education Services,103,Supplies and Services,504,Equipment,5023,Revenue,CATERING.FOOD & BEVERAGES
22-DEC-2022,7020594,320,CHICKEN JOES LTD T/A LOVE JOES,375810,Commissioning & Asset Management,Children's & Education Services,103,Supplies and Services,504,Equipment,5023,Revenue,CATERING.FOOD & BEVERAGES
22-DEC-2022,7020594,5.9,CHICKEN JOES LTD T/A LOVE JOES,375810,Commissioning & Asset Management,Children's & Education Services,103,Supplies and Services,504,Equipment,5023,Revenue,CATERING.FOOD & BEVERAGES
22-DEC-2022,7020594,6,CHICKEN JOES LTD T/A LOVE JOES,375810,Commissioning & Asset Management,Children's & Education Services,103,Supplies and Services,504,Equipment,5023,Revenue,CATERING.FOOD & BEVERAGES
22-DEC-2022,7020594,7.65,CHICKEN JOES LTD T/A LOVE JOES,375810,Commissioning & Asset Management,Children's & Education Services,103,Supplies and Services,504,Equipment,5023,Revenue,CATERING.FOOD & BEVERAGES
22-DEC-2022,7020594,11.6,CHICKEN JOES LTD T/A LOVE JOES,375810,Commissioning & Asset Management,Children's & Education Services,103,Supplies and Services,504,Equipment,5023,Revenue,CATERING.FOOD & BEVERAGES
22-DEC-2022,7020594,12.8,CHICKEN JOES LTD T/A LOVE JOES,375810,Commissioning & Asset Management,Children's & Education Services,103,Supplies and Services,504,Equipment,5023,Revenue,CATERING.FOOD & BEVERAGES
22-DEC-2022,7020594,13.83,CHICKEN JOES LTD T/A LOVE JOES,375810,Commissioning & Asset Management,Children's & Education Services,103,Supplies and Services,504,Equipment,5023,Revenue,CATERING.FOOD & BEVERAGES
22-DEC-2022,7020594,13.91,CHICKEN JOES LTD T/A LOVE JOES,375810,Commissioning & Asset Management,Children's & Education Services,103,Supplies and Services,504,Equipment,5023,Revenue,CATERING.FOOD & BEVERAGES
22-DEC-2022,7020594,14.5,CHICKEN JOES LTD T/A LOVE JOES,375810,Commissioning & Asset Management,Children's & Education Services,103,Supplies and Services,504,Equipment,5023,Revenue,CATERING.FOOD & BEVERAGES
22-DEC-2022,7020594,15,CHICKEN JOES LTD T/A LOVE JOES,375810,Commissioning & Asset Management,Children's & Education Services,103,Supplies and Services,504,Equipment,5023,Revenue,CATERING.FOOD & BEVERAGES
22-DEC-2022,7020594,17.4,CHICKEN JOES LTD T/A LOVE JOES,375810,Commissioning & Asset Management,Children's & Education Services,103,Supplies and Services,504,Equipment,5023,Revenue,CATERING.FOOD & BEVERAGES
22-DEC-2022,7020594,21,CHICKEN JOES LTD T/A LOVE JOES,375810,Commissioning & Asset Management,Children's & Education Services,103,Supplies and Services,504,Equipment,5023,Revenue,CATERING.FOOD & BEVERAGES
22-DEC-2022,7020594,21.5,CHICKEN JOES LTD T/A LOVE JOES,375810,Commissioning & Asset Management,Children's & Education Services,103,Supplies and Services,504,Equipment,5023,Revenue,CATERING.FOOD & BEVERAGES
22-DEC-2022,7020594,21.5,CHICKEN JOES LTD T/A LOVE JOES,375810,Commissioning & Asset Management,Children's & Education Services,103,Supplies and Services,504,Equipment,5023,Revenue,CATERING.FOOD & BEVERAGES
22-DEC-2022,7020594,27.82,CHICKEN JOES LTD T/A LOVE JOES,375810,Commissioning & Asset Management,Children's & Education Services,103,Supplies and Services,504,Equipment,5023,Revenue,CATERING.FOOD & BEVERAGES
22-DEC-2022,7020594,32,CHICKEN JOES LTD T/A LOVE JOES,375810,Commissioning & Asset Management,Children's & Education Services,103,Supplies and Services,504,Equipment,5023,Revenue,CATERING.FOOD & BEVERAGES
22-DEC-2022,7020594,34.8,CHICKEN JOES LTD T/A LOVE JOES,375810,Commissioning & Asset Management,Children's & Education Services,103,Supplies and Services,504,Equipment,5023,Revenue,CATERING.FOOD & BEVERAGES
22-DEC-2022,7020594,34.8,CHICKEN JOES LTD T/A LOVE JOES,375810,Commissioning & Asset Management,Children's & Education Services,103,Supplies and Services,504,Equipment,5023,Revenue,CATERING.FOOD & BEVERAGES
22-DEC-2022,7020594,41.73,CHICKEN JOES LTD T/A LOVE JOES,375810,Commissioning & Asset Management,Children's & Education Services,103,Supplies and Services,504,Equipment,5023,Revenue,CATERING.FOOD & BEVERAGES
22-DEC-2022,7020594,50,CHICKEN JOES LTD T/A LOVE JOES,375810,Commissioning & Asset Management,Children's & Education Services,103,Supplies and Services,504,Equipment,5023,Revenue,CATERING.FOOD & BEVERAGES
22-DEC-2022,7020594,75,CHICKEN JOES LTD T/A LOVE JOES,375810,Commissioning & Asset Management,Children's & Education Services,103,Supplies and Services,504,Equipment,5023,Revenue,CATERING.FOOD & BEVERAGES
22-DEC-2022,7020594,75,CHICKEN JOES LTD T/A LOVE JOES,375810,Commissioning & Asset Management,Children's & Education Services,103,Supplies and Services,504,Equipment,5023,Revenue,CATERING.FOOD & BEVERAGES
22-DEC-2022,7020594,75,CHICKEN JOES LTD T/A LOVE JOES,375810,Commissioning & Asset Management,Children's & Education Services,103,Supplies and Services,504,Equipment,5023,Revenue,CATERING.FOOD & BEVERAGES
22-DEC-2022,7020594,800,CHICKEN JOES LTD T/A LOVE JOES,375810,Commissioning & Asset Management,Children's & Education Services,103,Supplies and Services,504,Equipment,5023,Revenue,CATERING.FOOD & BEVERAGES
22-DEC-2022,7020594,880,CHICKEN JOES LTD T/A LOVE JOES,375810,Commissioning & Asset Management,Children's & Education Services,103,Supplies and Services,504,Equipment,5023,Revenue,CATERING.FOOD & BEVERAGES
22-DEC-2022,7020594,960,CHICKEN JOES LTD T/A LOVE JOES,375810,Commissioning & Asset Management,Children's & Education Services,103,Supplies and Services,504,Equipment,5023,Revenue,CATERING.FOOD & BEVERAGES
22-DEC-2022,7020594,960,CHICKEN JOES LTD T/A LOVE JOES,375810,Commissioning & Asset Management,Children's & Education Services,103,Supplies and Services,504,Equipment,5023,Revenue,CATERING.FOOD & BEVERAGES
22-DEC-2022,7020594,12.8,CHICKEN JOES LTD T/A LOVE JOES,375810,Commissioning & Asset Management,Children's & Education Services,103,Supplies and Services,504,Equipment,5023,Revenue,CATERING.FOOD & BEVERAGES
22-DEC-2022,7020594,21,CHICKEN JOES LTD T/A LOVE JOES,375810,Commissioning & Asset Management,Children's & Education Services,103,Supplies and Services,504,Equipment,5023,Revenue,CATERING.FOOD & BEVERAGES
22-DEC-2022,7020594,128,CHICKEN JOES LTD T/A LOVE JOES,375810,Commissioning & Asset Management,Children's & Education Services,103,Supplies and Services,504,Equipment,5023,Revenue,CATERING.FOOD & BEVERAGES
22-DEC-2022,7020594,27.82,CHICKEN JOES LTD T/A LOVE JOES,375810,Commissioning & Asset Management,Children's & Education Services,103,Supplies and Services,504,Equipment,5023,Revenue,CATERING.FOOD & BEVERAGES
22-DEC-2022,7020594,27.82,CHICKEN JOES LTD T/A LOVE JOES,375810,Commissioning & Asset Management,Children's & Education Services,103,Supplies and Services,504,Equipment,5023,Revenue,CATERING.FOOD & BEVERAGES
22-DEC-2022,7020594,64,CHICKEN JOES LTD T/A LOVE JOES,375810,Commissioning & Asset Management,Children's & Education Services,103,Supplies and Services,504,Equipment,5023,Revenue,CATERING.FOOD & BEVERAGES
22-DEC-2022,7020594,80,CHICKEN JOES LTD T/A LOVE JOES,375810,Commissioning & Asset Management,Children's & Education Services,103,Supplies and Services,504,Equipment,5023,Revenue,CATERING.FOOD & BEVERAGES
22-DEC-2022,7020594,8.7,CHICKEN JOES LTD T/A LOVE JOES,375810,Commissioning & Asset Management,Children's & Education Services,103,Supplies and Services,504,Equipment,5023,Revenue,CATERING.FOOD & BEVERAGES
22-DEC-2022,7020594,9,CHICKEN JOES LTD T/A LOVE JOES,375810,Commissioning & Asset Management,Children's & Education Services,103,Supplies and Services,504,Equipment,5023,Revenue,CATERING.FOOD & BEVERAGES
22-DEC-2022,7020594,11.8,CHICKEN JOES LTD T/A LOVE JOES,375810,Commissioning & Asset Management,Children's & Education Services,103,Supplies and Services,504,Equipment,5023,Revenue,CATERING.FOOD & BEVERAGES
22-DEC-2022,7020594,21.5,CHICKEN JOES LTD T/A LOVE JOES,375810,Commissioning & Asset Management,Children's & Education Services,103,Supplies and Services,504,Equipment,5023,Revenue,CATERING.FOOD & BEVERAGES
22-DEC-2022,7020594,23.2,CHICKEN JOES LTD T/A LOVE JOES,375810,Commissioning & Asset Management,Children's & Education Services,103,Supplies and Services,504,Equipment,5023,Revenue,CATERING.FOOD & BEVERAGES
22-DEC-2022,7020594,160,CHICKEN JOES LTD T/A LOVE JOES,375810,Commissioning & Asset Management,Children's & Education Services,103,Supplies and Services,504,Equipment,5023,Revenue,CATERING.FOOD & BEVERAGES
22-DEC-2022,7020595,32.38,PASTA KING (UK) LIMITED,366311,Commissioning & Asset Management,Children's & Education Services,103,Supplies and Services,504,Equipment,5023,Revenue,CATERING.FOOD & BEVERAGES
22-DEC-2022,7020595,33.6,PASTA KING (UK) LIMITED,366311,Commissioning & Asset Management,Children's & Education Services,103,Supplies and Services,504,Equipment,5023,Revenue,CATERING.FOOD & BEVERAGES
22-DEC-2022,7020595,33.6,PASTA KING (UK) LIMITED,366311,Commissioning & Asset Management,Children's & Education Services,103,Supplies and Services,504,Equipment,5023,Revenue,CATERING.FOOD & BEVERAGES
22-DEC-2022,7020595,35.4,PASTA KING (UK) LIMITED,366311,Commissioning & Asset Management,Children's & Education Services,103,Supplies and Services,504,Equipment,5023,Revenue,CATERING.FOOD & BEVERAGES
22-DEC-2022,7020595,36.48,PASTA KING (UK) LIMITED,366311,Commissioning & Asset Management,Children's & Education Services,103,Supplies and Services,504,Equipment,5023,Revenue,CATERING.FOOD & BEVERAGES
22-DEC-2022,7020595,36.98,PASTA KING (UK) LIMITED,366311,Commissioning & Asset Management,Children's & Education Services,103,Supplies and Services,504,Equipment,5023,Revenue,CATERING.FOOD & BEVERAGES
22-DEC-2022,7020595,37.04,PASTA KING (UK) LIMITED,366311,Commissioning & Asset Management,Children's & Education Services,103,Supplies and Services,504,Equipment,5023,Revenue,CATERING.FOOD & BEVERAGES
22-DEC-2022,7020595,40,PASTA KING (UK) LIMITED,366311,Commissioning & Asset Management,Children's & Education Services,103,Supplies and Services,504,Equipment,5023,Revenue,CATERING.FOOD & BEVERAGES
22-DEC-2022,7020595,40,PASTA KING (UK) LIMITED,366311,Commissioning & Asset Management,Children's & Education Services,103,Supplies and Services,504,Equipment,5023,Revenue,CATERING.FOOD & BEVERAGES
22-DEC-2022,7020595,40,PASTA KING (UK) LIMITED,366311,Commissioning & Asset Management,Children's & Education Services,103,Supplies and Services,504,Equipment,5023,Revenue,CATERING.FOOD & BEVERAGES
22-DEC-2022,7020595,41.64,PASTA KING (UK) LIMITED,366311,Commissioning & Asset Management,Children's & Education Services,103,Supplies and Services,504,Equipment,5023,Revenue,CATERING.FOOD & BEVERAGES
22-DEC-2022,7020595,41.64,PASTA KING (UK) LIMITED,366311,Commissioning & Asset Management,Children's & Education Services,103,Supplies and Services,504,Equipment,5023,Revenue,CATERING.FOOD & BEVERAGES
22-DEC-2022,7020595,73.96,PASTA KING (UK) LIMITED,366311,Commissioning & Asset Management,Children's & Education Services,103,Supplies and Services,504,Equipment,5023,Revenue,CATERING.FOOD & BEVERAGES
22-DEC-2022,7020595,123.24,PASTA KING (UK) LIMITED,366311,Commissioning & Asset Management,Children's & Education Services,103,Supplies and Services,504,Equipment,5023,Revenue,CATERING.FOOD & BEVERAGES
22-DEC-2022,7020595,40,PASTA KING (UK) LIMITED,366311,Commissioning & Asset Management,Children's & Education Services,103,Supplies and Services,504,Equipment,5023,Revenue,CATERING.FOOD & BEVERAGES
22-DEC-2022,7020595,40,PASTA KING (UK) LIMITED,366311,Commissioning & Asset Management,Children's & Education Services,103,Supplies and Services,504,Equipment,5023,Revenue,CATERING.FOOD & BEVERAGES
22-DEC-2022,7020595,41.64,PASTA KING (UK) LIMITED,366311,Commissioning & Asset Management,Children's & Education Services,103,Supplies and Services,504,Equipment,5023,Revenue,CATERING.FOOD & BEVERAGES
22-DEC-2022,7020595,41.64,PASTA KING (UK) LIMITED,366311,Commissioning & Asset Management,Children's & Education Services,103,Supplies and Services,504,Equipment,5023,Revenue,CATERING.FOOD & BEVERAGES
22-DEC-2022,7020595,82.36,PASTA KING (UK) LIMITED,366311,Commissioning & Asset Management,Children's & Education Services,103,Supplies and Services,504,Equipment,5023,Revenue,CATERING.FOOD & BEVERAGES
22-DEC-2022,7020595,102.95,PASTA KING (UK) LIMITED,366311,Commissioning & Asset Management,Children's & Education Services,103,Supplies and Services,504,Equipment,5023,Revenue,CATERING.FOOD & BEVERAGES
22-DEC-2022,7020595,110.94,PASTA KING (UK) LIMITED,366311,Commissioning & Asset Management,Children's & Education Services,103,Supplies and Services,504,Equipment,5023,Revenue,CATERING.FOOD & BEVERAGES
22-DEC-2022,7020595,110.94,PASTA KING (UK) LIMITED,366311,Commissioning & Asset Management,Children's & Education Services,103,Supplies and Services,504,Equipment,5023,Revenue,CATERING.FOOD & BEVERAGES
22-DEC-2022,7020595,36.98,PASTA KING (UK) LIMITED,366311,Commissioning & Asset Management,Children's & Education Services,103,Supplies and Services,504,Equipment,5023,Revenue,CATERING.FOOD & BEVERAGES
22-DEC-2022,7020595,37.92,PASTA KING (UK) LIMITED,366311,Commissioning & Asset Management,Children's & Education Services,103,Supplies and Services,504,Equipment,5023,Revenue,CATERING.FOOD & BEVERAGES
22-DEC-2022,7020595,38.2,PASTA KING (UK) LIMITED,366311,Commissioning & Asset Management,Children's & Education Services,103,Supplies and Services,504,Equipment,5023,Revenue,CATERING.FOOD & BEVERAGES
22-DEC-2022,7020595,38.2,PASTA KING (UK) LIMITED,366311,Commissioning & Asset Management,Children's & Education Services,103,Supplies and Services,504,Equipment,5023,Revenue,CATERING.FOOD & BEVERAGES
22-DEC-2022,7020595,40,PASTA KING (UK) LIMITED,366311,Commissioning & Asset Management,Children's & Education Services,103,Supplies and Services,504,Equipment,5023,Revenue,CATERING.FOOD & BEVERAGES
22-DEC-2022,7020595,40,PASTA KING (UK) LIMITED,366311,Commissioning & Asset Management,Children's & Education Services,103,Supplies and Services,504,Equipment,5023,Revenue,CATERING.FOOD & BEVERAGES
22-DEC-2022,7020595,40,PASTA KING (UK) LIMITED,366311,Commissioning & Asset Management,Children's & Education Services,103,Supplies and Services,504,Equipment,5023,Revenue,CATERING.FOOD & BEVERAGES
22-DEC-2022,7020595,41.08,PASTA KING (UK) LIMITED,366311,Commissioning & Asset Management,Children's & Education Services,103,Supplies and Services,504,Equipment,5023,Revenue,CATERING.FOOD & BEVERAGES
22-DEC-2022,7020595,41.08,PASTA KING (UK) LIMITED,366311,Commissioning & Asset Management,Children's & Education Services,103,Supplies and Services,504,Equipment,5023,Revenue,CATERING.FOOD & BEVERAGES
22-DEC-2022,7020595,41.64,PASTA KING (UK) LIMITED,366311,Commissioning & Asset Management,Children's & Education Services,103,Supplies and Services,504,Equipment,5023,Revenue,CATERING.FOOD & BEVERAGES
22-DEC-2022,7020595,59.51,PASTA KING (UK) LIMITED,366311,Commissioning & Asset Management,Children's & Education Services,103,Supplies and Services,504,Equipment,5023,Revenue,CATERING.FOOD & BEVERAGES
22-DEC-2022,7020595,59.51,PASTA KING (UK) LIMITED,366311,Commissioning & Asset Management,Children's & Education Services,103,Supplies and Services,504,Equipment,5023,Revenue,CATERING.FOOD & BEVERAGES
22-DEC-2022,7020595,61.77,PASTA KING (UK) LIMITED,366311,Commissioning & Asset Management,Children's & Education Services,103,Supplies and Services,504,Equipment,5023,Revenue,CATERING.FOOD & BEVERAGES
22-DEC-2022,7020595,73.96,PASTA KING (UK) LIMITED,366311,Commissioning & Asset Management,Children's & Education Services,103,Supplies and Services,504,Equipment,5023,Revenue,CATERING.FOOD & BEVERAGES
22-DEC-2022,7020595,82.36,PASTA KING (UK) LIMITED,366311,Commissioning & Asset Management,Children's & Education Services,103,Supplies and Services,504,Equipment,5023,Revenue,CATERING.FOOD & BEVERAGES
22-DEC-2022,7020595,102.95,PASTA KING (UK) LIMITED,366311,Commissioning & Asset Management,Children's & Education Services,103,Supplies and Services,504,Equipment,5023,Revenue,CATERING.FOOD & BEVERAGES
22-DEC-2022,7020595,123.54,PASTA KING (UK) LIMITED,366311,Commissioning & Asset Management,Children's & Education Services,103,Supplies and Services,504,Equipment,5023,Revenue,CATERING.FOOD & BEVERAGES
22-DEC-2022,7020595,40,PASTA KING (UK) LIMITED,366311,Commissioning & Asset Management,Children's & Education Services,103,Supplies and Services,504,Equipment,5023,Revenue,CATERING.FOOD & BEVERAGES
22-DEC-2022,7020595,144.13,PASTA KING (UK) LIMITED,366311,Commissioning & Asset Management,Children's & Education Services,103,Supplies and Services,504,Equipment,5023,Revenue,CATERING.FOOD & BEVERAGES
22-DEC-2022,7020595,40,PASTA KING (UK) LIMITED,366311,Commissioning & Asset Management,Children's & Education Services,103,Supplies and Services,504,Equipment,5023,Revenue,CATERING.FOOD & BEVERAGES
22-DEC-2022,7020595,41.64,PASTA KING (UK) LIMITED,366311,Commissioning & Asset Management,Children's & Education Services,103,Supplies and Services,504,Equipment,5023,Revenue,CATERING.FOOD & BEVERAGES
22-DEC-2022,7020595,41.64,PASTA KING (UK) LIMITED,366311,Commissioning & Asset Management,Children's & Education Services,103,Supplies and Services,504,Equipment,5023,Revenue,CATERING.FOOD & BEVERAGES
22-DEC-2022,7020595,82.36,PASTA KING (UK) LIMITED,366311,Commissioning & Asset Management,Children's & Education Services,103,Supplies and Services,504,Equipment,5023,Revenue,CATERING.FOOD & BEVERAGES
22-DEC-2022,7020595,123.54,PASTA KING (UK) LIMITED,366311,Commissioning & Asset Management,Children's & Education Services,103,Supplies and Services,504,Equipment,5023,Revenue,CATERING.FOOD & BEVERAGES
22-DEC-2022,7020595,38.2,PASTA KING (UK) LIMITED,366311,Commissioning & Asset Management,Children's & Education Services,103,Supplies and Services,504,Equipment,5023,Revenue,CATERING.FOOD & BEVERAGES
22-DEC-2022,7020595,38.2,PASTA KING (UK) LIMITED,366311,Commissioning & Asset Management,Children's & Education Services,103,Supplies and Services,504,Equipment,5023,Revenue,CATERING.FOOD & BEVERAGES
22-DEC-2022,7020595,40,PASTA KING (UK) LIMITED,366311,Commissioning & Asset Management,Children's & Education Services,103,Supplies and Services,504,Equipment,5023,Revenue,CATERING.FOOD & BEVERAGES
22-DEC-2022,7020595,40,PASTA KING (UK) LIMITED,366311,Commissioning & Asset Management,Children's & Education Services,103,Supplies and Services,504,Equipment,5023,Revenue,CATERING.FOOD & BEVERAGES
22-DEC-2022,7020595,41.64,PASTA KING (UK) LIMITED,366311,Commissioning & Asset Management,Children's & Education Services,103,Supplies and Services,504,Equipment,5023,Revenue,CATERING.FOOD & BEVERAGES
22-DEC-2022,7020595,73.96,PASTA KING (UK) LIMITED,366311,Commissioning & Asset Management,Children's & Education Services,103,Supplies and Services,504,Equipment,5023,Revenue,CATERING.FOOD & BEVERAGES
22-DEC-2022,7020595,73.96,PASTA KING (UK) LIMITED,366311,Commissioning & Asset Management,Children's & Education Services,103,Supplies and Services,504,Equipment,5023,Revenue,CATERING.FOOD & BEVERAGES
22-DEC-2022,7020595,80,PASTA KING (UK) LIMITED,366311,Commissioning & Asset Management,Children's & Education Services,103,Supplies and Services,504,Equipment,5023,Revenue,CATERING.FOOD & BEVERAGES
22-DEC-2022,7020595,80,PASTA KING (UK) LIMITED,366311,Commissioning & Asset Management,Children's & Education Services,103,Supplies and Services,504,Equipment,5023,Revenue,CATERING.FOOD & BEVERAGES
22-DEC-2022,7020595,82.36,PASTA KING (UK) LIMITED,366311,Commissioning & Asset Management,Children's & Education Services,103,Supplies and Services,504,Equipment,5023,Revenue,CATERING.FOOD & BEVERAGES
22-DEC-2022,7020595,83.28,PASTA KING (UK) LIMITED,366311,Commissioning & Asset Management,Children's & Education Services,103,Supplies and Services,504,Equipment,5023,Revenue,CATERING.FOOD & BEVERAGES
22-DEC-2022,7020595,83.28,PASTA KING (UK) LIMITED,366311,Commissioning & Asset Management,Children's & Education Services,103,Supplies and Services,504,Equipment,5023,Revenue,CATERING.FOOD & BEVERAGES
22-DEC-2022,7020595,102.95,PASTA KING (UK) LIMITED,366311,Commissioning & Asset Management,Children's & Education Services,103,Supplies and Services,504,Equipment,5023,Revenue,CATERING.FOOD & BEVERAGES
22-DEC-2022,7020595,114.6,PASTA KING (UK) LIMITED,366311,Commissioning & Asset Management,Children's & Education Services,103,Supplies and Services,504,Equipment,5023,Revenue,CATERING.FOOD & BEVERAGES
22-DEC-2022,7020595,114.6,PASTA KING (UK) LIMITED,366311,Commissioning & Asset Management,Children's & Education Services,103,Supplies and Services,504,Equipment,5023,Revenue,CATERING.FOOD & BEVERAGES
22-DEC-2022,7020595,40,PASTA KING (UK) LIMITED,366311,Commissioning & Asset Management,Children's & Education Services,103,Supplies and Services,504,Equipment,5023,Revenue,CATERING.FOOD & BEVERAGES
22-DEC-2022,7020595,40,PASTA KING (UK) LIMITED,366311,Commissioning & Asset Management,Children's & Education Services,103,Supplies and Services,504,Equipment,5023,Revenue,CATERING.FOOD & BEVERAGES
22-DEC-2022,7020595,41.08,PASTA KING (UK) LIMITED,366311,Commissioning & Asset Management,Children's & Education Services,103,Supplies and Services,504,Equipment,5023,Revenue,CATERING.FOOD & BEVERAGES
22-DEC-2022,7020595,59.51,PASTA KING (UK) LIMITED,366311,Commissioning & Asset Management,Children's & Education Services,103,Supplies and Services,504,Equipment,5023,Revenue,CATERING.FOOD & BEVERAGES
22-DEC-2022,7020595,102.95,PASTA KING (UK) LIMITED,366311,Commissioning & Asset Management,Children's & Education Services,103,Supplies and Services,504,Equipment,5023,Revenue,CATERING.FOOD & BEVERAGES
22-DEC-2022,7020595,123.24,PASTA KING (UK) LIMITED,366311,Commissioning & Asset Management,Children's & Education Services,103,Supplies and Services,504,Equipment,5023,Revenue,CATERING.FOOD & BEVERAGES
22-DEC-2022,7020595,123.54,PASTA KING (UK) LIMITED,366311,Commissioning & Asset Management,Children's & Education Services,103,Supplies and Services,504,Equipment,5023,Revenue,CATERING.FOOD & BEVERAGES
22-DEC-2022,7020595,37.92,PASTA KING (UK) LIMITED,366311,Commissioning & Asset Management,Children's & Education Services,103,Supplies and Services,504,Equipment,5023,Revenue,CATERING.FOOD & BEVERAGES
22-DEC-2022,7020595,38.2,PASTA KING (UK) LIMITED,366311,Commissioning & Asset Management,Children's & Education Services,103,Supplies and Services,504,Equipment,5023,Revenue,CATERING.FOOD & BEVERAGES
22-DEC-2022,7020595,38.2,PASTA KING (UK) LIMITED,366311,Commissioning & Asset Management,Children's & Education Services,103,Supplies and Services,504,Equipment,5023,Revenue,CATERING.FOOD & BEVERAGES
22-DEC-2022,7020595,40,PASTA KING (UK) LIMITED,366311,Commissioning & Asset Management,Children's & Education Services,103,Supplies and Services,504,Equipment,5023,Revenue,CATERING.FOOD & BEVERAGES
22-DEC-2022,7020595,40,PASTA KING (UK) LIMITED,366311,Commissioning & Asset Management,Children's & Education Services,103,Supplies and Services,504,Equipment,5023,Revenue,CATERING.FOOD & BEVERAGES
22-DEC-2022,7020595,40,PASTA KING (UK) LIMITED,366311,Commissioning & Asset Management,Children's & Education Services,103,Supplies and Services,504,Equipment,5023,Revenue,CATERING.FOOD & BEVERAGES
22-DEC-2022,7020595,41.08,PASTA KING (UK) LIMITED,366311,Commissioning & Asset Management,Children's & Education Services,103,Supplies and Services,504,Equipment,5023,Revenue,CATERING.FOOD & BEVERAGES
22-DEC-2022,7020595,41.64,PASTA KING (UK) LIMITED,366311,Commissioning & Asset Management,Children's & Education Services,103,Supplies and Services,504,Equipment,5023,Revenue,CATERING.FOOD & BEVERAGES
22-DEC-2022,7020595,59.51,PASTA KING (UK) LIMITED,366311,Commissioning & Asset Management,Children's & Education Services,103,Supplies and Services,504,Equipment,5023,Revenue,CATERING.FOOD & BEVERAGES
22-DEC-2022,7020595,59.51,PASTA KING (UK) LIMITED,366311,Commissioning & Asset Management,Children's & Education Services,103,Supplies and Services,504,Equipment,5023,Revenue,CATERING.FOOD & BEVERAGES
22-DEC-2022,7020595,102.95,PASTA KING (UK) LIMITED,366311,Commissioning & Asset Management,Children's & Education Services,103,Supplies and Services,504,Equipment,5023,Revenue,CATERING.FOOD & BEVERAGES
22-DEC-2022,7020595,164.72,PASTA KING (UK) LIMITED,366311,Commissioning & Asset Management,Children's & Education Services,103,Supplies and Services,504,Equipment,5023,Revenue,CATERING.FOOD & BEVERAGES
22-DEC-2022,7020595,38.2,PASTA KING (UK) LIMITED,366311,Commissioning & Asset Management,Children's & Education Services,103,Supplies and Services,504,Equipment,5023,Revenue,CATERING.FOOD & BEVERAGES
22-DEC-2022,7020595,38.2,PASTA KING (UK) LIMITED,366311,Commissioning & Asset Management,Children's & Education Services,103,Supplies and Services,504,Equipment,5023,Revenue,CATERING.FOOD & BEVERAGES
22-DEC-2022,7020595,40,PASTA KING (UK) LIMITED,366311,Commissioning & Asset Management,Children's & Education Services,103,Supplies and Services,504,Equipment,5023,Revenue,CATERING.FOOD & BEVERAGES
22-DEC-2022,7020595,40,PASTA KING (UK) LIMITED,366311,Commissioning & Asset Management,Children's & Education Services,103,Supplies and Services,504,Equipment,5023,Revenue,CATERING.FOOD & BEVERAGES
22-DEC-2022,7020595,59.51,PASTA KING (UK) LIMITED,366311,Commissioning & Asset Management,Children's & Education Services,103,Supplies and Services,504,Equipment,5023,Revenue,CATERING.FOOD & BEVERAGES
22-DEC-2022,7020595,80,PASTA KING (UK) LIMITED,366311,Commissioning & Asset Management,Children's & Education Services,103,Supplies and Services,504,Equipment,5023,Revenue,CATERING.FOOD & BEVERAGES
22-DEC-2022,7020595,83.28,PASTA KING (UK) LIMITED,366311,Commissioning & Asset Management,Children's & Education Services,103,Supplies and Services,504,Equipment,5023,Revenue,CATERING.FOOD & BEVERAGES
22-DEC-2022,7020595,102.95,PASTA KING (UK) LIMITED,366311,Commissioning & Asset Management,Children's & Education Services,103,Supplies and Services,504,Equipment,5023,Revenue,CATERING.FOOD & BEVERAGES
22-DEC-2022,7020595,102.95,PASTA KING (UK) LIMITED,366311,Commissioning & Asset Management,Children's & Education Services,103,Supplies and Services,504,Equipment,5023,Revenue,CATERING.FOOD & BEVERAGES
22-DEC-2022,7020596,35,NORTHUMBERLAND COUNTY COUNCIL,319694,"Health, Education, Care and Safeguarding",Children's & Education Services,103,Supplies and Services,504,Expenses,5030,Revenue,NON INFLUENCIBLE.PUBLIC SECTOR
22-DEC-2022,7020596,70,NORTHUMBERLAND COUNTY COUNCIL,319694,"Health, Education, Care and Safeguarding",Children's & Education Services,103,Supplies and Services,504,Expenses,5030,Revenue,NON INFLUENCIBLE.PUBLIC SECTOR
22-DEC-2022,7020596,11,NORTHUMBERLAND COUNTY COUNCIL,319694,"Health, Education, Care and Safeguarding",Children's & Education Services,103,Third Party Payments,505,Other Establishments,5041,Revenue,NON INFLUENCIBLE.PUBLIC SECTOR
22-DEC-2022,7020596,35,NORTHUMBERLAND COUNTY COUNCIL,319694,"Health, Education, Care and Safeguarding",Children's & Education Services,103,Supplies and Services,504,Expenses,5030,Revenue,NON INFLUENCIBLE.PUBLIC SECTOR
22-DEC-2022,7020597,53.7,VALUE PRODUCTS,385361,"Sport, Leisure & Community",Cultural & Related Services,104,Supplies and Services,504,Equipment,5023,Revenue,OFFICE & REPROGRAPHICS EQUIPMENT.LEASING
22-DEC-2022,7020598,12,PETS AT HOME,385332,General Fund Housing,Public Health,112,Third Party Payments,505,Private Contractors,5042,Revenue,ENVIRONMENTAL SERVICES.ANIMAL SERVICES
22-DEC-2022,7020599,49,HER MAJESTY'S PASSPORT OFFICE,342302,"Health, Education, Care and Safeguarding",Children's & Education Services,103,Supplies and Services,504,Miscellaneous Expenses,5034,Revenue,NON INFLUENCIBLE.NON INFLUENCIBLE
22-DEC-2022,7020599,127,HER MAJESTY'S PASSPORT OFFICE,342302,"Health, Education, Care and Safeguarding",Children's & Education Services,103,Supplies and Services,504,Miscellaneous Expenses,5034,Revenue,NON INFLUENCIBLE.NON INFLUENCIBLE
22-DEC-2022,7020599,54,HER MAJESTY'S PASSPORT OFFICE,342302,"Health, Education, Care and Safeguarding",Children's & Education Services,103,Supplies and Services,504,Expenses,5030,Revenue,NON INFLUENCIBLE.NON INFLUENCIBLE
22-DEC-2022,7020599,62.92,HER MAJESTY'S PASSPORT OFFICE,342302,"Health, Education, Care and Safeguarding",Children's & Education Services,103,Third Party Payments,505,Other Establishments,5041,Revenue,NON INFLUENCIBLE.NON INFLUENCIBLE
22-DEC-2022,7020600,302.5,DVLA,322925,Fleet Management,Unallocated,N/A,Transport,503,Direct Transport Costs,5016,Revenue,NON INFLUENCIBLE.NON INFLUENCIBLE
22-DEC-2022,7020600,302.5,DVLA,322925,Fleet Management,Unallocated,N/A,Transport,503,Direct Transport Costs,5016,Revenue,NON INFLUENCIBLE.NON INFLUENCIBLE
22-DEC-2022,7020600,34,DVLA,322925,"Health, Education, Care and Safeguarding",Children's & Education Services,103,Supplies and Services,504,Expenses,5030,Revenue,NON INFLUENCIBLE.NON INFLUENCIBLE
22-DEC-2022,7020600,20,DVLA,322925,"Health, Education, Care and Safeguarding",Children's & Education Services,103,Third Party Payments,505,Other Establishments,5041,Revenue,NON INFLUENCIBLE.NON INFLUENCIBLE
22-DEC-2022,7020600,34,DVLA,322925,"Health, Education, Care and Safeguarding",Children's & Education Services,103,Third Party Payments,505,Other Establishments,5041,Revenue,NON INFLUENCIBLE.NON INFLUENCIBLE
22-DEC-2022,7020600,28.33,DVLA,322925,"Health, Education, Care and Safeguarding",Children's & Education Services,103,Third Party Payments,505,Other Establishments,5041,Revenue,NON INFLUENCIBLE.NON INFLUENCIBLE
22-DEC-2022,7020601,45,SPORTS DIRECT,373833,"Health, Education, Care and Safeguarding",Children's & Education Services,103,Supplies and Services,504,Miscellaneous Expenses,5034,Revenue,CLOTHING.CHILDRENS & ADULTS
22-DEC-2022,7020601,-0.01,SPORTS DIRECT,373833,"Health, Education, Care and Safeguarding",Children's & Education Services,103,Supplies and Services,504,"Clothing, Uniforms and Laundry",5025,Revenue,CLOTHING.CHILDRENS & ADULTS
22-DEC-2022,7020601,33.32,SPORTS DIRECT,373833,"Health, Education, Care and Safeguarding",Children's & Education Services,103,Supplies and Services,504,"Clothing, Uniforms and Laundry",5025,Revenue,CLOTHING.CHILDRENS & ADULTS
22-DEC-2022,7020601,45.83,SPORTS DIRECT,373833,"Health, Education, Care and Safeguarding",Children's & Education Services,103,Supplies and Services,504,"Clothing, Uniforms and Laundry",5025,Revenue,CLOTHING.CHILDRENS & ADULTS
22-DEC-2022,7020601,36.67,SPORTS DIRECT,373833,"Health, Education, Care and Safeguarding",Children's & Education Services,103,Supplies and Services,504,Miscellaneous Expenses,5034,Revenue,CLOTHING.CHILDRENS & ADULTS
22-DEC-2022,7020601,33.75,SPORTS DIRECT,373833,"Health, Education, Care and Safeguarding",Children's & Education Services,103,Supplies and Services,504,"Clothing, Uniforms and Laundry",5025,Revenue,CLOTHING.CHILDRENS & ADULTS
22-DEC-2022,7020602,19.98,T K MAXX,376472,"Health, Education, Care and Safeguarding",Children's & Education Services,103,Supplies and Services,504,Miscellaneous Expenses,5034,Revenue,NON INFLUENCIBLE.NON INFLUENCIBLE
22-DEC-2022,7020603,19,NEXT PLC,338362,"Health, Education, Care and Safeguarding",Children's & Education Services,103,Supplies and Services,504,"Clothing, Uniforms and Laundry",5025,Revenue,NON INFLUENCIBLE.NON INFLUENCIBLE
22-DEC-2022,7020603,47.5,NEXT PLC,338362,"Health, Education, Care and Safeguarding",Children's & Education Services,103,Supplies and Services,504,"Clothing, Uniforms and Laundry",5025,Revenue,NON INFLUENCIBLE.NON INFLUENCIBLE
22-DEC-2022,7020603,21.67,NEXT PLC,338362,"Health, Education, Care and Safeguarding",Children's & Education Services,103,Supplies and Services,504,Miscellaneous Expenses,5034,Revenue,NON INFLUENCIBLE.NON INFLUENCIBLE
22-DEC-2022,7020604,42.33,KITS 4 ALL INC.PLANET SPORTS TROPHIES LTD,355564,"Sport, Leisure & Community",Cultural & Related Services,104,Supplies and Services,504,Equipment,5023,Revenue,EDUCATIONAL SUPPLIES.SUPPLIES
22-DEC-2022,7020605,0.01,GM PACKAGING (UK) LTD,312623,Local Environmental Services,Adult Social Care,101,Supplies and Services,504,Equipment,5023,Revenue,CATERING.DISPOSABLES
22-DEC-2022,7020605,23.28,GM PACKAGING (UK) LTD,312623,Local Environmental Services,Adult Social Care,101,Supplies and Services,504,Equipment,5023,Revenue,CATERING.DISPOSABLES
22-DEC-2022,7020605,234.73,GM PACKAGING (UK) LTD,312623,Local Environmental Services,Adult Social Care,101,Supplies and Services,504,Equipment,5023,Revenue,CATERING.DISPOSABLES
22-DEC-2022,7020605,311.27,GM PACKAGING (UK) LTD,312623,Local Environmental Services,Adult Social Care,101,Supplies and Services,504,Equipment,5023,Revenue,CATERING.DISPOSABLES
22-DEC-2022,7020605,97.87,GM PACKAGING (UK) LTD,312623,Commissioning & Asset Management,Children's & Education Services,103,Supplies and Services,504,Equipment,5023,Revenue,CATERING.DISPOSABLES
22-DEC-2022,7020605,87.69,GM PACKAGING (UK) LTD,312623,Commissioning & Asset Management,Children's & Education Services,103,Supplies and Services,504,Equipment,5023,Revenue,CATERING.DISPOSABLES
22-DEC-2022,7020605,292.72,GM PACKAGING (UK) LTD,312623,Commissioning & Asset Management,Children's & Education Services,103,Supplies and Services,504,Equipment,5023,Revenue,CATERING.DISPOSABLES
22-DEC-2022,7020605,178.78,GM PACKAGING (UK) LTD,312623,Commissioning & Asset Management,Children's & Education Services,103,Supplies and Services,504,Equipment,5023,Revenue,CATERING.DISPOSABLES
22-DEC-2022,7020605,87.69,GM PACKAGING (UK) LTD,312623,Commissioning & Asset Management,Children's & Education Services,103,Supplies and Services,504,Equipment,5023,Revenue,CATERING.DISPOSABLES
22-DEC-2022,7020605,39.91,GM PACKAGING (UK) LTD,312623,Commissioning & Asset Management,Children's & Education Services,103,Supplies and Services,504,Equipment,5023,Revenue,CATERING.DISPOSABLES
22-DEC-2022,7020605,46.9,GM PACKAGING (UK) LTD,312623,Commissioning & Asset Management,Children's & Education Services,103,Supplies and Services,504,Equipment,5023,Revenue,CATERING.DISPOSABLES
22-DEC-2022,7020605,39.91,GM PACKAGING (UK) LTD,312623,Commissioning & Asset Management,Children's & Education Services,103,Supplies and Services,504,Equipment,5023,Revenue,CATERING.DISPOSABLES
22-DEC-2022,7020605,82.92,GM PACKAGING (UK) LTD,312623,Commissioning & Asset Management,Children's & Education Services,103,Supplies and Services,504,Equipment,5023,Revenue,CATERING.DISPOSABLES
22-DEC-2022,7020605,77.64,GM PACKAGING (UK) LTD,312623,Commissioning & Asset Management,Children's & Education Services,103,Supplies and Services,504,Equipment,5023,Revenue,CATERING.DISPOSABLES
22-DEC-2022,7020605,7.4,GM PACKAGING (UK) LTD,312623,Commissioning & Asset Management,Children's & Education Services,103,Supplies and Services,504,Equipment,5023,Revenue,CATERING.DISPOSABLES
22-DEC-2022,7020605,79.82,GM PACKAGING (UK) LTD,312623,Commissioning & Asset Management,Children's & Education Services,103,Supplies and Services,504,Equipment,5023,Revenue,CATERING.DISPOSABLES
22-DEC-2022,7020605,69.16,GM PACKAGING (UK) LTD,312623,Commissioning & Asset Management,Children's & Education Services,103,Supplies and Services,504,Equipment,5023,Revenue,CATERING.DISPOSABLES
22-DEC-2022,7020605,101.5,GM PACKAGING (UK) LTD,312623,Commissioning & Asset Management,Children's & Education Services,103,Supplies and Services,504,Equipment,5023,Revenue,CATERING.DISPOSABLES
22-DEC-2022,7020605,184.32,GM PACKAGING (UK) LTD,312623,Commissioning & Asset Management,Children's & Education Services,103,Supplies and Services,504,Equipment,5023,Revenue,CATERING.DISPOSABLES
22-DEC-2022,7020605,231.93,GM PACKAGING (UK) LTD,312623,Commissioning & Asset Management,Children's & Education Services,103,Supplies and Services,504,Equipment,5023,Revenue,CATERING.DISPOSABLES
22-DEC-2022,7020605,236.1,GM PACKAGING (UK) LTD,312623,Commissioning & Asset Management,Children's & Education Services,103,Supplies and Services,504,Equipment,5023,Revenue,CATERING.DISPOSABLES
22-DEC-2022,7020605,39.91,GM PACKAGING (UK) LTD,312623,Commissioning & Asset Management,Children's & Education Services,103,Supplies and Services,504,Equipment,5023,Revenue,CATERING.DISPOSABLES
22-DEC-2022,7020605,91.34,GM PACKAGING (UK) LTD,312623,Commissioning & Asset Management,Children's & Education Services,103,Supplies and Services,504,Equipment,5023,Revenue,CATERING.DISPOSABLES
22-DEC-2022,7020605,170.19,GM PACKAGING (UK) LTD,312623,Commissioning & Asset Management,Children's & Education Services,103,Supplies and Services,504,Equipment,5023,Revenue,CATERING.DISPOSABLES
22-DEC-2022,7020605,256.96,GM PACKAGING (UK) LTD,312623,Commissioning & Asset Management,Children's & Education Services,103,Supplies and Services,504,Equipment,5023,Revenue,CATERING.DISPOSABLES
22-DEC-2022,7020605,321.56,GM PACKAGING (UK) LTD,312623,Commissioning & Asset Management,Children's & Education Services,103,Supplies and Services,504,Equipment,5023,Revenue,CATERING.DISPOSABLES
22-DEC-2022,7020605,248.29,GM PACKAGING (UK) LTD,312623,Commissioning & Asset Management,Children's & Education Services,103,Supplies and Services,504,Equipment,5023,Revenue,CATERING.DISPOSABLES
22-DEC-2022,7020605,258.24,GM PACKAGING (UK) LTD,312623,Commissioning & Asset Management,Children's & Education Services,103,Supplies and Services,504,Equipment,5023,Revenue,CATERING.DISPOSABLES
22-DEC-2022,7020605,90.7,GM PACKAGING (UK) LTD,312623,Commissioning & Asset Management,Children's & Education Services,103,Supplies and Services,504,Equipment,5023,Revenue,CATERING.DISPOSABLES
22-DEC-2022,7020605,151.84,GM PACKAGING (UK) LTD,312623,Commissioning & Asset Management,Children's & Education Services,103,Supplies and Services,504,Equipment,5023,Revenue,CATERING.DISPOSABLES
22-DEC-2022,7020605,39.91,GM PACKAGING (UK) LTD,312623,Commissioning & Asset Management,Children's & Education Services,103,Supplies and Services,504,Equipment,5023,Revenue,CATERING.DISPOSABLES
22-DEC-2022,7020605,94.94,GM PACKAGING (UK) LTD,312623,Commissioning & Asset Management,Children's & Education Services,103,Supplies and Services,504,Equipment,5023,Revenue,CATERING.DISPOSABLES
22-DEC-2022,7020605,109.12,GM PACKAGING (UK) LTD,312623,Commissioning & Asset Management,Children's & Education Services,103,Supplies and Services,504,Equipment,5023,Revenue,CATERING.DISPOSABLES
22-DEC-2022,7020605,269.62,GM PACKAGING (UK) LTD,312623,Commissioning & Asset Management,Children's & Education Services,103,Supplies and Services,504,Equipment,5023,Revenue,CATERING.DISPOSABLES
22-DEC-2022,7020605,420.01,GM PACKAGING (UK) LTD,312623,Commissioning & Asset Management,Children's & Education Services,103,Supplies and Services,504,Equipment,5023,Revenue,CATERING.DISPOSABLES
22-DEC-2022,7020605,568.1,GM PACKAGING (UK) LTD,312623,Commissioning & Asset Management,Children's & Education Services,103,Supplies and Services,504,Equipment,5023,Revenue,CATERING.DISPOSABLES
22-DEC-2022,7020605,62.21,GM PACKAGING (UK) LTD,312623,Commissioning & Asset Management,Children's & Education Services,103,Supplies and Services,504,Equipment,5023,Revenue,CATERING.DISPOSABLES
22-DEC-2022,7020605,128.93,GM PACKAGING (UK) LTD,312623,Commissioning & Asset Management,Children's & Education Services,103,Supplies and Services,504,Equipment,5023,Revenue,CATERING.DISPOSABLES
22-DEC-2022,7020605,129.31,GM PACKAGING (UK) LTD,312623,Commissioning & Asset Management,Children's & Education Services,103,Supplies and Services,504,Equipment,5023,Revenue,CATERING.DISPOSABLES
22-DEC-2022,7020605,206.45,GM PACKAGING (UK) LTD,312623,Commissioning & Asset Management,Children's & Education Services,103,Supplies and Services,504,Equipment,5023,Revenue,CATERING.DISPOSABLES
22-DEC-2022,7020605,189.54,GM PACKAGING (UK) LTD,312623,Commissioning & Asset Management,Children's & Education Services,103,Supplies and Services,504,Equipment,5023,Revenue,CATERING.DISPOSABLES
22-DEC-2022,7020605,55.87,GM PACKAGING (UK) LTD,312623,Commissioning & Asset Management,Children's & Education Services,103,Supplies and Services,504,Equipment,5023,Revenue,CATERING.DISPOSABLES
22-DEC-2022,7020605,82.02,GM PACKAGING (UK) LTD,312623,Commissioning & Asset Management,Children's & Education Services,103,Supplies and Services,504,Equipment,5023,Revenue,CATERING.DISPOSABLES
22-DEC-2022,7020605,124.87,GM PACKAGING (UK) LTD,312623,Commissioning & Asset Management,Children's & Education Services,103,Supplies and Services,504,Equipment,5023,Revenue,CATERING.DISPOSABLES
22-DEC-2022,7020605,77.88,GM PACKAGING (UK) LTD,312623,Commissioning & Asset Management,Children's & Education Services,103,Supplies and Services,504,Equipment,5023,Revenue,CATERING.DISPOSABLES
22-DEC-2022,7020605,87.22,GM PACKAGING (UK) LTD,312623,Commissioning & Asset Management,Children's & Education Services,103,Supplies and Services,504,Equipment,5023,Revenue,CATERING.DISPOSABLES
22-DEC-2022,7020605,82.92,GM PACKAGING (UK) LTD,312623,Commissioning & Asset Management,Children's & Education Services,103,Supplies and Services,504,Equipment,5023,Revenue,CATERING.DISPOSABLES
22-DEC-2022,7020605,87.62,GM PACKAGING (UK) LTD,312623,Commissioning & Asset Management,Children's & Education Services,103,Supplies and Services,504,Equipment,5023,Revenue,CATERING.DISPOSABLES
22-DEC-2022,7020605,52.78,GM PACKAGING (UK) LTD,312623,Commissioning & Asset Management,Children's & Education Services,103,Supplies and Services,504,Equipment,5023,Revenue,CATERING.DISPOSABLES
22-DEC-2022,7020605,351.55,GM PACKAGING (UK) LTD,312623,Commissioning & Asset Management,Children's & Education Services,103,Supplies and Services,504,Equipment,5023,Revenue,CATERING.DISPOSABLES
22-DEC-2022,7020605,46.56,GM PACKAGING (UK) LTD,312623,Local Environmental Services,Cultural & Related Services,104,Supplies and Services,504,Equipment,5023,Revenue,CATERING.DISPOSABLES
22-DEC-2022,7020606,2.08,WILKO RETAIL LIMITED,280813,"Health, Education, Care and Safeguarding",Children's & Education Services,103,Supplies and Services,504,Equipment,5023,Revenue,NON INFLUENCIBLE.REDECORATION GRANTS
22-DEC-2022,7020606,0.01,WILKO RETAIL LIMITED,280813,"Health, Education, Care and Safeguarding",Children's & Education Services,103,Supplies and Services,504,Miscellaneous Expenses,5034,Revenue,NON INFLUENCIBLE.REDECORATION GRANTS
22-DEC-2022,7020606,4.37,WILKO RETAIL LIMITED,280813,"Health, Education, Care and Safeguarding",Children's & Education Services,103,Supplies and Services,504,Miscellaneous Expenses,5034,Revenue,NON INFLUENCIBLE.REDECORATION GRANTS
22-DEC-2022,7020606,-61.67,WILKO RETAIL LIMITED,280813,"Health, Education, Care and Safeguarding",Children's & Education Services,103,Supplies and Services,504,"Printing, Stationery and General Office Expenses",5026,Revenue,NON INFLUENCIBLE.REDECORATION GRANTS
22-DEC-2022,7020606,12.46,WILKO RETAIL LIMITED,280813,"Health, Education, Care and Safeguarding",Children's & Education Services,103,Third Party Payments,505,Other Establishments,5041,Revenue,NON INFLUENCIBLE.REDECORATION GRANTS
22-DEC-2022,7020606,35.42,WILKO RETAIL LIMITED,280813,"Health, Education, Care and Safeguarding",Children's & Education Services,103,Third Party Payments,505,Other Establishments,5041,Revenue,NON INFLUENCIBLE.REDECORATION GRANTS
22-DEC-2022,7020606,67.92,WILKO RETAIL LIMITED,280813,"Health, Education, Care and Safeguarding",Children's & Education Services,103,Third Party Payments,505,Other Establishments,5041,Revenue,NON INFLUENCIBLE.REDECORATION GRANTS
22-DEC-2022,7020606,79.17,WILKO RETAIL LIMITED,280813,"Health, Education, Care and Safeguarding",Children's & Education Services,103,Third Party Payments,505,Other Establishments,5041,Revenue,NON INFLUENCIBLE.REDECORATION GRANTS
22-DEC-2022,7020606,15,WILKO RETAIL LIMITED,280813,Local Environmental Services,Environmental & Regulatory Services,105,Supplies and Services,504,Equipment,5023,Revenue,NON INFLUENCIBLE.REDECORATION GRANTS
22-DEC-2022,7020606,7.92,WILKO RETAIL LIMITED,280813,Local Environmental Services,Environmental & Regulatory Services,105,Supplies and Services,504,"Printing, Stationery and General Office Expenses",5026,Revenue,NON INFLUENCIBLE.REDECORATION GRANTS
22-DEC-2022,7020606,3.33,WILKO RETAIL LIMITED,280813,"Sport, Leisure & Community",Cultural & Related Services,104,Supplies and Services,504,Equipment,5023,Revenue,NON INFLUENCIBLE.REDECORATION GRANTS
22-DEC-2022,7020606,13.75,WILKO RETAIL LIMITED,280813,Local Environmental Services,Cultural & Related Services,104,Supplies and Services,504,Equipment,5023,Revenue,NON INFLUENCIBLE.REDECORATION GRANTS
22-DEC-2022,7020607,2.19,FASTHOSTS INTERNET LIMITED,367002,"Health, Education, Care and Safeguarding",Children's & Education Services,103,Supplies and Services,504,Communications & Computing,5028,Revenue,ICT.SOFTWARE
22-DEC-2022,7020607,2.19,FASTHOSTS INTERNET LIMITED,367002,"Health, Education, Care and Safeguarding",Children's & Education Services,103,Supplies and Services,504,Communications & Computing,5028,Revenue,ICT.SOFTWARE
22-DEC-2022,7020607,35.88,FASTHOSTS INTERNET LIMITED,367002,"Health, Education, Care and Safeguarding",Children's & Education Services,103,Supplies and Services,504,Communications & Computing,5028,Revenue,ICT.SOFTWARE
22-DEC-2022,7020608,4.39,RENTOKIL INITIAL UK LIMITED - PEST CONTROL,321392,"Health, Education, Care and Safeguarding",Children's & Education Services,103,Supplies and Services,504,Miscellaneous Expenses,5034,Revenue,ENVIRONMENTAL SERVICES.ANIMAL SERVICES
22-DEC-2022,7020608,35.1,RENTOKIL INITIAL UK LIMITED - PEST CONTROL,321392,"Health, Education, Care and Safeguarding",Children's & Education Services,103,Supplies and Services,504,Miscellaneous Expenses,5034,Revenue,ENVIRONMENTAL SERVICES.ANIMAL SERVICES
22-DEC-2022,7020609,16.67,ODEON CINEMAS LIMITED,349238,"Health, Education, Care and Safeguarding",Children's & Education Services,103,Supplies and Services,504,Miscellaneous Expenses,5034,Revenue,ADVERTISING & MARKETING.EVENTS & PROMOTIONS
22-DEC-2022,7020610,61.65,WATERSTONES BOOKSELLERS LTD,279232,Resources,Central Services,102,Supplies and Services,504,Equipment,5023,Revenue,SUBSCRIPTIONS & PUBLICATIONS.BOOKS & PUBLICATIONS
22-DEC-2022,7020611,8.33,NORTH TYNESIDE COUNCIL,102767,"Health, Education, Care and Safeguarding",Children's & Education Services,103,Supplies and Services,504,Equipment,5023,Revenue,NON INFLUENCIBLE.PUBLIC SECTOR
22-DEC-2022,7020611,17,NORTH TYNESIDE COUNCIL,102767,"Health, Education, Care and Safeguarding",Children's & Education Services,103,Third Party Payments,505,Other Establishments,5041,Revenue,NON INFLUENCIBLE.PUBLIC SECTOR
22-DEC-2022,7020611,20,NORTH TYNESIDE COUNCIL,102767,"Health, Education, Care and Safeguarding",Children's & Education Services,103,Third Party Payments,505,Other Establishments,5041,Revenue,NON INFLUENCIBLE.PUBLIC SECTOR
22-DEC-2022,7020611,50,NORTH TYNESIDE COUNCIL,102767,"Health, Education, Care and Safeguarding",Children's & Education Services,103,Third Party Payments,505,Other Establishments,5041,Revenue,NON INFLUENCIBLE.PUBLIC SECTOR
22-DEC-2022,7020611,70,NORTH TYNESIDE COUNCIL,102767,"Health, Education, Care and Safeguarding",Children's & Education Services,103,Third Party Payments,505,Other Establishments,5041,Revenue,NON INFLUENCIBLE.PUBLIC SECTOR
22-DEC-2022,7020611,70,NORTH TYNESIDE COUNCIL,102767,"Health, Education, Care and Safeguarding",Children's & Education Services,103,Third Party Payments,505,Other Establishments,5041,Revenue,NON INFLUENCIBLE.PUBLIC SECTOR
22-DEC-2022,7020611,100,NORTH TYNESIDE COUNCIL,102767,"Health, Education, Care and Safeguarding",Children's & Education Services,103,Third Party Payments,505,Other Establishments,5041,Revenue,NON INFLUENCIBLE.PUBLIC SECTOR
22-DEC-2022,7020611,138.7,NORTH TYNESIDE COUNCIL,102767,"Health, Education, Care and Safeguarding",Children's & Education Services,103,Third Party Payments,505,Other Establishments,5041,Revenue,NON INFLUENCIBLE.PUBLIC SECTOR
22-DEC-2022,7020611,208.05,NORTH TYNESIDE COUNCIL,102767,"Health, Education, Care and Safeguarding",Children's & Education Services,103,Third Party Payments,505,Other Establishments,5041,Revenue,NON INFLUENCIBLE.PUBLIC SECTOR
22-DEC-2022,7020611,17.5,NORTH TYNESIDE COUNCIL,102767,Regeneration & Economic Development,Cultural & Related Services,104,Third Party Payments,505,Private Contractors,5042,Revenue,NON INFLUENCIBLE.PUBLIC SECTOR
22-DEC-2022,7020612,200.83,IKEA LTD,231453,"Health, Education, Care and Safeguarding",Children's & Education Services,103,Supplies and Services,504,Equipment,5023,Revenue,FURNITURE.DOMESTIC
22-DEC-2022,7020612,256.25,IKEA LTD,231453,"Health, Education, Care and Safeguarding",Children's & Education Services,103,Supplies and Services,504,Equipment,5023,Revenue,FURNITURE.DOMESTIC
22-DEC-2022,7020612,149.17,IKEA LTD,231453,"Health, Education, Care and Safeguarding",Children's & Education Services,103,Supplies and Services,504,Equipment,5023,Revenue,FURNITURE.DOMESTIC
22-DEC-2022,7020612,100,IKEA LTD,231453,"Health, Education, Care and Safeguarding",Children's & Education Services,103,Supplies and Services,504,Equipment,5023,Revenue,FURNITURE.DOMESTIC
22-DEC-2022,7020612,25,IKEA LTD,231453,"Health, Education, Care and Safeguarding",Children's & Education Services,103,Supplies and Services,504,Equipment,5023,Revenue,FURNITURE.DOMESTIC
22-DEC-2022,7020613,207.98,HALFORDS,347854,"Health, Education, Care and Safeguarding",Housing Services,108,Supplies and Services,504,Expenses,5030,Revenue,FINANCIAL SERVICES.FINANCIAL SERVICES
22-DEC-2022,7020613,11.49,HALFORDS,347854,"Health, Education, Care and Safeguarding",Children's & Education Services,103,Supplies and Services,504,Equipment,5023,Revenue,FINANCIAL SERVICES.FINANCIAL SERVICES
22-DEC-2022,7020614,6,NEWCASTLE UNITED FOOTBALL CLUB,208776,"Health, Education, Care and Safeguarding",Children's & Education Services,103,Supplies and Services,504,Miscellaneous Expenses,5034,Revenue,ADVERTISING & MARKETING.EVENTS & PROMOTIONS
22-DEC-2022,7020615,8.24,WM MORRISON SUPERMARKETS PLC,013562,"Health, Education, Care and Safeguarding",Children's & Education Services,103,Supplies and Services,504,Equipment,5023,Revenue,CATERING.FOOD & BEVERAGES
22-DEC-2022,7020615,89.32,WM MORRISON SUPERMARKETS PLC,013562,"Health, Education, Care and Safeguarding",Children's & Education Services,103,Supplies and Services,504,Equipment,5023,Revenue,CATERING.FOOD & BEVERAGES
22-DEC-2022,7020615,104.58,WM MORRISON SUPERMARKETS PLC,013562,"Health, Education, Care and Safeguarding",Children's & Education Services,103,Supplies and Services,504,Equipment,5023,Revenue,CATERING.FOOD & BEVERAGES
22-DEC-2022,7020615,106,WM MORRISON SUPERMARKETS PLC,013562,"Health, Education, Care and Safeguarding",Children's & Education Services,103,Supplies and Services,504,Equipment,5023,Revenue,CATERING.FOOD & BEVERAGES
22-DEC-2022,7020615,126.02,WM MORRISON SUPERMARKETS PLC,013562,"Health, Education, Care and Safeguarding",Children's & Education Services,103,Supplies and Services,504,Equipment,5023,Revenue,CATERING.FOOD & BEVERAGES
22-DEC-2022,7020615,290.74,WM MORRISON SUPERMARKETS PLC,013562,"Health, Education, Care and Safeguarding",Children's & Education Services,103,Supplies and Services,504,Equipment,5023,Revenue,CATERING.FOOD & BEVERAGES
22-DEC-2022,7020615,30,WM MORRISON SUPERMARKETS PLC,013562,"Health, Education, Care and Safeguarding",Children's & Education Services,103,Third Party Payments,505,Other Establishments,5041,Revenue,CATERING.FOOD & BEVERAGES
22-DEC-2022,7020615,15.89,WM MORRISON SUPERMARKETS PLC,013562,Corporate Strategy,Children's & Education Services,103,Supplies and Services,504,Catering,5024,Revenue,CATERING.FOOD & BEVERAGES
22-DEC-2022,7020615,0.01,WM MORRISON SUPERMARKETS PLC,013562,"Health, Education, Care and Safeguarding",Children's & Education Services,103,Supplies and Services,504,Equipment,5023,Revenue,CATERING.FOOD & BEVERAGES
22-DEC-2022,7020615,57.97,WM MORRISON SUPERMARKETS PLC,013562,"Health, Education, Care and Safeguarding",Children's & Education Services,103,Supplies and Services,504,Equipment,5023,Revenue,CATERING.FOOD & BEVERAGES
22-DEC-2022,7020615,168.43,WM MORRISON SUPERMARKETS PLC,013562,"Health, Education, Care and Safeguarding",Children's & Education Services,103,Supplies and Services,504,Equipment,5023,Revenue,CATERING.FOOD & BEVERAGES
22-DEC-2022,7020615,54.58,WM MORRISON SUPERMARKETS PLC,013562,"Health, Education, Care and Safeguarding",Children's & Education Services,103,Supplies and Services,504,Equipment,5023,Revenue,CATERING.FOOD & BEVERAGES
22-DEC-2022,7020615,41.01,WM MORRISON SUPERMARKETS PLC,013562,"Health, Education, Care and Safeguarding",Children's & Education Services,103,Supplies and Services,504,Equipment,5023,Revenue,CATERING.FOOD & BEVERAGES
22-DEC-2022,7020615,48.64,WM MORRISON SUPERMARKETS PLC,013562,"Health, Education, Care and Safeguarding",Children's & Education Services,103,Supplies and Services,504,Equipment,5023,Revenue,CATERING.FOOD & BEVERAGES
22-DEC-2022,7020615,17.88,WM MORRISON SUPERMARKETS PLC,013562,"Sport, Leisure & Community",Cultural & Related Services,104,Supplies and Services,504,Equipment,5023,Revenue,CATERING.FOOD & BEVERAGES
22-DEC-2022,7020615,29.86,WM MORRISON SUPERMARKETS PLC,013562,"Sport, Leisure & Community",Cultural & Related Services,104,Supplies and Services,504,Equipment,5023,Revenue,CATERING.FOOD & BEVERAGES
22-DEC-2022,7020615,30.77,WM MORRISON SUPERMARKETS PLC,013562,"Sport, Leisure & Community",Cultural & Related Services,104,Supplies and Services,504,Equipment,5023,Revenue,CATERING.FOOD & BEVERAGES
22-DEC-2022,7020615,31.96,WM MORRISON SUPERMARKETS PLC,013562,"Sport, Leisure & Community",Cultural & Related Services,104,Supplies and Services,504,Equipment,5023,Revenue,CATERING.FOOD & BEVERAGES
22-DEC-2022,7020615,9.13,WM MORRISON SUPERMARKETS PLC,013562,"Health, Education, Care and Safeguarding",Children's & Education Services,103,Supplies and Services,504,Equipment,5023,Revenue,CATERING.FOOD & BEVERAGES
22-DEC-2022,7020615,12.67,WM MORRISON SUPERMARKETS PLC,013562,"Sport, Leisure & Community",Cultural & Related Services,104,Supplies and Services,504,Communications & Computing,5028,Revenue,CATERING.FOOD & BEVERAGES
22-DEC-2022,7020615,14.24,WM MORRISON SUPERMARKETS PLC,013562,Local Environmental Services,Cultural & Related Services,104,Supplies and Services,504,Equipment,5023,Revenue,CATERING.FOOD & BEVERAGES
22-DEC-2022,7020615,0.01,WM MORRISON SUPERMARKETS PLC,013562,"Sport, Leisure & Community",Cultural & Related Services,104,Supplies and Services,504,Catering,5024,Revenue,CATERING.FOOD & BEVERAGES
22-DEC-2022,7020615,62.87,WM MORRISON SUPERMARKETS PLC,013562,"Sport, Leisure & Community",Cultural & Related Services,104,Supplies and Services,504,Catering,5024,Revenue,CATERING.FOOD & BEVERAGES
22-DEC-2022,7020615,75.87,WM MORRISON SUPERMARKETS PLC,013562,"Sport, Leisure & Community",Cultural & Related Services,104,Supplies and Services,504,Catering,5024,Revenue,CATERING.FOOD & BEVERAGES
22-DEC-2022,7020615,24.44,WM MORRISON SUPERMARKETS PLC,013562,General Fund Housing,Housing Services,108,Supplies and Services,504,Expenses,5030,Revenue,CATERING.FOOD & BEVERAGES
22-DEC-2022,7020616,99.9,MOUNTAIN WAREHOUSE LTD,344066,"Sport, Leisure & Community",Cultural & Related Services,104,Supplies and Services,504,Equipment,5023,Revenue,SPORTS & PLAYGROUND EQUIPMENT.SPORTS EQUIPMENT
22-DEC-2022,7020617,11.58,TESCO STORES LTD,336585,"Health, Education, Care and Safeguarding",Children's & Education Services,103,Supplies and Services,504,Equipment,5023,Revenue,CATERING.FOOD & BEVERAGES
22-DEC-2022,7020617,26.25,TESCO STORES LTD,336585,"Health, Education, Care and Safeguarding",Children's & Education Services,103,Supplies and Services,504,Equipment,5023,Revenue,CATERING.FOOD & BEVERAGES
22-DEC-2022,7020617,35,TESCO STORES LTD,336585,"Health, Education, Care and Safeguarding",Children's & Education Services,103,Supplies and Services,504,Equipment,5023,Revenue,CATERING.FOOD & BEVERAGES
22-DEC-2022,7020617,47.5,TESCO STORES LTD,336585,"Health, Education, Care and Safeguarding",Children's & Education Services,103,Supplies and Services,504,Equipment,5023,Revenue,CATERING.FOOD & BEVERAGES
22-DEC-2022,7020617,44.99,TESCO STORES LTD,336585,"Health, Education, Care and Safeguarding",Children's & Education Services,103,Supplies and Services,504,Equipment,5023,Revenue,CATERING.FOOD & BEVERAGES
22-DEC-2022,7020617,8,TESCO STORES LTD,336585,"Health, Education, Care and Safeguarding",Children's & Education Services,103,Supplies and Services,504,Miscellaneous Expenses,5034,Revenue,CATERING.FOOD & BEVERAGES
22-DEC-2022,7020617,25,TESCO STORES LTD,336585,"Health, Education, Care and Safeguarding",Children's & Education Services,103,Supplies and Services,504,Expenses,5030,Revenue,CATERING.FOOD & BEVERAGES
22-DEC-2022,7020617,10,TESCO STORES LTD,336585,"Health, Education, Care and Safeguarding",Children's & Education Services,103,Supplies and Services,504,Communications & Computing,5028,Revenue,CATERING.FOOD & BEVERAGES
22-DEC-2022,7020617,10,TESCO STORES LTD,336585,"Health, Education, Care and Safeguarding",Children's & Education Services,103,Third Party Payments,505,Other Establishments,5041,Revenue,CATERING.FOOD & BEVERAGES
22-DEC-2022,7020617,12,TESCO STORES LTD,336585,"Health, Education, Care and Safeguarding",Children's & Education Services,103,Third Party Payments,505,Other Establishments,5041,Revenue,CATERING.FOOD & BEVERAGES
22-DEC-2022,7020617,13.25,TESCO STORES LTD,336585,"Health, Education, Care and Safeguarding",Children's & Education Services,103,Third Party Payments,505,Other Establishments,5041,Revenue,CATERING.FOOD & BEVERAGES
22-DEC-2022,7020617,30,TESCO STORES LTD,336585,"Health, Education, Care and Safeguarding",Children's & Education Services,103,Third Party Payments,505,Other Establishments,5041,Revenue,CATERING.FOOD & BEVERAGES
22-DEC-2022,7020617,5.08,TESCO STORES LTD,336585,Corporate Strategy,Children's & Education Services,103,Supplies and Services,504,Catering,5024,Revenue,CATERING.FOOD & BEVERAGES
22-DEC-2022,7020617,10.83,TESCO STORES LTD,336585,"Health, Education, Care and Safeguarding",Children's & Education Services,103,Supplies and Services,504,Equipment,5023,Revenue,CATERING.FOOD & BEVERAGES
22-DEC-2022,7020617,5,TESCO STORES LTD,336585,"Health, Education, Care and Safeguarding",Children's & Education Services,103,Supplies and Services,504,Equipment,5023,Revenue,CATERING.FOOD & BEVERAGES
22-DEC-2022,7020617,16.42,TESCO STORES LTD,336585,"Health, Education, Care and Safeguarding",Children's & Education Services,103,Supplies and Services,504,Equipment,5023,Revenue,CATERING.FOOD & BEVERAGES
22-DEC-2022,7020617,28.3,TESCO STORES LTD,336585,"Health, Education, Care and Safeguarding",Children's & Education Services,103,Supplies and Services,504,Equipment,5023,Revenue,CATERING.FOOD & BEVERAGES
22-DEC-2022,7020617,39.98,TESCO STORES LTD,336585,"Health, Education, Care and Safeguarding",Children's & Education Services,103,Supplies and Services,504,Equipment,5023,Revenue,CATERING.FOOD & BEVERAGES
22-DEC-2022,7020617,8.62,TESCO STORES LTD,336585,Local Environmental Services,Cultural & Related Services,104,Supplies and Services,504,Equipment,5023,Revenue,CATERING.FOOD & BEVERAGES
22-DEC-2022,7020617,25.94,TESCO STORES LTD,336585,Local Environmental Services,Cultural & Related Services,104,Supplies and Services,504,Equipment,5023,Revenue,CATERING.FOOD & BEVERAGES
22-DEC-2022,7020618,30.62,ISSUU PUBLISHING,383654,Regeneration & Economic Development,Cultural & Related Services,104,Supplies and Services,504,Miscellaneous Expenses,5034,Revenue,SUBSCRIPTIONS & PUBLICATIONS.BOOKS & PUBLICATIONS
22-DEC-2022,7020619,5,THE WORKS,383640,"Health, Education, Care and Safeguarding",Children's & Education Services,103,Supplies and Services,504,Equipment,5023,Revenue,SUBSCRIPTIONS & PUBLICATIONS.BOOKS & PUBLICATIONS
22-DEC-2022,7020619,-1.67,THE WORKS,383640,Local Environmental Services,Cultural & Related Services,104,Supplies and Services,504,Equipment,5023,Revenue,SUBSCRIPTIONS & PUBLICATIONS.BOOKS & PUBLICATIONS
22-DEC-2022,7020620,427.08,PREMIER INN,381529,General Fund Housing,Housing Services,108,Supplies and Services,504,Miscellaneous Expenses,5034,Revenue,HUMAN RESOURCES.ACCOMMODATION
22-DEC-2022,7020620,-482.08,PREMIER INN,381529,General Fund Housing,Housing Services,108,Third Party Payments,505,Private Contractors,5042,Revenue,HUMAN RESOURCES.ACCOMMODATION
22-DEC-2022,7020620,-338.75,PREMIER INN,381529,General Fund Housing,Housing Services,108,Third Party Payments,505,Private Contractors,5042,Revenue,HUMAN RESOURCES.ACCOMMODATION
22-DEC-2022,7020620,-252.5,PREMIER INN,381529,General Fund Housing,Housing Services,108,Third Party Payments,505,Private Contractors,5042,Revenue,HUMAN RESOURCES.ACCOMMODATION
22-DEC-2022,7020620,-0.01,PREMIER INN,381529,General Fund Housing,Housing Services,108,Third Party Payments,505,Private Contractors,5042,Revenue,HUMAN RESOURCES.ACCOMMODATION
22-DEC-2022,7020620,0.01,PREMIER INN,381529,General Fund Housing,Housing Services,108,Third Party Payments,505,Private Contractors,5042,Revenue,HUMAN RESOURCES.ACCOMMODATION
22-DEC-2022,7020620,0.01,PREMIER INN,381529,General Fund Housing,Housing Services,108,Third Party Payments,505,Private Contractors,5042,Revenue,HUMAN RESOURCES.ACCOMMODATION
22-DEC-2022,7020620,47.08,PREMIER INN,381529,General Fund Housing,Housing Services,108,Third Party Payments,505,Private Contractors,5042,Revenue,HUMAN RESOURCES.ACCOMMODATION
22-DEC-2022,7020620,49.71,PREMIER INN,381529,General Fund Housing,Housing Services,108,Third Party Payments,505,Private Contractors,5042,Revenue,HUMAN RESOURCES.ACCOMMODATION
22-DEC-2022,7020620,56.08,PREMIER INN,381529,General Fund Housing,Housing Services,108,Third Party Payments,505,Private Contractors,5042,Revenue,HUMAN RESOURCES.ACCOMMODATION
22-DEC-2022,7020620,57.62,PREMIER INN,381529,General Fund Housing,Housing Services,108,Third Party Payments,505,Private Contractors,5042,Revenue,HUMAN RESOURCES.ACCOMMODATION
22-DEC-2022,7020620,58.92,PREMIER INN,381529,General Fund Housing,Housing Services,108,Third Party Payments,505,Private Contractors,5042,Revenue,HUMAN RESOURCES.ACCOMMODATION
22-DEC-2022,7020620,61.17,PREMIER INN,381529,General Fund Housing,Housing Services,108,Third Party Payments,505,Private Contractors,5042,Revenue,HUMAN RESOURCES.ACCOMMODATION
22-DEC-2022,7020620,71.67,PREMIER INN,381529,General Fund Housing,Housing Services,108,Third Party Payments,505,Private Contractors,5042,Revenue,HUMAN RESOURCES.ACCOMMODATION
22-DEC-2022,7020620,83.71,PREMIER INN,381529,General Fund Housing,Housing Services,108,Third Party Payments,505,Private Contractors,5042,Revenue,HUMAN RESOURCES.ACCOMMODATION
22-DEC-2022,7020620,91.5,PREMIER INN,381529,General Fund Housing,Housing Services,108,Third Party Payments,505,Private Contractors,5042,Revenue,HUMAN RESOURCES.ACCOMMODATION
22-DEC-2022,7020620,109.21,PREMIER INN,381529,General Fund Housing,Housing Services,108,Third Party Payments,505,Private Contractors,5042,Revenue,HUMAN RESOURCES.ACCOMMODATION
22-DEC-2022,7020620,109.21,PREMIER INN,381529,General Fund Housing,Housing Services,108,Third Party Payments,505,Private Contractors,5042,Revenue,HUMAN RESOURCES.ACCOMMODATION
22-DEC-2022,7020620,112.88,PREMIER INN,381529,General Fund Housing,Housing Services,108,Third Party Payments,505,Private Contractors,5042,Revenue,HUMAN RESOURCES.ACCOMMODATION
22-DEC-2022,7020620,117.12,PREMIER INN,381529,General Fund Housing,Housing Services,108,Third Party Payments,505,Private Contractors,5042,Revenue,HUMAN RESOURCES.ACCOMMODATION
22-DEC-2022,7020620,119.25,PREMIER INN,381529,General Fund Housing,Housing Services,108,Third Party Payments,505,Private Contractors,5042,Revenue,HUMAN RESOURCES.ACCOMMODATION
22-DEC-2022,7020620,122.08,PREMIER INN,381529,General Fund Housing,Housing Services,108,Third Party Payments,505,Private Contractors,5042,Revenue,HUMAN RESOURCES.ACCOMMODATION
22-DEC-2022,7020620,134.17,PREMIER INN,381529,General Fund Housing,Housing Services,108,Third Party Payments,505,Private Contractors,5042,Revenue,HUMAN RESOURCES.ACCOMMODATION
22-DEC-2022,7020620,139.58,PREMIER INN,381529,General Fund Housing,Housing Services,108,Third Party Payments,505,Private Contractors,5042,Revenue,HUMAN RESOURCES.ACCOMMODATION
22-DEC-2022,7020620,141.21,PREMIER INN,381529,General Fund Housing,Housing Services,108,Third Party Payments,505,Private Contractors,5042,Revenue,HUMAN RESOURCES.ACCOMMODATION
22-DEC-2022,7020620,158.92,PREMIER INN,381529,General Fund Housing,Housing Services,108,Third Party Payments,505,Private Contractors,5042,Revenue,HUMAN RESOURCES.ACCOMMODATION
22-DEC-2022,7020620,175.33,PREMIER INN,381529,General Fund Housing,Housing Services,108,Third Party Payments,505,Private Contractors,5042,Revenue,HUMAN RESOURCES.ACCOMMODATION
22-DEC-2022,7020620,207.92,PREMIER INN,381529,General Fund Housing,Housing Services,108,Third Party Payments,505,Private Contractors,5042,Revenue,HUMAN RESOURCES.ACCOMMODATION
22-DEC-2022,7020620,219.58,PREMIER INN,381529,General Fund Housing,Housing Services,108,Third Party Payments,505,Private Contractors,5042,Revenue,HUMAN RESOURCES.ACCOMMODATION
22-DEC-2022,7020620,245,PREMIER INN,381529,General Fund Housing,Housing Services,108,Third Party Payments,505,Private Contractors,5042,Revenue,HUMAN RESOURCES.ACCOMMODATION
22-DEC-2022,7020620,252.5,PREMIER INN,381529,General Fund Housing,Housing Services,108,Third Party Payments,505,Private Contractors,5042,Revenue,HUMAN RESOURCES.ACCOMMODATION
22-DEC-2022,7020620,258.92,PREMIER INN,381529,General Fund Housing,Housing Services,108,Third Party Payments,505,Private Contractors,5042,Revenue,HUMAN RESOURCES.ACCOMMODATION
22-DEC-2022,7020620,265.83,PREMIER INN,381529,General Fund Housing,Housing Services,108,Third Party Payments,505,Private Contractors,5042,Revenue,HUMAN RESOURCES.ACCOMMODATION
22-DEC-2022,7020620,280.42,PREMIER INN,381529,General Fund Housing,Housing Services,108,Third Party Payments,505,Private Contractors,5042,Revenue,HUMAN RESOURCES.ACCOMMODATION
22-DEC-2022,7020620,293.75,PREMIER INN,381529,General Fund Housing,Housing Services,108,Third Party Payments,505,Private Contractors,5042,Revenue,HUMAN RESOURCES.ACCOMMODATION
22-DEC-2022,7020620,295.83,PREMIER INN,381529,General Fund Housing,Housing Services,108,Third Party Payments,505,Private Contractors,5042,Revenue,HUMAN RESOURCES.ACCOMMODATION
22-DEC-2022,7020620,307.08,PREMIER INN,381529,General Fund Housing,Housing Services,108,Third Party Payments,505,Private Contractors,5042,Revenue,HUMAN RESOURCES.ACCOMMODATION
22-DEC-2022,7020620,311.25,PREMIER INN,381529,General Fund Housing,Housing Services,108,Third Party Payments,505,Private Contractors,5042,Revenue,HUMAN RESOURCES.ACCOMMODATION
22-DEC-2022,7020620,322.5,PREMIER INN,381529,General Fund Housing,Housing Services,108,Third Party Payments,505,Private Contractors,5042,Revenue,HUMAN RESOURCES.ACCOMMODATION
22-DEC-2022,7020620,332.92,PREMIER INN,381529,General Fund Housing,Housing Services,108,Third Party Payments,505,Private Contractors,5042,Revenue,HUMAN RESOURCES.ACCOMMODATION
22-DEC-2022,7020620,338.75,PREMIER INN,381529,General Fund Housing,Housing Services,108,Third Party Payments,505,Private Contractors,5042,Revenue,HUMAN RESOURCES.ACCOMMODATION
22-DEC-2022,7020620,392.5,PREMIER INN,381529,General Fund Housing,Housing Services,108,Third Party Payments,505,Private Contractors,5042,Revenue,HUMAN RESOURCES.ACCOMMODATION
22-DEC-2022,7020620,396.75,PREMIER INN,381529,General Fund Housing,Housing Services,108,Third Party Payments,505,Private Contractors,5042,Revenue,HUMAN RESOURCES.ACCOMMODATION
22-DEC-2022,7020620,410.83,PREMIER INN,381529,General Fund Housing,Housing Services,108,Third Party Payments,505,Private Contractors,5042,Revenue,HUMAN RESOURCES.ACCOMMODATION
22-DEC-2022,7020620,441.25,PREMIER INN,381529,General Fund Housing,Housing Services,108,Third Party Payments,505,Private Contractors,5042,Revenue,HUMAN RESOURCES.ACCOMMODATION
22-DEC-2022,7020620,457.92,PREMIER INN,381529,General Fund Housing,Housing Services,108,Third Party Payments,505,Private Contractors,5042,Revenue,HUMAN RESOURCES.ACCOMMODATION
22-DEC-2022,7020620,458.33,PREMIER INN,381529,General Fund Housing,Housing Services,108,Third Party Payments,505,Private Contractors,5042,Revenue,HUMAN RESOURCES.ACCOMMODATION
22-DEC-2022,7020620,471.67,PREMIER INN,381529,General Fund Housing,Housing Services,108,Third Party Payments,505,Private Contractors,5042,Revenue,HUMAN RESOURCES.ACCOMMODATION
22-DEC-2022,7020620,474.17,PREMIER INN,381529,General Fund Housing,Housing Services,108,Third Party Payments,505,Private Contractors,5042,Revenue,HUMAN RESOURCES.ACCOMMODATION
22-DEC-2022,7020620,482.08,PREMIER INN,381529,General Fund Housing,Housing Services,108,Third Party Payments,505,Private Contractors,5042,Revenue,HUMAN RESOURCES.ACCOMMODATION
22-DEC-2022,7020620,545,PREMIER INN,381529,General Fund Housing,Housing Services,108,Third Party Payments,505,Private Contractors,5042,Revenue,HUMAN RESOURCES.ACCOMMODATION
22-DEC-2022,7020620,446,PREMIER INN,381529,"Health, Education, Care and Safeguarding",Children's & Education Services,103,Third Party Payments,505,Other Establishments,5041,Revenue,HUMAN RESOURCES.ACCOMMODATION
22-DEC-2022,7020620,514,PREMIER INN,381529,"Health, Education, Care and Safeguarding",Children's & Education Services,103,Third Party Payments,505,Other Establishments,5041,Revenue,HUMAN RESOURCES.ACCOMMODATION
22-DEC-2022,7020620,365,PREMIER INN,381529,"Health, Education, Care and Safeguarding",Children's & Education Services,103,Third Party Payments,505,Other Establishments,5041,Revenue,HUMAN RESOURCES.ACCOMMODATION
22-DEC-2022,7020620,384.58,PREMIER INN,381529,"Health, Education, Care and Safeguarding",Children's & Education Services,103,Third Party Payments,505,Other Establishments,5041,Revenue,HUMAN RESOURCES.ACCOMMODATION
22-DEC-2022,7020620,203.75,PREMIER INN,381529,"Health, Education, Care and Safeguarding",Children's & Education Services,103,Supplies and Services,504,Expenses,5030,Revenue,HUMAN RESOURCES.ACCOMMODATION
22-DEC-2022,7020621,5.77,ASDA DIRECT WEB 4387,381378,"Health, Education, Care and Safeguarding",Children's & Education Services,103,Supplies and Services,504,Equipment,5023,Revenue,CATERING.FOOD & BEVERAGES
22-DEC-2022,7020621,7.25,ASDA DIRECT WEB 4387,381378,"Health, Education, Care and Safeguarding",Children's & Education Services,103,Supplies and Services,504,Catering,5024,Revenue,CATERING.FOOD & BEVERAGES
22-DEC-2022,7020621,3.33,ASDA DIRECT WEB 4387,381378,"Health, Education, Care and Safeguarding",Children's & Education Services,103,Third Party Payments,505,Other Establishments,5041,Revenue,CATERING.FOOD & BEVERAGES
22-DEC-2022,7020621,12.79,ASDA DIRECT WEB 4387,381378,Local Environmental Services,Cultural & Related Services,104,Supplies and Services,504,Equipment,5023,Revenue,CATERING.FOOD & BEVERAGES
22-DEC-2022,7020621,5,ASDA DIRECT WEB 4387,381378,Local Environmental Services,Cultural & Related Services,104,Supplies and Services,504,Equipment,5023,Revenue,CATERING.FOOD & BEVERAGES
22-DEC-2022,7020622,44.99,JD SPORTS,382976,"Health, Education, Care and Safeguarding",Children's & Education Services,103,Transfer Payments,506,School Children and Students,5046,Revenue,CLOTHING.CHILDRENS & ADULTS
22-DEC-2022,7020622,153.99,JD SPORTS,382976,"Health, Education, Care and Safeguarding",Children's & Education Services,103,Transfer Payments,506,School Children and Students,5046,Revenue,CLOTHING.CHILDRENS & ADULTS
22-DEC-2022,7020622,125,JD SPORTS,382976,"Health, Education, Care and Safeguarding",Children's & Education Services,103,Third Party Payments,505,Other Establishments,5041,Revenue,CLOTHING.CHILDRENS & ADULTS
22-DEC-2022,7020622,31.13,JD SPORTS,382976,"Health, Education, Care and Safeguarding",Children's & Education Services,103,Supplies and Services,504,Equipment,5023,Revenue,CLOTHING.CHILDRENS & ADULTS
22-DEC-2022,7020623,58.33,THE RANGE,382975,"Health, Education, Care and Safeguarding",Children's & Education Services,103,Supplies and Services,504,Equipment,5023,Revenue,FURNITURE.SOFT FURNISHINGS
22-DEC-2022,7020623,333.33,THE RANGE,382975,"Health, Education, Care and Safeguarding",Children's & Education Services,103,Supplies and Services,504,Equipment,5023,Revenue,FURNITURE.SOFT FURNISHINGS
22-DEC-2022,7020623,7.8,THE RANGE,382975,"Sport, Leisure & Community",Cultural & Related Services,104,Supplies and Services,504,Miscellaneous Expenses,5034,Revenue,FURNITURE.SOFT FURNISHINGS
22-DEC-2022,7020624,0.66,APPLE COMPUTERS,384257,"Health, Education, Care and Safeguarding",Children's & Education Services,103,Supplies and Services,504,Miscellaneous Expenses,5034,Revenue,ICT.HARDWARE
22-DEC-2022,7020625,105.67,BIGDUG LIMITED,393347,"Health, Education, Care and Safeguarding",Adult Social Care,101,Supplies and Services,504,Equipment,5023,Revenue,BUILDING MATERIALS.GENERAL MATERIALS
22-DEC-2022,7020625,658.95,BIGDUG LIMITED,393347,Local Environmental Services,Cultural & Related Services,104,Supplies and Services,504,Equipment,5023,Revenue,BUILDING MATERIALS.GENERAL MATERIALS
22-DEC-2022,7020626,19.17,JUST EAT,393240,Corporate Strategy,Children's & Education Services,103,Supplies and Services,504,Catering,5024,Revenue,NON INFLUENCIBLE.GRANTS
22-DEC-2022,7020627,21.07,FACEBOOK,393228,"Health, Education, Care and Safeguarding",Children's & Education Services,103,Supplies and Services,504,Equipment,5023,Revenue,ADVERTISING & MARKETING.ADVERTISING
22-DEC-2022,7020627,20,FACEBOOK,393228,"Health, Education, Care and Safeguarding",Children's & Education Services,103,Supplies and Services,504,Equipment,5023,Revenue,ADVERTISING & MARKETING.ADVERTISING
22-DEC-2022,7020627,7.23,FACEBOOK,393228,"Health, Education, Care and Safeguarding",Children's & Education Services,103,Supplies and Services,504,Equipment,5023,Revenue,ADVERTISING & MARKETING.ADVERTISING
22-DEC-2022,7020627,40,FACEBOOK,393228,"Health, Education, Care and Safeguarding",Children's & Education Services,103,Supplies and Services,504,Equipment,5023,Revenue,ADVERTISING & MARKETING.ADVERTISING
22-DEC-2022,7020627,68.93,FACEBOOK,393228,"Health, Education, Care and Safeguarding",Children's & Education Services,103,Supplies and Services,504,Equipment,5023,Revenue,ADVERTISING & MARKETING.ADVERTISING
22-DEC-2022,7020627,13.02,FACEBOOK,393228,"Sport, Leisure & Community",Cultural & Related Services,104,Supplies and Services,504,"Printing, Stationery and General Office Expenses",5026,Revenue,ADVERTISING & MARKETING.ADVERTISING
22-DEC-2022,7020627,10,FACEBOOK,393228,"Health, Education, Care and Safeguarding",Children's & Education Services,103,Supplies and Services,504,Equipment,5023,Revenue,ADVERTISING & MARKETING.ADVERTISING
22-DEC-2022,7020628,10.83,DISCLOSURE & BARRING,393127,Corporate Strategy,Children's & Education Services,103,Supplies and Services,504,Equipment,5023,Revenue,SUBSCRIPTIONS & PUBLICATIONS.MEMBERSHIPS
22-DEC-2022,7020628,18,DISCLOSURE & BARRING,393127,General Fund Housing,Housing Services,108,Supplies and Services,504,Miscellaneous Expenses,5034,Revenue,SUBSCRIPTIONS & PUBLICATIONS.MEMBERSHIPS
22-DEC-2022,7020629,16.65,TK MAXX,392657,"Health, Education, Care and Safeguarding",Children's & Education Services,103,Supplies and Services,504,Miscellaneous Expenses,5034,Revenue,FURNITURE.DOMESTIC
22-DEC-2022,7020630,94.29,BRITISH GAS BUSINESS,361360,General Fund Housing,Housing Services,108,Third Party Payments,505,Private Contractors,5042,Revenue,GAS.GAS
22-DEC-2022,7020630,94.29,BRITISH GAS BUSINESS,361360,General Fund Housing,Housing Services,108,Third Party Payments,505,Private Contractors,5042,Revenue,GAS.GAS
22-DEC-2022,7020630,28.57,BRITISH GAS BUSINESS,361360,"Health, Education, Care and Safeguarding",Children's & Education Services,103,Supplies and Services,504,Communications & Computing,5028,Revenue,GAS.GAS
22-DEC-2022,7020630,14.29,BRITISH GAS BUSINESS,361360,"Health, Education, Care and Safeguarding",Children's & Education Services,103,Third Party Payments,505,Other Establishments,5041,Revenue,GAS.GAS
22-DEC-2022,7020630,14.29,BRITISH GAS BUSINESS,361360,"Health, Education, Care and Safeguarding",Children's & Education Services,103,Third Party Payments,505,Other Establishments,5041,Revenue,GAS.GAS
22-DEC-2022,7020630,23.81,BRITISH GAS BUSINESS,361360,"Health, Education, Care and Safeguarding",Children's & Education Services,103,Third Party Payments,505,Other Establishments,5041,Revenue,GAS.GAS
22-DEC-2022,7020630,23.81,BRITISH GAS BUSINESS,361360,"Health, Education, Care and Safeguarding",Children's & Education Services,103,Third Party Payments,505,Other Establishments,5041,Revenue,GAS.GAS
22-DEC-2022,7020630,47.62,BRITISH GAS BUSINESS,361360,"Health, Education, Care and Safeguarding",Children's & Education Services,103,Third Party Payments,505,Other Establishments,5041,Revenue,GAS.GAS
22-DEC-2022,7020630,80.95,BRITISH GAS BUSINESS,361360,"Health, Education, Care and Safeguarding",Children's & Education Services,103,Third Party Payments,505,Other Establishments,5041,Revenue,GAS.GAS
22-DEC-2022,7020630,95.24,BRITISH GAS BUSINESS,361360,"Health, Education, Care and Safeguarding",Children's & Education Services,103,Third Party Payments,505,Other Establishments,5041,Revenue,GAS.GAS
22-DEC-2022,7020630,95.24,BRITISH GAS BUSINESS,361360,"Health, Education, Care and Safeguarding",Children's & Education Services,103,Third Party Payments,505,Other Establishments,5041,Revenue,GAS.GAS
22-DEC-2022,7020630,46.67,BRITISH GAS BUSINESS,361360,Housing Operations,Housing Revenue Account,N/A,Premises-Related Expenditure,502,Energy Costs,5006,Revenue,GAS.GAS
22-DEC-2022,7020630,46.67,BRITISH GAS BUSINESS,361360,Housing Operations,Housing Revenue Account,N/A,Premises-Related Expenditure,502,Energy Costs,5006,Revenue,GAS.GAS
22-DEC-2022,7020630,47.62,BRITISH GAS BUSINESS,361360,Housing Operations,Housing Revenue Account,N/A,Premises-Related Expenditure,502,Energy Costs,5006,Revenue,GAS.GAS
22-DEC-2022,7020630,194.61,BRITISH GAS BUSINESS,361360,Housing Operations,Housing Revenue Account,N/A,Premises-Related Expenditure,502,Energy Costs,5006,Revenue,GAS.GAS
22-DEC-2022,7020630,-0.01,BRITISH GAS BUSINESS,361360,Housing Operations,Housing Revenue Account,N/A,Premises-Related Expenditure,502,Energy Costs,5006,Revenue,GAS.GAS
22-DEC-2022,7020630,38.1,BRITISH GAS BUSINESS,361360,Housing Operations,Housing Revenue Account,N/A,Premises-Related Expenditure,502,Energy Costs,5006,Revenue,GAS.GAS
22-DEC-2022,7020630,40.65,BRITISH GAS BUSINESS,361360,Housing Operations,Housing Revenue Account,N/A,Premises-Related Expenditure,502,Energy Costs,5006,Revenue,GAS.GAS
22-DEC-2022,7020630,94.29,BRITISH GAS BUSINESS,361360,Housing Operations,Housing Revenue Account,N/A,Premises-Related Expenditure,502,Energy Costs,5006,Revenue,GAS.GAS
22-DEC-2022,7020630,94.29,BRITISH GAS BUSINESS,361360,Housing Operations,Housing Revenue Account,N/A,Premises-Related Expenditure,502,Energy Costs,5006,Revenue,GAS.GAS
22-DEC-2022,7020630,366.7,BRITISH GAS BUSINESS,361360,Housing Operations,Housing Revenue Account,N/A,Premises-Related Expenditure,502,Energy Costs,5006,Revenue,GAS.GAS
22-DEC-2022,7020630,488.47,BRITISH GAS BUSINESS,361360,Housing Operations,Housing Revenue Account,N/A,Premises-Related Expenditure,502,Energy Costs,5006,Revenue,GAS.GAS
22-DEC-2022,7020630,105.86,BRITISH GAS BUSINESS,361360,Housing Operations,Housing Revenue Account,N/A,Supplies and Services,504,Miscellaneous Expenses,5034,Revenue,GAS.GAS
22-DEC-2022,7020631,39.03,PARTY DELIGHTS LTD,392203,"Health, Education, Care and Safeguarding",Children's & Education Services,103,Supplies and Services,504,"Clothing, Uniforms and Laundry",5025,Revenue,ADVERTISING & MARKETING.EVENTS & PROMOTIONS
22-DEC-2022,7020632,0.01,AO RETAIL LIMITED,392123,"Health, Education, Care and Safeguarding",Children's & Education Services,103,Third Party Payments,505,Other Establishments,5041,Revenue,CATERING.EQUIPMENT & UTENSILS
22-DEC-2022,7020632,673.32,AO RETAIL LIMITED,392123,"Health, Education, Care and Safeguarding",Children's & Education Services,103,Third Party Payments,505,Other Establishments,5041,Revenue,CATERING.EQUIPMENT & UTENSILS
22-DEC-2022,7020633,54.5,ON A ROLL SANDWICH COMPANY,391893,Commissioning & Asset Management,Children's & Education Services,103,Supplies and Services,504,Equipment,5023,Revenue,CATERING.FOOD & BEVERAGES
22-DEC-2022,7020633,39,ON A ROLL SANDWICH COMPANY,391893,Commissioning & Asset Management,Children's & Education Services,103,Supplies and Services,504,Equipment,5023,Revenue,CATERING.FOOD & BEVERAGES
22-DEC-2022,7020633,44.4,ON A ROLL SANDWICH COMPANY,391893,Commissioning & Asset Management,Children's & Education Services,103,Supplies and Services,504,Equipment,5023,Revenue,CATERING.FOOD & BEVERAGES
22-DEC-2022,7020633,54.5,ON A ROLL SANDWICH COMPANY,391893,Commissioning & Asset Management,Children's & Education Services,103,Supplies and Services,504,Equipment,5023,Revenue,CATERING.FOOD & BEVERAGES
22-DEC-2022,7020633,80.34,ON A ROLL SANDWICH COMPANY,391893,Commissioning & Asset Management,Children's & Education Services,103,Supplies and Services,504,Equipment,5023,Revenue,CATERING.FOOD & BEVERAGES
22-DEC-2022,7020633,98.9,ON A ROLL SANDWICH COMPANY,391893,Commissioning & Asset Management,Children's & Education Services,103,Supplies and Services,504,Equipment,5023,Revenue,CATERING.FOOD & BEVERAGES
22-DEC-2022,7020633,65.3,ON A ROLL SANDWICH COMPANY,391893,Commissioning & Asset Management,Children's & Education Services,103,Supplies and Services,504,Equipment,5023,Revenue,CATERING.FOOD & BEVERAGES
22-DEC-2022,7020633,48.68,ON A ROLL SANDWICH COMPANY,391893,Commissioning & Asset Management,Children's & Education Services,103,Supplies and Services,504,Equipment,5023,Revenue,CATERING.FOOD & BEVERAGES
22-DEC-2022,7020633,48.96,ON A ROLL SANDWICH COMPANY,391893,Commissioning & Asset Management,Children's & Education Services,103,Supplies and Services,504,Equipment,5023,Revenue,CATERING.FOOD & BEVERAGES
22-DEC-2022,7020633,97.22,ON A ROLL SANDWICH COMPANY,391893,Commissioning & Asset Management,Children's & Education Services,103,Supplies and Services,504,Equipment,5023,Revenue,CATERING.FOOD & BEVERAGES
22-DEC-2022,7020633,204.3,ON A ROLL SANDWICH COMPANY,391893,Commissioning & Asset Management,Children's & Education Services,103,Supplies and Services,504,Equipment,5023,Revenue,CATERING.FOOD & BEVERAGES
22-DEC-2022,7020633,245.04,ON A ROLL SANDWICH COMPANY,391893,Commissioning & Asset Management,Children's & Education Services,103,Supplies and Services,504,Equipment,5023,Revenue,CATERING.FOOD & BEVERAGES
22-DEC-2022,7020633,550.49,ON A ROLL SANDWICH COMPANY,391893,Commissioning & Asset Management,Children's & Education Services,103,Supplies and Services,504,Equipment,5023,Revenue,CATERING.FOOD & BEVERAGES
22-DEC-2022,7020633,629.26,ON A ROLL SANDWICH COMPANY,391893,Commissioning & Asset Management,Children's & Education Services,103,Supplies and Services,504,Equipment,5023,Revenue,CATERING.FOOD & BEVERAGES
22-DEC-2022,7020633,381,ON A ROLL SANDWICH COMPANY,391893,Commissioning & Asset Management,Children's & Education Services,103,Supplies and Services,504,Equipment,5023,Revenue,CATERING.FOOD & BEVERAGES
22-DEC-2022,7020633,393.5,ON A ROLL SANDWICH COMPANY,391893,Commissioning & Asset Management,Children's & Education Services,103,Supplies and Services,504,Equipment,5023,Revenue,CATERING.FOOD & BEVERAGES
22-DEC-2022,7020633,393.5,ON A ROLL SANDWICH COMPANY,391893,Commissioning & Asset Management,Children's & Education Services,103,Supplies and Services,504,Equipment,5023,Revenue,CATERING.FOOD & BEVERAGES
22-DEC-2022,7020633,52.34,ON A ROLL SANDWICH COMPANY,391893,Commissioning & Asset Management,Children's & Education Services,103,Supplies and Services,504,Equipment,5023,Revenue,CATERING.FOOD & BEVERAGES
22-DEC-2022,7020633,49.8,ON A ROLL SANDWICH COMPANY,391893,Commissioning & Asset Management,Children's & Education Services,103,Supplies and Services,504,Equipment,5023,Revenue,CATERING.FOOD & BEVERAGES
22-DEC-2022,7020633,249.5,ON A ROLL SANDWICH COMPANY,391893,Commissioning & Asset Management,Children's & Education Services,103,Supplies and Services,504,Equipment,5023,Revenue,CATERING.FOOD & BEVERAGES
22-DEC-2022,7020633,273.46,ON A ROLL SANDWICH COMPANY,391893,Commissioning & Asset Management,Children's & Education Services,103,Supplies and Services,504,Equipment,5023,Revenue,CATERING.FOOD & BEVERAGES
22-DEC-2022,7020633,292.72,ON A ROLL SANDWICH COMPANY,391893,Commissioning & Asset Management,Children's & Education Services,103,Supplies and Services,504,Equipment,5023,Revenue,CATERING.FOOD & BEVERAGES
22-DEC-2022,7020633,327.59,ON A ROLL SANDWICH COMPANY,391893,Commissioning & Asset Management,Children's & Education Services,103,Supplies and Services,504,Equipment,5023,Revenue,CATERING.FOOD & BEVERAGES
22-DEC-2022,7020633,55.44,ON A ROLL SANDWICH COMPANY,391893,Commissioning & Asset Management,Children's & Education Services,103,Supplies and Services,504,Equipment,5023,Revenue,CATERING.FOOD & BEVERAGES
22-DEC-2022,7020633,49.65,ON A ROLL SANDWICH COMPANY,391893,Commissioning & Asset Management,Children's & Education Services,103,Supplies and Services,504,Equipment,5023,Revenue,CATERING.FOOD & BEVERAGES
22-DEC-2022,7020633,54.35,ON A ROLL SANDWICH COMPANY,391893,Commissioning & Asset Management,Children's & Education Services,103,Supplies and Services,504,Equipment,5023,Revenue,CATERING.FOOD & BEVERAGES
22-DEC-2022,7020633,99.6,ON A ROLL SANDWICH COMPANY,391893,Commissioning & Asset Management,Children's & Education Services,103,Supplies and Services,504,Equipment,5023,Revenue,CATERING.FOOD & BEVERAGES
22-DEC-2022,7020633,48.4,ON A ROLL SANDWICH COMPANY,391893,Commissioning & Asset Management,Children's & Education Services,103,Supplies and Services,504,Equipment,5023,Revenue,CATERING.FOOD & BEVERAGES
22-DEC-2022,7020633,34.3,ON A ROLL SANDWICH COMPANY,391893,Commissioning & Asset Management,Children's & Education Services,103,Supplies and Services,504,Equipment,5023,Revenue,CATERING.FOOD & BEVERAGES
22-DEC-2022,7020633,60.14,ON A ROLL SANDWICH COMPANY,391893,Commissioning & Asset Management,Children's & Education Services,103,Supplies and Services,504,Equipment,5023,Revenue,CATERING.FOOD & BEVERAGES
22-DEC-2022,7020633,15.22,ON A ROLL SANDWICH COMPANY,391893,Commissioning & Asset Management,Children's & Education Services,103,Supplies and Services,504,Equipment,5023,Revenue,CATERING.FOOD & BEVERAGES
22-DEC-2022,7020633,51.2,ON A ROLL SANDWICH COMPANY,391893,Commissioning & Asset Management,Children's & Education Services,103,Supplies and Services,504,Equipment,5023,Revenue,CATERING.FOOD & BEVERAGES
22-DEC-2022,7020633,49.1,ON A ROLL SANDWICH COMPANY,391893,Commissioning & Asset Management,Children's & Education Services,103,Supplies and Services,504,Equipment,5023,Revenue,CATERING.FOOD & BEVERAGES
22-DEC-2022,7020633,1694.47,ON A ROLL SANDWICH COMPANY,391893,Commissioning & Asset Management,Children's & Education Services,103,Supplies and Services,504,Equipment,5023,Revenue,CATERING.FOOD & BEVERAGES
22-DEC-2022,7020633,2041.4,ON A ROLL SANDWICH COMPANY,391893,Commissioning & Asset Management,Children's & Education Services,103,Supplies and Services,504,Equipment,5023,Revenue,CATERING.FOOD & BEVERAGES
22-DEC-2022,7020633,2087.12,ON A ROLL SANDWICH COMPANY,391893,Commissioning & Asset Management,Children's & Education Services,103,Supplies and Services,504,Equipment,5023,Revenue,CATERING.FOOD & BEVERAGES
22-DEC-2022,7020633,2120.1,ON A ROLL SANDWICH COMPANY,391893,Commissioning & Asset Management,Children's & Education Services,103,Supplies and Services,504,Equipment,5023,Revenue,CATERING.FOOD & BEVERAGES
22-DEC-2022,7020633,162.7,ON A ROLL SANDWICH COMPANY,391893,Commissioning & Asset Management,Children's & Education Services,103,Supplies and Services,504,Equipment,5023,Revenue,CATERING.FOOD & BEVERAGES
22-DEC-2022,7020633,330.6,ON A ROLL SANDWICH COMPANY,391893,Commissioning & Asset Management,Children's & Education Services,103,Supplies and Services,504,Equipment,5023,Revenue,CATERING.FOOD & BEVERAGES
22-DEC-2022,7020633,397.12,ON A ROLL SANDWICH COMPANY,391893,Commissioning & Asset Management,Children's & Education Services,103,Supplies and Services,504,Equipment,5023,Revenue,CATERING.FOOD & BEVERAGES
22-DEC-2022,7020633,447.12,ON A ROLL SANDWICH COMPANY,391893,Commissioning & Asset Management,Children's & Education Services,103,Supplies and Services,504,Equipment,5023,Revenue,CATERING.FOOD & BEVERAGES
22-DEC-2022,7020633,1283.26,ON A ROLL SANDWICH COMPANY,391893,Commissioning & Asset Management,Children's & Education Services,103,Supplies and Services,504,Equipment,5023,Revenue,CATERING.FOOD & BEVERAGES
22-DEC-2022,7020633,1380.26,ON A ROLL SANDWICH COMPANY,391893,Commissioning & Asset Management,Children's & Education Services,103,Supplies and Services,504,Equipment,5023,Revenue,CATERING.FOOD & BEVERAGES
22-DEC-2022,7020633,1382.78,ON A ROLL SANDWICH COMPANY,391893,Commissioning & Asset Management,Children's & Education Services,103,Supplies and Services,504,Equipment,5023,Revenue,CATERING.FOOD & BEVERAGES
22-DEC-2022,7020633,1609.42,ON A ROLL SANDWICH COMPANY,391893,Commissioning & Asset Management,Children's & Education Services,103,Supplies and Services,504,Equipment,5023,Revenue,CATERING.FOOD & BEVERAGES
22-DEC-2022,7020633,1326.2,ON A ROLL SANDWICH COMPANY,391893,Commissioning & Asset Management,Children's & Education Services,103,Supplies and Services,504,Equipment,5023,Revenue,CATERING.FOOD & BEVERAGES
22-DEC-2022,7020633,1327.4,ON A ROLL SANDWICH COMPANY,391893,Commissioning & Asset Management,Children's & Education Services,103,Supplies and Services,504,Equipment,5023,Revenue,CATERING.FOOD & BEVERAGES
22-DEC-2022,7020633,1390.6,ON A ROLL SANDWICH COMPANY,391893,Commissioning & Asset Management,Children's & Education Services,103,Supplies and Services,504,Equipment,5023,Revenue,CATERING.FOOD & BEVERAGES
22-DEC-2022,7020633,1472.36,ON A ROLL SANDWICH COMPANY,391893,Commissioning & Asset Management,Children's & Education Services,103,Supplies and Services,504,Equipment,5023,Revenue,CATERING.FOOD & BEVERAGES
22-DEC-2022,7020633,560.92,ON A ROLL SANDWICH COMPANY,391893,Commissioning & Asset Management,Children's & Education Services,103,Supplies and Services,504,Equipment,5023,Revenue,CATERING.FOOD & BEVERAGES
22-DEC-2022,7020633,619.88,ON A ROLL SANDWICH COMPANY,391893,Commissioning & Asset Management,Children's & Education Services,103,Supplies and Services,504,Equipment,5023,Revenue,CATERING.FOOD & BEVERAGES
22-DEC-2022,7020633,654.29,ON A ROLL SANDWICH COMPANY,391893,Commissioning & Asset Management,Children's & Education Services,103,Supplies and Services,504,Equipment,5023,Revenue,CATERING.FOOD & BEVERAGES
22-DEC-2022,7020633,664.68,ON A ROLL SANDWICH COMPANY,391893,Commissioning & Asset Management,Children's & Education Services,103,Supplies and Services,504,Equipment,5023,Revenue,CATERING.FOOD & BEVERAGES
22-DEC-2022,7020633,483.26,ON A ROLL SANDWICH COMPANY,391893,Commissioning & Asset Management,Children's & Education Services,103,Supplies and Services,504,Equipment,5023,Revenue,CATERING.FOOD & BEVERAGES
22-DEC-2022,7020633,489.34,ON A ROLL SANDWICH COMPANY,391893,Commissioning & Asset Management,Children's & Education Services,103,Supplies and Services,504,Equipment,5023,Revenue,CATERING.FOOD & BEVERAGES
22-DEC-2022,7020633,581.92,ON A ROLL SANDWICH COMPANY,391893,Commissioning & Asset Management,Children's & Education Services,103,Supplies and Services,504,Equipment,5023,Revenue,CATERING.FOOD & BEVERAGES
22-DEC-2022,7020633,684.11,ON A ROLL SANDWICH COMPANY,391893,Commissioning & Asset Management,Children's & Education Services,103,Supplies and Services,504,Equipment,5023,Revenue,CATERING.FOOD & BEVERAGES
22-DEC-2022,7020633,762.32,ON A ROLL SANDWICH COMPANY,391893,Commissioning & Asset Management,Children's & Education Services,103,Supplies and Services,504,Equipment,5023,Revenue,CATERING.FOOD & BEVERAGES
22-DEC-2022,7020633,852.46,ON A ROLL SANDWICH COMPANY,391893,Commissioning & Asset Management,Children's & Education Services,103,Supplies and Services,504,Equipment,5023,Revenue,CATERING.FOOD & BEVERAGES
22-DEC-2022,7020633,852.84,ON A ROLL SANDWICH COMPANY,391893,Commissioning & Asset Management,Children's & Education Services,103,Supplies and Services,504,Equipment,5023,Revenue,CATERING.FOOD & BEVERAGES
22-DEC-2022,7020633,883.7,ON A ROLL SANDWICH COMPANY,391893,Commissioning & Asset Management,Children's & Education Services,103,Supplies and Services,504,Equipment,5023,Revenue,CATERING.FOOD & BEVERAGES
22-DEC-2022,7020633,1058.83,ON A ROLL SANDWICH COMPANY,391893,Commissioning & Asset Management,Children's & Education Services,103,Supplies and Services,504,Equipment,5023,Revenue,CATERING.FOOD & BEVERAGES
22-DEC-2022,7020633,1193.55,ON A ROLL SANDWICH COMPANY,391893,Commissioning & Asset Management,Children's & Education Services,103,Supplies and Services,504,Equipment,5023,Revenue,CATERING.FOOD & BEVERAGES
22-DEC-2022,7020633,921.22,ON A ROLL SANDWICH COMPANY,391893,Commissioning & Asset Management,Children's & Education Services,103,Supplies and Services,504,Equipment,5023,Revenue,CATERING.FOOD & BEVERAGES
22-DEC-2022,7020633,1071.77,ON A ROLL SANDWICH COMPANY,391893,Commissioning & Asset Management,Children's & Education Services,103,Supplies and Services,504,Equipment,5023,Revenue,CATERING.FOOD & BEVERAGES
22-DEC-2022,7020633,1158.46,ON A ROLL SANDWICH COMPANY,391893,Commissioning & Asset Management,Children's & Education Services,103,Supplies and Services,504,Equipment,5023,Revenue,CATERING.FOOD & BEVERAGES
22-DEC-2022,7020633,1262.69,ON A ROLL SANDWICH COMPANY,391893,Commissioning & Asset Management,Children's & Education Services,103,Supplies and Services,504,Equipment,5023,Revenue,CATERING.FOOD & BEVERAGES
22-DEC-2022,7020633,911.02,ON A ROLL SANDWICH COMPANY,391893,Commissioning & Asset Management,Children's & Education Services,103,Supplies and Services,504,Equipment,5023,Revenue,CATERING.FOOD & BEVERAGES
22-DEC-2022,7020633,1157.89,ON A ROLL SANDWICH COMPANY,391893,Commissioning & Asset Management,Children's & Education Services,103,Supplies and Services,504,Equipment,5023,Revenue,CATERING.FOOD & BEVERAGES
22-DEC-2022,7020633,1160.9,ON A ROLL SANDWICH COMPANY,391893,Commissioning & Asset Management,Children's & Education Services,103,Supplies and Services,504,Equipment,5023,Revenue,CATERING.FOOD & BEVERAGES
22-DEC-2022,7020633,1166.45,ON A ROLL SANDWICH COMPANY,391893,Commissioning & Asset Management,Children's & Education Services,103,Supplies and Services,504,Equipment,5023,Revenue,CATERING.FOOD & BEVERAGES
22-DEC-2022,7020633,88.8,ON A ROLL SANDWICH COMPANY,391893,Commissioning & Asset Management,Children's & Education Services,103,Supplies and Services,504,Equipment,5023,Revenue,CATERING.FOOD & BEVERAGES
22-DEC-2022,7020633,93.5,ON A ROLL SANDWICH COMPANY,391893,Commissioning & Asset Management,Children's & Education Services,103,Supplies and Services,504,Equipment,5023,Revenue,CATERING.FOOD & BEVERAGES
22-DEC-2022,7020633,98.9,ON A ROLL SANDWICH COMPANY,391893,Commissioning & Asset Management,Children's & Education Services,103,Supplies and Services,504,Equipment,5023,Revenue,CATERING.FOOD & BEVERAGES
22-DEC-2022,7020633,100.1,ON A ROLL SANDWICH COMPANY,391893,Commissioning & Asset Management,Children's & Education Services,103,Supplies and Services,504,Equipment,5023,Revenue,CATERING.FOOD & BEVERAGES
22-DEC-2022,7020633,51.3,ON A ROLL SANDWICH COMPANY,391893,Commissioning & Asset Management,Children's & Education Services,103,Supplies and Services,504,Equipment,5023,Revenue,CATERING.FOOD & BEVERAGES
22-DEC-2022,7020633,57.78,ON A ROLL SANDWICH COMPANY,391893,Commissioning & Asset Management,Children's & Education Services,103,Supplies and Services,504,Equipment,5023,Revenue,CATERING.FOOD & BEVERAGES
22-DEC-2022,7020633,60.56,ON A ROLL SANDWICH COMPANY,391893,Commissioning & Asset Management,Children's & Education Services,103,Supplies and Services,504,Equipment,5023,Revenue,CATERING.FOOD & BEVERAGES
22-DEC-2022,7020633,305.96,ON A ROLL SANDWICH COMPANY,391893,Commissioning & Asset Management,Children's & Education Services,103,Supplies and Services,504,Equipment,5023,Revenue,CATERING.FOOD & BEVERAGES
22-DEC-2022,7020633,305.98,ON A ROLL SANDWICH COMPANY,391893,Commissioning & Asset Management,Children's & Education Services,103,Supplies and Services,504,Equipment,5023,Revenue,CATERING.FOOD & BEVERAGES
22-DEC-2022,7020633,313.55,ON A ROLL SANDWICH COMPANY,391893,Commissioning & Asset Management,Children's & Education Services,103,Supplies and Services,504,Equipment,5023,Revenue,CATERING.FOOD & BEVERAGES
22-DEC-2022,7020633,314.99,ON A ROLL SANDWICH COMPANY,391893,Commissioning & Asset Management,Children's & Education Services,103,Supplies and Services,504,Equipment,5023,Revenue,CATERING.FOOD & BEVERAGES
22-DEC-2022,7020633,49.1,ON A ROLL SANDWICH COMPANY,391893,Commissioning & Asset Management,Children's & Education Services,103,Supplies and Services,504,Equipment,5023,Revenue,CATERING.FOOD & BEVERAGES
22-DEC-2022,7020633,49.1,ON A ROLL SANDWICH COMPANY,391893,Commissioning & Asset Management,Children's & Education Services,103,Supplies and Services,504,Equipment,5023,Revenue,CATERING.FOOD & BEVERAGES
22-DEC-2022,7020633,98.48,ON A ROLL SANDWICH COMPANY,391893,Commissioning & Asset Management,Children's & Education Services,103,Supplies and Services,504,Equipment,5023,Revenue,CATERING.FOOD & BEVERAGES
22-DEC-2022,7020633,70.51,ON A ROLL SANDWICH COMPANY,391893,Commissioning & Asset Management,Children's & Education Services,103,Supplies and Services,504,Equipment,5023,Revenue,CATERING.FOOD & BEVERAGES
22-DEC-2022,7020633,70.51,ON A ROLL SANDWICH COMPANY,391893,Commissioning & Asset Management,Children's & Education Services,103,Supplies and Services,504,Equipment,5023,Revenue,CATERING.FOOD & BEVERAGES
22-DEC-2022,7020633,71.59,ON A ROLL SANDWICH COMPANY,391893,Commissioning & Asset Management,Children's & Education Services,103,Supplies and Services,504,Equipment,5023,Revenue,CATERING.FOOD & BEVERAGES
22-DEC-2022,7020633,73.87,ON A ROLL SANDWICH COMPANY,391893,Commissioning & Asset Management,Children's & Education Services,103,Supplies and Services,504,Equipment,5023,Revenue,CATERING.FOOD & BEVERAGES
22-DEC-2022,7020633,683.65,ON A ROLL SANDWICH COMPANY,391893,Commissioning & Asset Management,Children's & Education Services,103,Supplies and Services,504,Equipment,5023,Revenue,CATERING.FOOD & BEVERAGES
22-DEC-2022,7020633,683.65,ON A ROLL SANDWICH COMPANY,391893,Commissioning & Asset Management,Children's & Education Services,103,Supplies and Services,504,Equipment,5023,Revenue,CATERING.FOOD & BEVERAGES
22-DEC-2022,7020633,691.87,ON A ROLL SANDWICH COMPANY,391893,Commissioning & Asset Management,Children's & Education Services,103,Supplies and Services,504,Equipment,5023,Revenue,CATERING.FOOD & BEVERAGES
22-DEC-2022,7020633,914.05,ON A ROLL SANDWICH COMPANY,391893,Commissioning & Asset Management,Children's & Education Services,103,Supplies and Services,504,Equipment,5023,Revenue,CATERING.FOOD & BEVERAGES
22-DEC-2022,7020633,50.5,ON A ROLL SANDWICH COMPANY,391893,Commissioning & Asset Management,Children's & Education Services,103,Supplies and Services,504,Equipment,5023,Revenue,CATERING.FOOD & BEVERAGES
22-DEC-2022,7020634,15.75,SAMBUCA CASSIA LTD,391850,"Health, Education, Care and Safeguarding",Children's & Education Services,103,Third Party Payments,505,Other Establishments,5041,Revenue,CATERING.FOOD & BEVERAGES
22-DEC-2022,7020635,33.25,DUNELM LTD,391723,"Health, Education, Care and Safeguarding",Children's & Education Services,103,Supplies and Services,504,Equipment,5023,Revenue,FURNITURE.SOFT FURNISHINGS
22-DEC-2022,7020635,185,DUNELM LTD,391723,"Health, Education, Care and Safeguarding",Children's & Education Services,103,Supplies and Services,504,Equipment,5023,Revenue,FURNITURE.SOFT FURNISHINGS
22-DEC-2022,7020635,288.5,DUNELM LTD,391723,"Health, Education, Care and Safeguarding",Children's & Education Services,103,Supplies and Services,504,Equipment,5023,Revenue,FURNITURE.SOFT FURNISHINGS
22-DEC-2022,7020636,0.01,ALDI STORES LTD,391717,"Health, Education, Care and Safeguarding",Children's & Education Services,103,Supplies and Services,504,Equipment,5023,Revenue,CATERING.FOOD & BEVERAGES
22-DEC-2022,7020636,73.17,ALDI STORES LTD,391717,"Health, Education, Care and Safeguarding",Children's & Education Services,103,Supplies and Services,504,Equipment,5023,Revenue,CATERING.FOOD & BEVERAGES
22-DEC-2022,7020636,81.83,ALDI STORES LTD,391717,"Health, Education, Care and Safeguarding",Children's & Education Services,103,Supplies and Services,504,Equipment,5023,Revenue,CATERING.FOOD & BEVERAGES
22-DEC-2022,7020636,85.42,ALDI STORES LTD,391717,"Health, Education, Care and Safeguarding",Children's & Education Services,103,Supplies and Services,504,Equipment,5023,Revenue,CATERING.FOOD & BEVERAGES
22-DEC-2022,7020636,97.19,ALDI STORES LTD,391717,"Health, Education, Care and Safeguarding",Children's & Education Services,103,Supplies and Services,504,Equipment,5023,Revenue,CATERING.FOOD & BEVERAGES
22-DEC-2022,7020636,21.16,ALDI STORES LTD,391717,"Health, Education, Care and Safeguarding",Children's & Education Services,103,Third Party Payments,505,Other Establishments,5041,Revenue,CATERING.FOOD & BEVERAGES
22-DEC-2022,7020636,0.01,ALDI STORES LTD,391717,Corporate Strategy,Children's & Education Services,103,Supplies and Services,504,Catering,5024,Revenue,CATERING.FOOD & BEVERAGES
22-DEC-2022,7020636,9.92,ALDI STORES LTD,391717,Corporate Strategy,Children's & Education Services,103,Supplies and Services,504,Catering,5024,Revenue,CATERING.FOOD & BEVERAGES
22-DEC-2022,7020636,18.95,ALDI STORES LTD,391717,"Health, Education, Care and Safeguarding",Children's & Education Services,103,Supplies and Services,504,Equipment,5023,Revenue,CATERING.FOOD & BEVERAGES
22-DEC-2022,7020636,25.36,ALDI STORES LTD,391717,"Health, Education, Care and Safeguarding",Children's & Education Services,103,Supplies and Services,504,Equipment,5023,Revenue,CATERING.FOOD & BEVERAGES
22-DEC-2022,7020636,3.65,ALDI STORES LTD,391717,Local Environmental Services,Cultural & Related Services,104,Supplies and Services,504,Miscellaneous Expenses,5034,Revenue,CATERING.FOOD & BEVERAGES
22-DEC-2022,7020636,4.45,ALDI STORES LTD,391717,Local Environmental Services,Cultural & Related Services,104,Supplies and Services,504,Miscellaneous Expenses,5034,Revenue,CATERING.FOOD & BEVERAGES
22-DEC-2022,7020636,4.8,ALDI STORES LTD,391717,Local Environmental Services,Cultural & Related Services,104,Supplies and Services,504,Miscellaneous Expenses,5034,Revenue,CATERING.FOOD & BEVERAGES
22-DEC-2022,7020636,26.63,ALDI STORES LTD,391717,Local Environmental Services,Cultural & Related Services,104,Supplies and Services,504,Equipment,5023,Revenue,CATERING.FOOD & BEVERAGES
22-DEC-2022,7020637,33.33,EE LIMITED,345889,"Health, Education, Care and Safeguarding",Children's & Education Services,103,Supplies and Services,504,Miscellaneous Expenses,5034,Revenue,TELECOMMUNICATIONS.MOBILE
22-DEC-2022,7020638,415.05,GIFTSTONES LTD T/A BRITISH FOSSILS,302516,Regeneration & Economic Development,Cultural & Related Services,104,Supplies and Services,504,Equipment,5023,Revenue,EDUCATIONAL SUPPLIES.ARTS & CRAFTS
22-DEC-2022,7020639,20.3,THOMAS SHERRIFF & CO LTD,399182,Local Environmental Services,Cultural & Related Services,104,Supplies and Services,504,Equipment,5023,Revenue,VEHICLE MANAGEMENT.FLEET MANAGEMENT
22-DEC-2022,7020640,43.37,BLINDS 2 GO,399586,"Health, Education, Care and Safeguarding",Children's & Education Services,103,Supplies and Services,504,Equipment,5023,Revenue,NON INFLUENCIBLE.NON INFLUENCIBLE
22-DEC-2022,7020641,60,CSCS,100500,"Health, Education, Care and Safeguarding",Children's & Education Services,103,Supplies and Services,504,Equipment,5023,Revenue,REPAIRS & MAINTENANCE.REPAIRS & MAINTENANCE
22-DEC-2022,7020642,0.69,TOTAL PRODUCE GATESHEAD,399244,Local Environmental Services,Adult Social Care,101,Supplies and Services,504,Equipment,5023,Revenue,CATERING.FOOD & BEVERAGES
22-DEC-2022,7020642,0.73,TOTAL PRODUCE GATESHEAD,399244,Local Environmental Services,Adult Social Care,101,Supplies and Services,504,Equipment,5023,Revenue,CATERING.FOOD & BEVERAGES
22-DEC-2022,7020642,0.85,TOTAL PRODUCE GATESHEAD,399244,Local Environmental Services,Adult Social Care,101,Supplies and Services,504,Equipment,5023,Revenue,CATERING.FOOD & BEVERAGES
22-DEC-2022,7020642,0.99,TOTAL PRODUCE GATESHEAD,399244,Local Environmental Services,Adult Social Care,101,Supplies and Services,504,Equipment,5023,Revenue,CATERING.FOOD & BEVERAGES
22-DEC-2022,7020642,0.99,TOTAL PRODUCE GATESHEAD,399244,Local Environmental Services,Adult Social Care,101,Supplies and Services,504,Equipment,5023,Revenue,CATERING.FOOD & BEVERAGES
22-DEC-2022,7020642,0.99,TOTAL PRODUCE GATESHEAD,399244,Local Environmental Services,Adult Social Care,101,Supplies and Services,504,Equipment,5023,Revenue,CATERING.FOOD & BEVERAGES
22-DEC-2022,7020642,0.99,TOTAL PRODUCE GATESHEAD,399244,Local Environmental Services,Adult Social Care,101,Supplies and Services,504,Equipment,5023,Revenue,CATERING.FOOD & BEVERAGES
22-DEC-2022,7020642,0.99,TOTAL PRODUCE GATESHEAD,399244,Local Environmental Services,Adult Social Care,101,Supplies and Services,504,Equipment,5023,Revenue,CATERING.FOOD & BEVERAGES
22-DEC-2022,7020642,0.99,TOTAL PRODUCE GATESHEAD,399244,Local Environmental Services,Adult Social Care,101,Supplies and Services,504,Equipment,5023,Revenue,CATERING.FOOD & BEVERAGES
22-DEC-2022,7020642,0.99,TOTAL PRODUCE GATESHEAD,399244,Local Environmental Services,Adult Social Care,101,Supplies and Services,504,Equipment,5023,Revenue,CATERING.FOOD & BEVERAGES
22-DEC-2022,7020642,0.99,TOTAL PRODUCE GATESHEAD,399244,Local Environmental Services,Adult Social Care,101,Supplies and Services,504,Equipment,5023,Revenue,CATERING.FOOD & BEVERAGES
22-DEC-2022,7020642,1,TOTAL PRODUCE GATESHEAD,399244,Local Environmental Services,Adult Social Care,101,Supplies and Services,504,Equipment,5023,Revenue,CATERING.FOOD & BEVERAGES
22-DEC-2022,7020642,1.04,TOTAL PRODUCE GATESHEAD,399244,Local Environmental Services,Adult Social Care,101,Supplies and Services,504,Equipment,5023,Revenue,CATERING.FOOD & BEVERAGES
22-DEC-2022,7020642,1.19,TOTAL PRODUCE GATESHEAD,399244,Local Environmental Services,Adult Social Care,101,Supplies and Services,504,Equipment,5023,Revenue,CATERING.FOOD & BEVERAGES
22-DEC-2022,7020642,1.29,TOTAL PRODUCE GATESHEAD,399244,Local Environmental Services,Adult Social Care,101,Supplies and Services,504,Equipment,5023,Revenue,CATERING.FOOD & BEVERAGES
22-DEC-2022,7020642,1.29,TOTAL PRODUCE GATESHEAD,399244,Local Environmental Services,Adult Social Care,101,Supplies and Services,504,Equipment,5023,Revenue,CATERING.FOOD & BEVERAGES
22-DEC-2022,7020642,1.29,TOTAL PRODUCE GATESHEAD,399244,Local Environmental Services,Adult Social Care,101,Supplies and Services,504,Equipment,5023,Revenue,CATERING.FOOD & BEVERAGES
22-DEC-2022,7020642,1.35,TOTAL PRODUCE GATESHEAD,399244,Local Environmental Services,Adult Social Care,101,Supplies and Services,504,Equipment,5023,Revenue,CATERING.FOOD & BEVERAGES
22-DEC-2022,7020642,1.59,TOTAL PRODUCE GATESHEAD,399244,Local Environmental Services,Adult Social Care,101,Supplies and Services,504,Equipment,5023,Revenue,CATERING.FOOD & BEVERAGES
22-DEC-2022,7020642,1.59,TOTAL PRODUCE GATESHEAD,399244,Local Environmental Services,Adult Social Care,101,Supplies and Services,504,Equipment,5023,Revenue,CATERING.FOOD & BEVERAGES
22-DEC-2022,7020642,1.63,TOTAL PRODUCE GATESHEAD,399244,Local Environmental Services,Adult Social Care,101,Supplies and Services,504,Equipment,5023,Revenue,CATERING.FOOD & BEVERAGES
22-DEC-2022,7020642,1.69,TOTAL PRODUCE GATESHEAD,399244,Local Environmental Services,Adult Social Care,101,Supplies and Services,504,Equipment,5023,Revenue,CATERING.FOOD & BEVERAGES
22-DEC-2022,7020642,1.69,TOTAL PRODUCE GATESHEAD,399244,Local Environmental Services,Adult Social Care,101,Supplies and Services,504,Equipment,5023,Revenue,CATERING.FOOD & BEVERAGES
22-DEC-2022,7020642,1.74,TOTAL PRODUCE GATESHEAD,399244,Local Environmental Services,Adult Social Care,101,Supplies and Services,504,Equipment,5023,Revenue,CATERING.FOOD & BEVERAGES
22-DEC-2022,7020642,1.79,TOTAL PRODUCE GATESHEAD,399244,Local Environmental Services,Adult Social Care,101,Supplies and Services,504,Equipment,5023,Revenue,CATERING.FOOD & BEVERAGES
22-DEC-2022,7020642,1.79,TOTAL PRODUCE GATESHEAD,399244,Local Environmental Services,Adult Social Care,101,Supplies and Services,504,Equipment,5023,Revenue,CATERING.FOOD & BEVERAGES
22-DEC-2022,7020642,1.79,TOTAL PRODUCE GATESHEAD,399244,Local Environmental Services,Adult Social Care,101,Supplies and Services,504,Equipment,5023,Revenue,CATERING.FOOD & BEVERAGES
22-DEC-2022,7020642,1.79,TOTAL PRODUCE GATESHEAD,399244,Local Environmental Services,Adult Social Care,101,Supplies and Services,504,Equipment,5023,Revenue,CATERING.FOOD & BEVERAGES
22-DEC-2022,7020642,2.38,TOTAL PRODUCE GATESHEAD,399244,Local Environmental Services,Adult Social Care,101,Supplies and Services,504,Equipment,5023,Revenue,CATERING.FOOD & BEVERAGES
22-DEC-2022,7020642,2.38,TOTAL PRODUCE GATESHEAD,399244,Local Environmental Services,Adult Social Care,101,Supplies and Services,504,Equipment,5023,Revenue,CATERING.FOOD & BEVERAGES
22-DEC-2022,7020642,2.38,TOTAL PRODUCE GATESHEAD,399244,Local Environmental Services,Adult Social Care,101,Supplies and Services,504,Equipment,5023,Revenue,CATERING.FOOD & BEVERAGES
22-DEC-2022,7020642,2.39,TOTAL PRODUCE GATESHEAD,399244,Local Environmental Services,Adult Social Care,101,Supplies and Services,504,Equipment,5023,Revenue,CATERING.FOOD & BEVERAGES
22-DEC-2022,7020642,2.39,TOTAL PRODUCE GATESHEAD,399244,Local Environmental Services,Adult Social Care,101,Supplies and Services,504,Equipment,5023,Revenue,CATERING.FOOD & BEVERAGES
22-DEC-2022,7020642,2.39,TOTAL PRODUCE GATESHEAD,399244,Local Environmental Services,Adult Social Care,101,Supplies and Services,504,Equipment,5023,Revenue,CATERING.FOOD & BEVERAGES
22-DEC-2022,7020642,2.39,TOTAL PRODUCE GATESHEAD,399244,Local Environmental Services,Adult Social Care,101,Supplies and Services,504,Equipment,5023,Revenue,CATERING.FOOD & BEVERAGES
22-DEC-2022,7020642,2.49,TOTAL PRODUCE GATESHEAD,399244,Local Environmental Services,Adult Social Care,101,Supplies and Services,504,Equipment,5023,Revenue,CATERING.FOOD & BEVERAGES
22-DEC-2022,7020642,2.49,TOTAL PRODUCE GATESHEAD,399244,Local Environmental Services,Adult Social Care,101,Supplies and Services,504,Equipment,5023,Revenue,CATERING.FOOD & BEVERAGES
22-DEC-2022,7020642,2.59,TOTAL PRODUCE GATESHEAD,399244,Local Environmental Services,Adult Social Care,101,Supplies and Services,504,Equipment,5023,Revenue,CATERING.FOOD & BEVERAGES
22-DEC-2022,7020642,2.95,TOTAL PRODUCE GATESHEAD,399244,Local Environmental Services,Adult Social Care,101,Supplies and Services,504,Equipment,5023,Revenue,CATERING.FOOD & BEVERAGES
22-DEC-2022,7020642,2.97,TOTAL PRODUCE GATESHEAD,399244,Local Environmental Services,Adult Social Care,101,Supplies and Services,504,Equipment,5023,Revenue,CATERING.FOOD & BEVERAGES
22-DEC-2022,7020642,2.99,TOTAL PRODUCE GATESHEAD,399244,Local Environmental Services,Adult Social Care,101,Supplies and Services,504,Equipment,5023,Revenue,CATERING.FOOD & BEVERAGES
22-DEC-2022,7020642,2.99,TOTAL PRODUCE GATESHEAD,399244,Local Environmental Services,Adult Social Care,101,Supplies and Services,504,Equipment,5023,Revenue,CATERING.FOOD & BEVERAGES
22-DEC-2022,7020642,2.99,TOTAL PRODUCE GATESHEAD,399244,Local Environmental Services,Adult Social Care,101,Supplies and Services,504,Equipment,5023,Revenue,CATERING.FOOD & BEVERAGES
22-DEC-2022,7020642,3.18,TOTAL PRODUCE GATESHEAD,399244,Local Environmental Services,Adult Social Care,101,Supplies and Services,504,Equipment,5023,Revenue,CATERING.FOOD & BEVERAGES
22-DEC-2022,7020642,3.18,TOTAL PRODUCE GATESHEAD,399244,Local Environmental Services,Adult Social Care,101,Supplies and Services,504,Equipment,5023,Revenue,CATERING.FOOD & BEVERAGES
22-DEC-2022,7020642,3.18,TOTAL PRODUCE GATESHEAD,399244,Local Environmental Services,Adult Social Care,101,Supplies and Services,504,Equipment,5023,Revenue,CATERING.FOOD & BEVERAGES
22-DEC-2022,7020642,3.18,TOTAL PRODUCE GATESHEAD,399244,Local Environmental Services,Adult Social Care,101,Supplies and Services,504,Equipment,5023,Revenue,CATERING.FOOD & BEVERAGES
22-DEC-2022,7020642,3.18,TOTAL PRODUCE GATESHEAD,399244,Local Environmental Services,Adult Social Care,101,Supplies and Services,504,Equipment,5023,Revenue,CATERING.FOOD & BEVERAGES
22-DEC-2022,7020642,3.18,TOTAL PRODUCE GATESHEAD,399244,Local Environmental Services,Adult Social Care,101,Supplies and Services,504,Equipment,5023,Revenue,CATERING.FOOD & BEVERAGES
22-DEC-2022,7020642,3.18,TOTAL PRODUCE GATESHEAD,399244,Local Environmental Services,Adult Social Care,101,Supplies and Services,504,Equipment,5023,Revenue,CATERING.FOOD & BEVERAGES
22-DEC-2022,7020642,3.18,TOTAL PRODUCE GATESHEAD,399244,Local Environmental Services,Adult Social Care,101,Supplies and Services,504,Equipment,5023,Revenue,CATERING.FOOD & BEVERAGES
22-DEC-2022,7020642,3.54,TOTAL PRODUCE GATESHEAD,399244,Local Environmental Services,Adult Social Care,101,Supplies and Services,504,Equipment,5023,Revenue,CATERING.FOOD & BEVERAGES
22-DEC-2022,7020642,3.57,TOTAL PRODUCE GATESHEAD,399244,Local Environmental Services,Adult Social Care,101,Supplies and Services,504,Equipment,5023,Revenue,CATERING.FOOD & BEVERAGES
22-DEC-2022,7020642,3.57,TOTAL PRODUCE GATESHEAD,399244,Local Environmental Services,Adult Social Care,101,Supplies and Services,504,Equipment,5023,Revenue,CATERING.FOOD & BEVERAGES
22-DEC-2022,7020642,3.58,TOTAL PRODUCE GATESHEAD,399244,Local Environmental Services,Adult Social Care,101,Supplies and Services,504,Equipment,5023,Revenue,CATERING.FOOD & BEVERAGES
22-DEC-2022,7020642,3.58,TOTAL PRODUCE GATESHEAD,399244,Local Environmental Services,Adult Social Care,101,Supplies and Services,504,Equipment,5023,Revenue,CATERING.FOOD & BEVERAGES
22-DEC-2022,7020642,3.96,TOTAL PRODUCE GATESHEAD,399244,Local Environmental Services,Adult Social Care,101,Supplies and Services,504,Equipment,5023,Revenue,CATERING.FOOD & BEVERAGES
22-DEC-2022,7020642,3.96,TOTAL PRODUCE GATESHEAD,399244,Local Environmental Services,Adult Social Care,101,Supplies and Services,504,Equipment,5023,Revenue,CATERING.FOOD & BEVERAGES
22-DEC-2022,7020642,4.61,TOTAL PRODUCE GATESHEAD,399244,Local Environmental Services,Adult Social Care,101,Supplies and Services,504,Equipment,5023,Revenue,CATERING.FOOD & BEVERAGES
22-DEC-2022,7020642,4.61,TOTAL PRODUCE GATESHEAD,399244,Local Environmental Services,Adult Social Care,101,Supplies and Services,504,Equipment,5023,Revenue,CATERING.FOOD & BEVERAGES
22-DEC-2022,7020642,4.71,TOTAL PRODUCE GATESHEAD,399244,Local Environmental Services,Adult Social Care,101,Supplies and Services,504,Equipment,5023,Revenue,CATERING.FOOD & BEVERAGES
22-DEC-2022,7020642,4.72,TOTAL PRODUCE GATESHEAD,399244,Local Environmental Services,Adult Social Care,101,Supplies and Services,504,Equipment,5023,Revenue,CATERING.FOOD & BEVERAGES
22-DEC-2022,7020642,4.72,TOTAL PRODUCE GATESHEAD,399244,Local Environmental Services,Adult Social Care,101,Supplies and Services,504,Equipment,5023,Revenue,CATERING.FOOD & BEVERAGES
22-DEC-2022,7020642,4.72,TOTAL PRODUCE GATESHEAD,399244,Local Environmental Services,Adult Social Care,101,Supplies and Services,504,Equipment,5023,Revenue,CATERING.FOOD & BEVERAGES
22-DEC-2022,7020642,4.72,TOTAL PRODUCE GATESHEAD,399244,Local Environmental Services,Adult Social Care,101,Supplies and Services,504,Equipment,5023,Revenue,CATERING.FOOD & BEVERAGES
22-DEC-2022,7020642,4.72,TOTAL PRODUCE GATESHEAD,399244,Local Environmental Services,Adult Social Care,101,Supplies and Services,504,Equipment,5023,Revenue,CATERING.FOOD & BEVERAGES
22-DEC-2022,7020642,5.35,TOTAL PRODUCE GATESHEAD,399244,Local Environmental Services,Adult Social Care,101,Supplies and Services,504,Equipment,5023,Revenue,CATERING.FOOD & BEVERAGES
22-DEC-2022,7020642,5.39,TOTAL PRODUCE GATESHEAD,399244,Local Environmental Services,Adult Social Care,101,Supplies and Services,504,Equipment,5023,Revenue,CATERING.FOOD & BEVERAGES
22-DEC-2022,7020642,5.49,TOTAL PRODUCE GATESHEAD,399244,Local Environmental Services,Adult Social Care,101,Supplies and Services,504,Equipment,5023,Revenue,CATERING.FOOD & BEVERAGES
22-DEC-2022,7020642,5.49,TOTAL PRODUCE GATESHEAD,399244,Local Environmental Services,Adult Social Care,101,Supplies and Services,504,Equipment,5023,Revenue,CATERING.FOOD & BEVERAGES
22-DEC-2022,7020642,5.98,TOTAL PRODUCE GATESHEAD,399244,Local Environmental Services,Adult Social Care,101,Supplies and Services,504,Equipment,5023,Revenue,CATERING.FOOD & BEVERAGES
22-DEC-2022,7020642,5.98,TOTAL PRODUCE GATESHEAD,399244,Local Environmental Services,Adult Social Care,101,Supplies and Services,504,Equipment,5023,Revenue,CATERING.FOOD & BEVERAGES
22-DEC-2022,7020642,5.98,TOTAL PRODUCE GATESHEAD,399244,Local Environmental Services,Adult Social Care,101,Supplies and Services,504,Equipment,5023,Revenue,CATERING.FOOD & BEVERAGES
22-DEC-2022,7020642,5.98,TOTAL PRODUCE GATESHEAD,399244,Local Environmental Services,Adult Social Care,101,Supplies and Services,504,Equipment,5023,Revenue,CATERING.FOOD & BEVERAGES
22-DEC-2022,7020642,6.36,TOTAL PRODUCE GATESHEAD,399244,Local Environmental Services,Adult Social Care,101,Supplies and Services,504,Equipment,5023,Revenue,CATERING.FOOD & BEVERAGES
22-DEC-2022,7020642,6.36,TOTAL PRODUCE GATESHEAD,399244,Local Environmental Services,Adult Social Care,101,Supplies and Services,504,Equipment,5023,Revenue,CATERING.FOOD & BEVERAGES
22-DEC-2022,7020642,6.36,TOTAL PRODUCE GATESHEAD,399244,Local Environmental Services,Adult Social Care,101,Supplies and Services,504,Equipment,5023,Revenue,CATERING.FOOD & BEVERAGES
22-DEC-2022,7020642,6.36,TOTAL PRODUCE GATESHEAD,399244,Local Environmental Services,Adult Social Care,101,Supplies and Services,504,Equipment,5023,Revenue,CATERING.FOOD & BEVERAGES
22-DEC-2022,7020642,6.49,TOTAL PRODUCE GATESHEAD,399244,Local Environmental Services,Adult Social Care,101,Supplies and Services,504,Equipment,5023,Revenue,CATERING.FOOD & BEVERAGES
22-DEC-2022,7020642,7.16,TOTAL PRODUCE GATESHEAD,399244,Local Environmental Services,Adult Social Care,101,Supplies and Services,504,Equipment,5023,Revenue,CATERING.FOOD & BEVERAGES
22-DEC-2022,7020642,7.16,TOTAL PRODUCE GATESHEAD,399244,Local Environmental Services,Adult Social Care,101,Supplies and Services,504,Equipment,5023,Revenue,CATERING.FOOD & BEVERAGES
22-DEC-2022,7020642,7.16,TOTAL PRODUCE GATESHEAD,399244,Local Environmental Services,Adult Social Care,101,Supplies and Services,504,Equipment,5023,Revenue,CATERING.FOOD & BEVERAGES
22-DEC-2022,7020642,7.16,TOTAL PRODUCE GATESHEAD,399244,Local Environmental Services,Adult Social Care,101,Supplies and Services,504,Equipment,5023,Revenue,CATERING.FOOD & BEVERAGES
22-DEC-2022,7020642,7.16,TOTAL PRODUCE GATESHEAD,399244,Local Environmental Services,Adult Social Care,101,Supplies and Services,504,Equipment,5023,Revenue,CATERING.FOOD & BEVERAGES
22-DEC-2022,7020642,7.18,TOTAL PRODUCE GATESHEAD,399244,Local Environmental Services,Adult Social Care,101,Supplies and Services,504,Equipment,5023,Revenue,CATERING.FOOD & BEVERAGES
22-DEC-2022,7020642,7.59,TOTAL PRODUCE GATESHEAD,399244,Local Environmental Services,Adult Social Care,101,Supplies and Services,504,Equipment,5023,Revenue,CATERING.FOOD & BEVERAGES
22-DEC-2022,7020642,7.59,TOTAL PRODUCE GATESHEAD,399244,Local Environmental Services,Adult Social Care,101,Supplies and Services,504,Equipment,5023,Revenue,CATERING.FOOD & BEVERAGES
22-DEC-2022,7020642,7.59,TOTAL PRODUCE GATESHEAD,399244,Local Environmental Services,Adult Social Care,101,Supplies and Services,504,Equipment,5023,Revenue,CATERING.FOOD & BEVERAGES
22-DEC-2022,7020642,9.49,TOTAL PRODUCE GATESHEAD,399244,Local Environmental Services,Adult Social Care,101,Supplies and Services,504,Equipment,5023,Revenue,CATERING.FOOD & BEVERAGES
22-DEC-2022,7020642,9.49,TOTAL PRODUCE GATESHEAD,399244,Local Environmental Services,Adult Social Care,101,Supplies and Services,504,Equipment,5023,Revenue,CATERING.FOOD & BEVERAGES
22-DEC-2022,7020642,9.49,TOTAL PRODUCE GATESHEAD,399244,Local Environmental Services,Adult Social Care,101,Supplies and Services,504,Equipment,5023,Revenue,CATERING.FOOD & BEVERAGES
22-DEC-2022,7020642,10.29,TOTAL PRODUCE GATESHEAD,399244,Local Environmental Services,Adult Social Care,101,Supplies and Services,504,Equipment,5023,Revenue,CATERING.FOOD & BEVERAGES
22-DEC-2022,7020642,10.29,TOTAL PRODUCE GATESHEAD,399244,Local Environmental Services,Adult Social Care,101,Supplies and Services,504,Equipment,5023,Revenue,CATERING.FOOD & BEVERAGES
22-DEC-2022,7020642,10.49,TOTAL PRODUCE GATESHEAD,399244,Local Environmental Services,Adult Social Care,101,Supplies and Services,504,Equipment,5023,Revenue,CATERING.FOOD & BEVERAGES
22-DEC-2022,7020642,10.49,TOTAL PRODUCE GATESHEAD,399244,Local Environmental Services,Adult Social Care,101,Supplies and Services,504,Equipment,5023,Revenue,CATERING.FOOD & BEVERAGES
22-DEC-2022,7020642,10.5,TOTAL PRODUCE GATESHEAD,399244,Local Environmental Services,Adult Social Care,101,Supplies and Services,504,Equipment,5023,Revenue,CATERING.FOOD & BEVERAGES
22-DEC-2022,7020642,11.04,TOTAL PRODUCE GATESHEAD,399244,Local Environmental Services,Adult Social Care,101,Supplies and Services,504,Equipment,5023,Revenue,CATERING.FOOD & BEVERAGES
22-DEC-2022,7020642,11.8,TOTAL PRODUCE GATESHEAD,399244,Local Environmental Services,Adult Social Care,101,Supplies and Services,504,Equipment,5023,Revenue,CATERING.FOOD & BEVERAGES
22-DEC-2022,7020642,11.8,TOTAL PRODUCE GATESHEAD,399244,Local Environmental Services,Adult Social Care,101,Supplies and Services,504,Equipment,5023,Revenue,CATERING.FOOD & BEVERAGES
22-DEC-2022,7020642,11.94,TOTAL PRODUCE GATESHEAD,399244,Local Environmental Services,Adult Social Care,101,Supplies and Services,504,Equipment,5023,Revenue,CATERING.FOOD & BEVERAGES
22-DEC-2022,7020642,11.94,TOTAL PRODUCE GATESHEAD,399244,Local Environmental Services,Adult Social Care,101,Supplies and Services,504,Equipment,5023,Revenue,CATERING.FOOD & BEVERAGES
22-DEC-2022,7020642,11.94,TOTAL PRODUCE GATESHEAD,399244,Local Environmental Services,Adult Social Care,101,Supplies and Services,504,Equipment,5023,Revenue,CATERING.FOOD & BEVERAGES
22-DEC-2022,7020642,12.79,TOTAL PRODUCE GATESHEAD,399244,Local Environmental Services,Adult Social Care,101,Supplies and Services,504,Equipment,5023,Revenue,CATERING.FOOD & BEVERAGES
22-DEC-2022,7020642,13.49,TOTAL PRODUCE GATESHEAD,399244,Local Environmental Services,Adult Social Care,101,Supplies and Services,504,Equipment,5023,Revenue,CATERING.FOOD & BEVERAGES
22-DEC-2022,7020642,14.97,TOTAL PRODUCE GATESHEAD,399244,Local Environmental Services,Adult Social Care,101,Supplies and Services,504,Equipment,5023,Revenue,CATERING.FOOD & BEVERAGES
22-DEC-2022,7020642,15.92,TOTAL PRODUCE GATESHEAD,399244,Local Environmental Services,Adult Social Care,101,Supplies and Services,504,Equipment,5023,Revenue,CATERING.FOOD & BEVERAGES
22-DEC-2022,7020642,16.76,TOTAL PRODUCE GATESHEAD,399244,Local Environmental Services,Adult Social Care,101,Supplies and Services,504,Equipment,5023,Revenue,CATERING.FOOD & BEVERAGES
22-DEC-2022,7020642,17.91,TOTAL PRODUCE GATESHEAD,399244,Local Environmental Services,Adult Social Care,101,Supplies and Services,504,Equipment,5023,Revenue,CATERING.FOOD & BEVERAGES
22-DEC-2022,7020642,17.91,TOTAL PRODUCE GATESHEAD,399244,Local Environmental Services,Adult Social Care,101,Supplies and Services,504,Equipment,5023,Revenue,CATERING.FOOD & BEVERAGES
22-DEC-2022,7020642,18,TOTAL PRODUCE GATESHEAD,399244,Local Environmental Services,Adult Social Care,101,Supplies and Services,504,Equipment,5023,Revenue,CATERING.FOOD & BEVERAGES
22-DEC-2022,7020642,22.1,TOTAL PRODUCE GATESHEAD,399244,Local Environmental Services,Adult Social Care,101,Supplies and Services,504,Equipment,5023,Revenue,CATERING.FOOD & BEVERAGES
22-DEC-2022,7020642,27.34,TOTAL PRODUCE GATESHEAD,399244,Local Environmental Services,Adult Social Care,101,Supplies and Services,504,Equipment,5023,Revenue,CATERING.FOOD & BEVERAGES
22-DEC-2022,7020642,45.29,TOTAL PRODUCE GATESHEAD,399244,Local Environmental Services,Adult Social Care,101,Supplies and Services,504,Equipment,5023,Revenue,CATERING.FOOD & BEVERAGES
22-DEC-2022,7020642,50.97,TOTAL PRODUCE GATESHEAD,399244,Local Environmental Services,Adult Social Care,101,Supplies and Services,504,Equipment,5023,Revenue,CATERING.FOOD & BEVERAGES
22-DEC-2022,7020642,-11.98,TOTAL PRODUCE GATESHEAD,399244,Commissioning & Asset Management,Children's & Education Services,103,Supplies and Services,504,Equipment,5023,Revenue,CATERING.FOOD & BEVERAGES
22-DEC-2022,7020642,-4.59,TOTAL PRODUCE GATESHEAD,399244,Commissioning & Asset Management,Children's & Education Services,103,Supplies and Services,504,Equipment,5023,Revenue,CATERING.FOOD & BEVERAGES
22-DEC-2022,7020642,0.89,TOTAL PRODUCE GATESHEAD,399244,Commissioning & Asset Management,Children's & Education Services,103,Supplies and Services,504,Equipment,5023,Revenue,CATERING.FOOD & BEVERAGES
22-DEC-2022,7020642,0.99,TOTAL PRODUCE GATESHEAD,399244,Commissioning & Asset Management,Children's & Education Services,103,Supplies and Services,504,Equipment,5023,Revenue,CATERING.FOOD & BEVERAGES
22-DEC-2022,7020642,1.19,TOTAL PRODUCE GATESHEAD,399244,Commissioning & Asset Management,Children's & Education Services,103,Supplies and Services,504,Equipment,5023,Revenue,CATERING.FOOD & BEVERAGES
22-DEC-2022,7020642,1.28,TOTAL PRODUCE GATESHEAD,399244,Commissioning & Asset Management,Children's & Education Services,103,Supplies and Services,504,Equipment,5023,Revenue,CATERING.FOOD & BEVERAGES
22-DEC-2022,7020642,1.49,TOTAL PRODUCE GATESHEAD,399244,Commissioning & Asset Management,Children's & Education Services,103,Supplies and Services,504,Equipment,5023,Revenue,CATERING.FOOD & BEVERAGES
22-DEC-2022,7020642,1.69,TOTAL PRODUCE GATESHEAD,399244,Commissioning & Asset Management,Children's & Education Services,103,Supplies and Services,504,Equipment,5023,Revenue,CATERING.FOOD & BEVERAGES
22-DEC-2022,7020642,1.69,TOTAL PRODUCE GATESHEAD,399244,Commissioning & Asset Management,Children's & Education Services,103,Supplies and Services,504,Equipment,5023,Revenue,CATERING.FOOD & BEVERAGES
22-DEC-2022,7020642,1.69,TOTAL PRODUCE GATESHEAD,399244,Commissioning & Asset Management,Children's & Education Services,103,Supplies and Services,504,Equipment,5023,Revenue,CATERING.FOOD & BEVERAGES
22-DEC-2022,7020642,1.69,TOTAL PRODUCE GATESHEAD,399244,Commissioning & Asset Management,Children's & Education Services,103,Supplies and Services,504,Equipment,5023,Revenue,CATERING.FOOD & BEVERAGES
22-DEC-2022,7020642,1.98,TOTAL PRODUCE GATESHEAD,399244,Commissioning & Asset Management,Children's & Education Services,103,Supplies and Services,504,Equipment,5023,Revenue,CATERING.FOOD & BEVERAGES
22-DEC-2022,7020642,1.99,TOTAL PRODUCE GATESHEAD,399244,Commissioning & Asset Management,Children's & Education Services,103,Supplies and Services,504,Equipment,5023,Revenue,CATERING.FOOD & BEVERAGES
22-DEC-2022,7020642,2.18,TOTAL PRODUCE GATESHEAD,399244,Commissioning & Asset Management,Children's & Education Services,103,Supplies and Services,504,Equipment,5023,Revenue,CATERING.FOOD & BEVERAGES
22-DEC-2022,7020642,2.18,TOTAL PRODUCE GATESHEAD,399244,Commissioning & Asset Management,Children's & Education Services,103,Supplies and Services,504,Equipment,5023,Revenue,CATERING.FOOD & BEVERAGES
22-DEC-2022,7020642,2.19,TOTAL PRODUCE GATESHEAD,399244,Commissioning & Asset Management,Children's & Education Services,103,Supplies and Services,504,Equipment,5023,Revenue,CATERING.FOOD & BEVERAGES
22-DEC-2022,7020642,2.19,TOTAL PRODUCE GATESHEAD,399244,Commissioning & Asset Management,Children's & Education Services,103,Supplies and Services,504,Equipment,5023,Revenue,CATERING.FOOD & BEVERAGES
22-DEC-2022,7020642,2.38,TOTAL PRODUCE GATESHEAD,399244,Commissioning & Asset Management,Children's & Education Services,103,Supplies and Services,504,Equipment,5023,Revenue,CATERING.FOOD & BEVERAGES
22-DEC-2022,7020642,2.38,TOTAL PRODUCE GATESHEAD,399244,Commissioning & Asset Management,Children's & Education Services,103,Supplies and Services,504,Equipment,5023,Revenue,CATERING.FOOD & BEVERAGES
22-DEC-2022,7020642,2.49,TOTAL PRODUCE GATESHEAD,399244,Commissioning & Asset Management,Children's & Education Services,103,Supplies and Services,504,Equipment,5023,Revenue,CATERING.FOOD & BEVERAGES
22-DEC-2022,7020642,2.49,TOTAL PRODUCE GATESHEAD,399244,Commissioning & Asset Management,Children's & Education Services,103,Supplies and Services,504,Equipment,5023,Revenue,CATERING.FOOD & BEVERAGES
22-DEC-2022,7020642,2.49,TOTAL PRODUCE GATESHEAD,399244,Commissioning & Asset Management,Children's & Education Services,103,Supplies and Services,504,Equipment,5023,Revenue,CATERING.FOOD & BEVERAGES
22-DEC-2022,7020642,2.7,TOTAL PRODUCE GATESHEAD,399244,Commissioning & Asset Management,Children's & Education Services,103,Supplies and Services,504,Equipment,5023,Revenue,CATERING.FOOD & BEVERAGES
22-DEC-2022,7020642,2.72,TOTAL PRODUCE GATESHEAD,399244,Commissioning & Asset Management,Children's & Education Services,103,Supplies and Services,504,Equipment,5023,Revenue,CATERING.FOOD & BEVERAGES
22-DEC-2022,7020642,2.72,TOTAL PRODUCE GATESHEAD,399244,Commissioning & Asset Management,Children's & Education Services,103,Supplies and Services,504,Equipment,5023,Revenue,CATERING.FOOD & BEVERAGES
22-DEC-2022,7020642,2.98,TOTAL PRODUCE GATESHEAD,399244,Commissioning & Asset Management,Children's & Education Services,103,Supplies and Services,504,Equipment,5023,Revenue,CATERING.FOOD & BEVERAGES
22-DEC-2022,7020642,2.99,TOTAL PRODUCE GATESHEAD,399244,Commissioning & Asset Management,Children's & Education Services,103,Supplies and Services,504,Equipment,5023,Revenue,CATERING.FOOD & BEVERAGES
22-DEC-2022,7020642,2.99,TOTAL PRODUCE GATESHEAD,399244,Commissioning & Asset Management,Children's & Education Services,103,Supplies and Services,504,Equipment,5023,Revenue,CATERING.FOOD & BEVERAGES
22-DEC-2022,7020642,3.38,TOTAL PRODUCE GATESHEAD,399244,Commissioning & Asset Management,Children's & Education Services,103,Supplies and Services,504,Equipment,5023,Revenue,CATERING.FOOD & BEVERAGES
22-DEC-2022,7020642,3.38,TOTAL PRODUCE GATESHEAD,399244,Commissioning & Asset Management,Children's & Education Services,103,Supplies and Services,504,Equipment,5023,Revenue,CATERING.FOOD & BEVERAGES
22-DEC-2022,7020642,3.38,TOTAL PRODUCE GATESHEAD,399244,Commissioning & Asset Management,Children's & Education Services,103,Supplies and Services,504,Equipment,5023,Revenue,CATERING.FOOD & BEVERAGES
22-DEC-2022,7020642,3.38,TOTAL PRODUCE GATESHEAD,399244,Commissioning & Asset Management,Children's & Education Services,103,Supplies and Services,504,Equipment,5023,Revenue,CATERING.FOOD & BEVERAGES
22-DEC-2022,7020642,3.38,TOTAL PRODUCE GATESHEAD,399244,Commissioning & Asset Management,Children's & Education Services,103,Supplies and Services,504,Equipment,5023,Revenue,CATERING.FOOD & BEVERAGES
22-DEC-2022,7020642,3.58,TOTAL PRODUCE GATESHEAD,399244,Commissioning & Asset Management,Children's & Education Services,103,Supplies and Services,504,Equipment,5023,Revenue,CATERING.FOOD & BEVERAGES
22-DEC-2022,7020642,3.6,TOTAL PRODUCE GATESHEAD,399244,Commissioning & Asset Management,Children's & Education Services,103,Supplies and Services,504,Equipment,5023,Revenue,CATERING.FOOD & BEVERAGES
22-DEC-2022,7020642,3.69,TOTAL PRODUCE GATESHEAD,399244,Commissioning & Asset Management,Children's & Education Services,103,Supplies and Services,504,Equipment,5023,Revenue,CATERING.FOOD & BEVERAGES
22-DEC-2022,7020642,3.96,TOTAL PRODUCE GATESHEAD,399244,Commissioning & Asset Management,Children's & Education Services,103,Supplies and Services,504,Equipment,5023,Revenue,CATERING.FOOD & BEVERAGES
22-DEC-2022,7020642,3.96,TOTAL PRODUCE GATESHEAD,399244,Commissioning & Asset Management,Children's & Education Services,103,Supplies and Services,504,Equipment,5023,Revenue,CATERING.FOOD & BEVERAGES
22-DEC-2022,7020642,3.96,TOTAL PRODUCE GATESHEAD,399244,Commissioning & Asset Management,Children's & Education Services,103,Supplies and Services,504,Equipment,5023,Revenue,CATERING.FOOD & BEVERAGES
22-DEC-2022,7020642,3.96,TOTAL PRODUCE GATESHEAD,399244,Commissioning & Asset Management,Children's & Education Services,103,Supplies and Services,504,Equipment,5023,Revenue,CATERING.FOOD & BEVERAGES
22-DEC-2022,7020642,4.26,TOTAL PRODUCE GATESHEAD,399244,Commissioning & Asset Management,Children's & Education Services,103,Supplies and Services,504,Equipment,5023,Revenue,CATERING.FOOD & BEVERAGES
22-DEC-2022,7020642,4.36,TOTAL PRODUCE GATESHEAD,399244,Commissioning & Asset Management,Children's & Education Services,103,Supplies and Services,504,Equipment,5023,Revenue,CATERING.FOOD & BEVERAGES
22-DEC-2022,7020642,4.36,TOTAL PRODUCE GATESHEAD,399244,Commissioning & Asset Management,Children's & Education Services,103,Supplies and Services,504,Equipment,5023,Revenue,CATERING.FOOD & BEVERAGES
22-DEC-2022,7020642,4.36,TOTAL PRODUCE GATESHEAD,399244,Commissioning & Asset Management,Children's & Education Services,103,Supplies and Services,504,Equipment,5023,Revenue,CATERING.FOOD & BEVERAGES
22-DEC-2022,7020642,4.36,TOTAL PRODUCE GATESHEAD,399244,Commissioning & Asset Management,Children's & Education Services,103,Supplies and Services,504,Equipment,5023,Revenue,CATERING.FOOD & BEVERAGES
22-DEC-2022,7020642,4.38,TOTAL PRODUCE GATESHEAD,399244,Commissioning & Asset Management,Children's & Education Services,103,Supplies and Services,504,Equipment,5023,Revenue,CATERING.FOOD & BEVERAGES
22-DEC-2022,7020642,4.38,TOTAL PRODUCE GATESHEAD,399244,Commissioning & Asset Management,Children's & Education Services,103,Supplies and Services,504,Equipment,5023,Revenue,CATERING.FOOD & BEVERAGES
22-DEC-2022,7020642,4.59,TOTAL PRODUCE GATESHEAD,399244,Commissioning & Asset Management,Children's & Education Services,103,Supplies and Services,504,Equipment,5023,Revenue,CATERING.FOOD & BEVERAGES
22-DEC-2022,7020642,4.59,TOTAL PRODUCE GATESHEAD,399244,Commissioning & Asset Management,Children's & Education Services,103,Supplies and Services,504,Equipment,5023,Revenue,CATERING.FOOD & BEVERAGES
22-DEC-2022,7020642,4.59,TOTAL PRODUCE GATESHEAD,399244,Commissioning & Asset Management,Children's & Education Services,103,Supplies and Services,504,Equipment,5023,Revenue,CATERING.FOOD & BEVERAGES
22-DEC-2022,7020642,4.59,TOTAL PRODUCE GATESHEAD,399244,Commissioning & Asset Management,Children's & Education Services,103,Supplies and Services,504,Equipment,5023,Revenue,CATERING.FOOD & BEVERAGES
22-DEC-2022,7020642,4.6,TOTAL PRODUCE GATESHEAD,399244,Commissioning & Asset Management,Children's & Education Services,103,Supplies and Services,504,Equipment,5023,Revenue,CATERING.FOOD & BEVERAGES
22-DEC-2022,7020642,4.69,TOTAL PRODUCE GATESHEAD,399244,Commissioning & Asset Management,Children's & Education Services,103,Supplies and Services,504,Equipment,5023,Revenue,CATERING.FOOD & BEVERAGES
22-DEC-2022,7020642,4.86,TOTAL PRODUCE GATESHEAD,399244,Commissioning & Asset Management,Children's & Education Services,103,Supplies and Services,504,Equipment,5023,Revenue,CATERING.FOOD & BEVERAGES
22-DEC-2022,7020642,5.07,TOTAL PRODUCE GATESHEAD,399244,Commissioning & Asset Management,Children's & Education Services,103,Supplies and Services,504,Equipment,5023,Revenue,CATERING.FOOD & BEVERAGES
22-DEC-2022,7020642,5.4,TOTAL PRODUCE GATESHEAD,399244,Commissioning & Asset Management,Children's & Education Services,103,Supplies and Services,504,Equipment,5023,Revenue,CATERING.FOOD & BEVERAGES
22-DEC-2022,7020642,5.82,TOTAL PRODUCE GATESHEAD,399244,Commissioning & Asset Management,Children's & Education Services,103,Supplies and Services,504,Equipment,5023,Revenue,CATERING.FOOD & BEVERAGES
22-DEC-2022,7020642,5.89,TOTAL PRODUCE GATESHEAD,399244,Commissioning & Asset Management,Children's & Education Services,103,Supplies and Services,504,Equipment,5023,Revenue,CATERING.FOOD & BEVERAGES
22-DEC-2022,7020642,5.89,TOTAL PRODUCE GATESHEAD,399244,Commissioning & Asset Management,Children's & Education Services,103,Supplies and Services,504,Equipment,5023,Revenue,CATERING.FOOD & BEVERAGES
22-DEC-2022,7020642,5.89,TOTAL PRODUCE GATESHEAD,399244,Commissioning & Asset Management,Children's & Education Services,103,Supplies and Services,504,Equipment,5023,Revenue,CATERING.FOOD & BEVERAGES
22-DEC-2022,7020642,5.94,TOTAL PRODUCE GATESHEAD,399244,Commissioning & Asset Management,Children's & Education Services,103,Supplies and Services,504,Equipment,5023,Revenue,CATERING.FOOD & BEVERAGES
22-DEC-2022,7020642,5.96,TOTAL PRODUCE GATESHEAD,399244,Commissioning & Asset Management,Children's & Education Services,103,Supplies and Services,504,Equipment,5023,Revenue,CATERING.FOOD & BEVERAGES
22-DEC-2022,7020642,5.98,TOTAL PRODUCE GATESHEAD,399244,Commissioning & Asset Management,Children's & Education Services,103,Supplies and Services,504,Equipment,5023,Revenue,CATERING.FOOD & BEVERAGES
22-DEC-2022,7020642,6.54,TOTAL PRODUCE GATESHEAD,399244,Commissioning & Asset Management,Children's & Education Services,103,Supplies and Services,504,Equipment,5023,Revenue,CATERING.FOOD & BEVERAGES
22-DEC-2022,7020642,7.62,TOTAL PRODUCE GATESHEAD,399244,Commissioning & Asset Management,Children's & Education Services,103,Supplies and Services,504,Equipment,5023,Revenue,CATERING.FOOD & BEVERAGES
22-DEC-2022,7020642,8.55,TOTAL PRODUCE GATESHEAD,399244,Commissioning & Asset Management,Children's & Education Services,103,Supplies and Services,504,Equipment,5023,Revenue,CATERING.FOOD & BEVERAGES
22-DEC-2022,7020642,9.76,TOTAL PRODUCE GATESHEAD,399244,Commissioning & Asset Management,Children's & Education Services,103,Supplies and Services,504,Equipment,5023,Revenue,CATERING.FOOD & BEVERAGES
22-DEC-2022,7020642,10.29,TOTAL PRODUCE GATESHEAD,399244,Commissioning & Asset Management,Children's & Education Services,103,Supplies and Services,504,Equipment,5023,Revenue,CATERING.FOOD & BEVERAGES
22-DEC-2022,7020642,10.74,TOTAL PRODUCE GATESHEAD,399244,Commissioning & Asset Management,Children's & Education Services,103,Supplies and Services,504,Equipment,5023,Revenue,CATERING.FOOD & BEVERAGES
22-DEC-2022,7020642,10.74,TOTAL PRODUCE GATESHEAD,399244,Commissioning & Asset Management,Children's & Education Services,103,Supplies and Services,504,Equipment,5023,Revenue,CATERING.FOOD & BEVERAGES
22-DEC-2022,7020642,10.74,TOTAL PRODUCE GATESHEAD,399244,Commissioning & Asset Management,Children's & Education Services,103,Supplies and Services,504,Equipment,5023,Revenue,CATERING.FOOD & BEVERAGES
22-DEC-2022,7020642,10.76,TOTAL PRODUCE GATESHEAD,399244,Commissioning & Asset Management,Children's & Education Services,103,Supplies and Services,504,Equipment,5023,Revenue,CATERING.FOOD & BEVERAGES
22-DEC-2022,7020642,11.92,TOTAL PRODUCE GATESHEAD,399244,Commissioning & Asset Management,Children's & Education Services,103,Supplies and Services,504,Equipment,5023,Revenue,CATERING.FOOD & BEVERAGES
22-DEC-2022,7020642,11.92,TOTAL PRODUCE GATESHEAD,399244,Commissioning & Asset Management,Children's & Education Services,103,Supplies and Services,504,Equipment,5023,Revenue,CATERING.FOOD & BEVERAGES
22-DEC-2022,7020642,11.92,TOTAL PRODUCE GATESHEAD,399244,Commissioning & Asset Management,Children's & Education Services,103,Supplies and Services,504,Equipment,5023,Revenue,CATERING.FOOD & BEVERAGES
22-DEC-2022,7020642,11.92,TOTAL PRODUCE GATESHEAD,399244,Commissioning & Asset Management,Children's & Education Services,103,Supplies and Services,504,Equipment,5023,Revenue,CATERING.FOOD & BEVERAGES
22-DEC-2022,7020642,11.98,TOTAL PRODUCE GATESHEAD,399244,Commissioning & Asset Management,Children's & Education Services,103,Supplies and Services,504,Equipment,5023,Revenue,CATERING.FOOD & BEVERAGES
22-DEC-2022,7020642,11.98,TOTAL PRODUCE GATESHEAD,399244,Commissioning & Asset Management,Children's & Education Services,103,Supplies and Services,504,Equipment,5023,Revenue,CATERING.FOOD & BEVERAGES
22-DEC-2022,7020642,13.14,TOTAL PRODUCE GATESHEAD,399244,Commissioning & Asset Management,Children's & Education Services,103,Supplies and Services,504,Equipment,5023,Revenue,CATERING.FOOD & BEVERAGES
22-DEC-2022,7020642,14.9,TOTAL PRODUCE GATESHEAD,399244,Commissioning & Asset Management,Children's & Education Services,103,Supplies and Services,504,Equipment,5023,Revenue,CATERING.FOOD & BEVERAGES
22-DEC-2022,7020642,16.14,TOTAL PRODUCE GATESHEAD,399244,Commissioning & Asset Management,Children's & Education Services,103,Supplies and Services,504,Equipment,5023,Revenue,CATERING.FOOD & BEVERAGES
22-DEC-2022,7020642,20.58,TOTAL PRODUCE GATESHEAD,399244,Commissioning & Asset Management,Children's & Education Services,103,Supplies and Services,504,Equipment,5023,Revenue,CATERING.FOOD & BEVERAGES
22-DEC-2022,7020642,21,TOTAL PRODUCE GATESHEAD,399244,Commissioning & Asset Management,Children's & Education Services,103,Supplies and Services,504,Equipment,5023,Revenue,CATERING.FOOD & BEVERAGES
22-DEC-2022,7020642,21.98,TOTAL PRODUCE GATESHEAD,399244,Commissioning & Asset Management,Children's & Education Services,103,Supplies and Services,504,Equipment,5023,Revenue,CATERING.FOOD & BEVERAGES
22-DEC-2022,7020642,23.96,TOTAL PRODUCE GATESHEAD,399244,Commissioning & Asset Management,Children's & Education Services,103,Supplies and Services,504,Equipment,5023,Revenue,CATERING.FOOD & BEVERAGES
22-DEC-2022,7020642,23.96,TOTAL PRODUCE GATESHEAD,399244,Commissioning & Asset Management,Children's & Education Services,103,Supplies and Services,504,Equipment,5023,Revenue,CATERING.FOOD & BEVERAGES
22-DEC-2022,7020642,23.96,TOTAL PRODUCE GATESHEAD,399244,Commissioning & Asset Management,Children's & Education Services,103,Supplies and Services,504,Equipment,5023,Revenue,CATERING.FOOD & BEVERAGES
22-DEC-2022,7020642,23.96,TOTAL PRODUCE GATESHEAD,399244,Commissioning & Asset Management,Children's & Education Services,103,Supplies and Services,504,Equipment,5023,Revenue,CATERING.FOOD & BEVERAGES
22-DEC-2022,7020642,26.9,TOTAL PRODUCE GATESHEAD,399244,Commissioning & Asset Management,Children's & Education Services,103,Supplies and Services,504,Equipment,5023,Revenue,CATERING.FOOD & BEVERAGES
22-DEC-2022,7020642,28.45,TOTAL PRODUCE GATESHEAD,399244,Commissioning & Asset Management,Children's & Education Services,103,Supplies and Services,504,Equipment,5023,Revenue,CATERING.FOOD & BEVERAGES
22-DEC-2022,7020642,28.45,TOTAL PRODUCE GATESHEAD,399244,Commissioning & Asset Management,Children's & Education Services,103,Supplies and Services,504,Equipment,5023,Revenue,CATERING.FOOD & BEVERAGES
22-DEC-2022,7020642,30.98,TOTAL PRODUCE GATESHEAD,399244,Commissioning & Asset Management,Children's & Education Services,103,Supplies and Services,504,Equipment,5023,Revenue,CATERING.FOOD & BEVERAGES
22-DEC-2022,7020642,30.98,TOTAL PRODUCE GATESHEAD,399244,Commissioning & Asset Management,Children's & Education Services,103,Supplies and Services,504,Equipment,5023,Revenue,CATERING.FOOD & BEVERAGES
22-DEC-2022,7020642,30.98,TOTAL PRODUCE GATESHEAD,399244,Commissioning & Asset Management,Children's & Education Services,103,Supplies and Services,504,Equipment,5023,Revenue,CATERING.FOOD & BEVERAGES
22-DEC-2022,7020642,30.99,TOTAL PRODUCE GATESHEAD,399244,Commissioning & Asset Management,Children's & Education Services,103,Supplies and Services,504,Equipment,5023,Revenue,CATERING.FOOD & BEVERAGES
22-DEC-2022,7020642,30.99,TOTAL PRODUCE GATESHEAD,399244,Commissioning & Asset Management,Children's & Education Services,103,Supplies and Services,504,Equipment,5023,Revenue,CATERING.FOOD & BEVERAGES
22-DEC-2022,7020642,30.99,TOTAL PRODUCE GATESHEAD,399244,Commissioning & Asset Management,Children's & Education Services,103,Supplies and Services,504,Equipment,5023,Revenue,CATERING.FOOD & BEVERAGES
22-DEC-2022,7020642,-26.49,TOTAL PRODUCE GATESHEAD,399244,Commissioning & Asset Management,Children's & Education Services,103,Supplies and Services,504,Equipment,5023,Revenue,CATERING.FOOD & BEVERAGES
22-DEC-2022,7020642,-7.96,TOTAL PRODUCE GATESHEAD,399244,Commissioning & Asset Management,Children's & Education Services,103,Supplies and Services,504,Equipment,5023,Revenue,CATERING.FOOD & BEVERAGES
22-DEC-2022,7020642,-4.59,TOTAL PRODUCE GATESHEAD,399244,Commissioning & Asset Management,Children's & Education Services,103,Supplies and Services,504,Equipment,5023,Revenue,CATERING.FOOD & BEVERAGES
22-DEC-2022,7020642,0.81,TOTAL PRODUCE GATESHEAD,399244,Commissioning & Asset Management,Children's & Education Services,103,Supplies and Services,504,Equipment,5023,Revenue,CATERING.FOOD & BEVERAGES
22-DEC-2022,7020642,0.89,TOTAL PRODUCE GATESHEAD,399244,Commissioning & Asset Management,Children's & Education Services,103,Supplies and Services,504,Equipment,5023,Revenue,CATERING.FOOD & BEVERAGES
22-DEC-2022,7020642,0.99,TOTAL PRODUCE GATESHEAD,399244,Commissioning & Asset Management,Children's & Education Services,103,Supplies and Services,504,Equipment,5023,Revenue,CATERING.FOOD & BEVERAGES
22-DEC-2022,7020642,0.99,TOTAL PRODUCE GATESHEAD,399244,Commissioning & Asset Management,Children's & Education Services,103,Supplies and Services,504,Equipment,5023,Revenue,CATERING.FOOD & BEVERAGES
22-DEC-2022,7020642,0.99,TOTAL PRODUCE GATESHEAD,399244,Commissioning & Asset Management,Children's & Education Services,103,Supplies and Services,504,Equipment,5023,Revenue,CATERING.FOOD & BEVERAGES
22-DEC-2022,7020642,0.99,TOTAL PRODUCE GATESHEAD,399244,Commissioning & Asset Management,Children's & Education Services,103,Supplies and Services,504,Equipment,5023,Revenue,CATERING.FOOD & BEVERAGES
22-DEC-2022,7020642,1.09,TOTAL PRODUCE GATESHEAD,399244,Commissioning & Asset Management,Children's & Education Services,103,Supplies and Services,504,Equipment,5023,Revenue,CATERING.FOOD & BEVERAGES
22-DEC-2022,7020642,1.26,TOTAL PRODUCE GATESHEAD,399244,Commissioning & Asset Management,Children's & Education Services,103,Supplies and Services,504,Equipment,5023,Revenue,CATERING.FOOD & BEVERAGES
22-DEC-2022,7020642,1.69,TOTAL PRODUCE GATESHEAD,399244,Commissioning & Asset Management,Children's & Education Services,103,Supplies and Services,504,Equipment,5023,Revenue,CATERING.FOOD & BEVERAGES
22-DEC-2022,7020642,1.69,TOTAL PRODUCE GATESHEAD,399244,Commissioning & Asset Management,Children's & Education Services,103,Supplies and Services,504,Equipment,5023,Revenue,CATERING.FOOD & BEVERAGES
22-DEC-2022,7020642,1.69,TOTAL PRODUCE GATESHEAD,399244,Commissioning & Asset Management,Children's & Education Services,103,Supplies and Services,504,Equipment,5023,Revenue,CATERING.FOOD & BEVERAGES
22-DEC-2022,7020642,1.69,TOTAL PRODUCE GATESHEAD,399244,Commissioning & Asset Management,Children's & Education Services,103,Supplies and Services,504,Equipment,5023,Revenue,CATERING.FOOD & BEVERAGES
22-DEC-2022,7020642,1.69,TOTAL PRODUCE GATESHEAD,399244,Commissioning & Asset Management,Children's & Education Services,103,Supplies and Services,504,Equipment,5023,Revenue,CATERING.FOOD & BEVERAGES
22-DEC-2022,7020642,1.69,TOTAL PRODUCE GATESHEAD,399244,Commissioning & Asset Management,Children's & Education Services,103,Supplies and Services,504,Equipment,5023,Revenue,CATERING.FOOD & BEVERAGES
22-DEC-2022,7020642,1.69,TOTAL PRODUCE GATESHEAD,399244,Commissioning & Asset Management,Children's & Education Services,103,Supplies and Services,504,Equipment,5023,Revenue,CATERING.FOOD & BEVERAGES
22-DEC-2022,7020642,1.69,TOTAL PRODUCE GATESHEAD,399244,Commissioning & Asset Management,Children's & Education Services,103,Supplies and Services,504,Equipment,5023,Revenue,CATERING.FOOD & BEVERAGES
22-DEC-2022,7020642,1.69,TOTAL PRODUCE GATESHEAD,399244,Commissioning & Asset Management,Children's & Education Services,103,Supplies and Services,504,Equipment,5023,Revenue,CATERING.FOOD & BEVERAGES
22-DEC-2022,7020642,1.69,TOTAL PRODUCE GATESHEAD,399244,Commissioning & Asset Management,Children's & Education Services,103,Supplies and Services,504,Equipment,5023,Revenue,CATERING.FOOD & BEVERAGES
22-DEC-2022,7020642,1.98,TOTAL PRODUCE GATESHEAD,399244,Commissioning & Asset Management,Children's & Education Services,103,Supplies and Services,504,Equipment,5023,Revenue,CATERING.FOOD & BEVERAGES
22-DEC-2022,7020642,2.18,TOTAL PRODUCE GATESHEAD,399244,Commissioning & Asset Management,Children's & Education Services,103,Supplies and Services,504,Equipment,5023,Revenue,CATERING.FOOD & BEVERAGES
22-DEC-2022,7020642,2.38,TOTAL PRODUCE GATESHEAD,399244,Commissioning & Asset Management,Children's & Education Services,103,Supplies and Services,504,Equipment,5023,Revenue,CATERING.FOOD & BEVERAGES
22-DEC-2022,7020642,2.39,TOTAL PRODUCE GATESHEAD,399244,Commissioning & Asset Management,Children's & Education Services,103,Supplies and Services,504,Equipment,5023,Revenue,CATERING.FOOD & BEVERAGES
22-DEC-2022,7020642,2.39,TOTAL PRODUCE GATESHEAD,399244,Commissioning & Asset Management,Children's & Education Services,103,Supplies and Services,504,Equipment,5023,Revenue,CATERING.FOOD & BEVERAGES
22-DEC-2022,7020642,2.39,TOTAL PRODUCE GATESHEAD,399244,Commissioning & Asset Management,Children's & Education Services,103,Supplies and Services,504,Equipment,5023,Revenue,CATERING.FOOD & BEVERAGES
22-DEC-2022,7020642,2.39,TOTAL PRODUCE GATESHEAD,399244,Commissioning & Asset Management,Children's & Education Services,103,Supplies and Services,504,Equipment,5023,Revenue,CATERING.FOOD & BEVERAGES
22-DEC-2022,7020642,2.39,TOTAL PRODUCE GATESHEAD,399244,Commissioning & Asset Management,Children's & Education Services,103,Supplies and Services,504,Equipment,5023,Revenue,CATERING.FOOD & BEVERAGES
22-DEC-2022,7020642,2.39,TOTAL PRODUCE GATESHEAD,399244,Commissioning & Asset Management,Children's & Education Services,103,Supplies and Services,504,Equipment,5023,Revenue,CATERING.FOOD & BEVERAGES
22-DEC-2022,7020642,2.39,TOTAL PRODUCE GATESHEAD,399244,Commissioning & Asset Management,Children's & Education Services,103,Supplies and Services,504,Equipment,5023,Revenue,CATERING.FOOD & BEVERAGES
22-DEC-2022,7020642,2.39,TOTAL PRODUCE GATESHEAD,399244,Commissioning & Asset Management,Children's & Education Services,103,Supplies and Services,504,Equipment,5023,Revenue,CATERING.FOOD & BEVERAGES
22-DEC-2022,7020642,2.39,TOTAL PRODUCE GATESHEAD,399244,Commissioning & Asset Management,Children's & Education Services,103,Supplies and Services,504,Equipment,5023,Revenue,CATERING.FOOD & BEVERAGES
22-DEC-2022,7020642,2.39,TOTAL PRODUCE GATESHEAD,399244,Commissioning & Asset Management,Children's & Education Services,103,Supplies and Services,504,Equipment,5023,Revenue,CATERING.FOOD & BEVERAGES
22-DEC-2022,7020642,2.78,TOTAL PRODUCE GATESHEAD,399244,Commissioning & Asset Management,Children's & Education Services,103,Supplies and Services,504,Equipment,5023,Revenue,CATERING.FOOD & BEVERAGES
22-DEC-2022,7020642,2.97,TOTAL PRODUCE GATESHEAD,399244,Commissioning & Asset Management,Children's & Education Services,103,Supplies and Services,504,Equipment,5023,Revenue,CATERING.FOOD & BEVERAGES
22-DEC-2022,7020642,2.99,TOTAL PRODUCE GATESHEAD,399244,Commissioning & Asset Management,Children's & Education Services,103,Supplies and Services,504,Equipment,5023,Revenue,CATERING.FOOD & BEVERAGES
22-DEC-2022,7020642,3.09,TOTAL PRODUCE GATESHEAD,399244,Commissioning & Asset Management,Children's & Education Services,103,Supplies and Services,504,Equipment,5023,Revenue,CATERING.FOOD & BEVERAGES
22-DEC-2022,7020642,3.09,TOTAL PRODUCE GATESHEAD,399244,Commissioning & Asset Management,Children's & Education Services,103,Supplies and Services,504,Equipment,5023,Revenue,CATERING.FOOD & BEVERAGES
22-DEC-2022,7020642,3.27,TOTAL PRODUCE GATESHEAD,399244,Commissioning & Asset Management,Children's & Education Services,103,Supplies and Services,504,Equipment,5023,Revenue,CATERING.FOOD & BEVERAGES
22-DEC-2022,7020642,3.27,TOTAL PRODUCE GATESHEAD,399244,Commissioning & Asset Management,Children's & Education Services,103,Supplies and Services,504,Equipment,5023,Revenue,CATERING.FOOD & BEVERAGES
22-DEC-2022,7020642,3.27,TOTAL PRODUCE GATESHEAD,399244,Commissioning & Asset Management,Children's & Education Services,103,Supplies and Services,504,Equipment,5023,Revenue,CATERING.FOOD & BEVERAGES
22-DEC-2022,7020642,3.27,TOTAL PRODUCE GATESHEAD,399244,Commissioning & Asset Management,Children's & Education Services,103,Supplies and Services,504,Equipment,5023,Revenue,CATERING.FOOD & BEVERAGES
22-DEC-2022,7020642,3.6,TOTAL PRODUCE GATESHEAD,399244,Commissioning & Asset Management,Children's & Education Services,103,Supplies and Services,504,Equipment,5023,Revenue,CATERING.FOOD & BEVERAGES
22-DEC-2022,7020642,3.96,TOTAL PRODUCE GATESHEAD,399244,Commissioning & Asset Management,Children's & Education Services,103,Supplies and Services,504,Equipment,5023,Revenue,CATERING.FOOD & BEVERAGES
22-DEC-2022,7020642,3.96,TOTAL PRODUCE GATESHEAD,399244,Commissioning & Asset Management,Children's & Education Services,103,Supplies and Services,504,Equipment,5023,Revenue,CATERING.FOOD & BEVERAGES
22-DEC-2022,7020642,3.99,TOTAL PRODUCE GATESHEAD,399244,Commissioning & Asset Management,Children's & Education Services,103,Supplies and Services,504,Equipment,5023,Revenue,CATERING.FOOD & BEVERAGES
22-DEC-2022,7020642,4.17,TOTAL PRODUCE GATESHEAD,399244,Commissioning & Asset Management,Children's & Education Services,103,Supplies and Services,504,Equipment,5023,Revenue,CATERING.FOOD & BEVERAGES
22-DEC-2022,7020642,4.17,TOTAL PRODUCE GATESHEAD,399244,Commissioning & Asset Management,Children's & Education Services,103,Supplies and Services,504,Equipment,5023,Revenue,CATERING.FOOD & BEVERAGES
22-DEC-2022,7020642,4.17,TOTAL PRODUCE GATESHEAD,399244,Commissioning & Asset Management,Children's & Education Services,103,Supplies and Services,504,Equipment,5023,Revenue,CATERING.FOOD & BEVERAGES
22-DEC-2022,7020642,4.2,TOTAL PRODUCE GATESHEAD,399244,Commissioning & Asset Management,Children's & Education Services,103,Supplies and Services,504,Equipment,5023,Revenue,CATERING.FOOD & BEVERAGES
22-DEC-2022,7020642,4.38,TOTAL PRODUCE GATESHEAD,399244,Commissioning & Asset Management,Children's & Education Services,103,Supplies and Services,504,Equipment,5023,Revenue,CATERING.FOOD & BEVERAGES
22-DEC-2022,7020642,4.38,TOTAL PRODUCE GATESHEAD,399244,Commissioning & Asset Management,Children's & Education Services,103,Supplies and Services,504,Equipment,5023,Revenue,CATERING.FOOD & BEVERAGES
22-DEC-2022,7020642,4.38,TOTAL PRODUCE GATESHEAD,399244,Commissioning & Asset Management,Children's & Education Services,103,Supplies and Services,504,Equipment,5023,Revenue,CATERING.FOOD & BEVERAGES
22-DEC-2022,7020642,4.38,TOTAL PRODUCE GATESHEAD,399244,Commissioning & Asset Management,Children's & Education Services,103,Supplies and Services,504,Equipment,5023,Revenue,CATERING.FOOD & BEVERAGES
22-DEC-2022,7020642,4.38,TOTAL PRODUCE GATESHEAD,399244,Commissioning & Asset Management,Children's & Education Services,103,Supplies and Services,504,Equipment,5023,Revenue,CATERING.FOOD & BEVERAGES
22-DEC-2022,7020642,4.59,TOTAL PRODUCE GATESHEAD,399244,Commissioning & Asset Management,Children's & Education Services,103,Supplies and Services,504,Equipment,5023,Revenue,CATERING.FOOD & BEVERAGES
22-DEC-2022,7020642,4.59,TOTAL PRODUCE GATESHEAD,399244,Commissioning & Asset Management,Children's & Education Services,103,Supplies and Services,504,Equipment,5023,Revenue,CATERING.FOOD & BEVERAGES
22-DEC-2022,7020642,4.59,TOTAL PRODUCE GATESHEAD,399244,Commissioning & Asset Management,Children's & Education Services,103,Supplies and Services,504,Equipment,5023,Revenue,CATERING.FOOD & BEVERAGES
22-DEC-2022,7020642,4.59,TOTAL PRODUCE GATESHEAD,399244,Commissioning & Asset Management,Children's & Education Services,103,Supplies and Services,504,Equipment,5023,Revenue,CATERING.FOOD & BEVERAGES
22-DEC-2022,7020642,4.6,TOTAL PRODUCE GATESHEAD,399244,Commissioning & Asset Management,Children's & Education Services,103,Supplies and Services,504,Equipment,5023,Revenue,CATERING.FOOD & BEVERAGES
22-DEC-2022,7020642,5.89,TOTAL PRODUCE GATESHEAD,399244,Commissioning & Asset Management,Children's & Education Services,103,Supplies and Services,504,Equipment,5023,Revenue,CATERING.FOOD & BEVERAGES
